Workbook

Sheet Notes
A1: MeanReversionBacktest.xlsm; Traders Tip spreadsheet created for the May 2019 Issue
A2: Coded beginning 2019-March 13 by Ronald McAllister (rpmac_xltt@sprynet.com)
A4: This Workbook demonstrates an EXCEL version of the ideas presented
A5: by Anthony Garner in an article titled "Backtesting A Mean-Reversion Strategy In Python"
A6: which originally appeared in the May 2019 issue of
A7: "Technical Analysis of Stocks and Commodities" magazine.
A9: General Construction Notes
A10: Back testing philosophy note:
A11: Since we are using the Close of the bar to determine our signals, logically we will be trading somewhere in the price range encompased in the next bar.
A12: That next bar can gap away from the current bar close and never encounter that signal bar close price.
A13: A somewhat more realistic back test scenario is to generate a signal from the close of this bar to trigger a trade "at the open" of the next bar.
A17: Development Notes:
C18: This workbook contains and uses VBA macros and may use VBA Class structures.
C19: Input Data
C20: The data in this workbook is sorted date descending (most recent date at the top). All formulas and
C21: VBA routines are built accordingly.
B25: My sincere apologies to our Macintosh based readers: Neither MSXML nor WinHttpRequest are supported in your environment. So as it stands this version of the spreadsheet will not work for you.
B26: See "Why this approach does not work for Macintosh" below.
B27: I am investigating cURL as a non-Querytable based approach for the Macintosh environment.
A29: The new Yahoo Finance history download interface has changed rather radically. The biggest hurdle being a pseudo-security requirement of adding a
B30: crumb character string to any URL requesting any type of history download. That crumb must match up (by way of some sort of hash algorithm) with
B31: the Yahoo Finance cookie that must also be sent with any request to the new Yahoo History down load interface.
B33: A crumb value is returned, buried in the HTML for any of what I call the "entry level" Yahoo Finance web pages (no crumb security requirement for entry level pages).
B34: A crumb may come with other Yahoo Finance pages. A crumb may even accompany some of the secured pages as well. I have not checked.
B36: Entry level pages are the top level pages of the various Yahoo Finance dialogs and include: Quote Lookup, Stock Summary Quote, and any of the pages
B37: with links in the horizontal row with the "Summary" link on the quote summary page such as Options, Historical Data, and the rest.
B39: To date I have found no way to get at this crumb value using any native EXCEL capabilities.
B41: So this crumb requirement effectively shuts out any solution that attempts to exclusively use built-in facilities of EXCEL, which is to say a purely Querytables solution.
B43: The approach built for this Traders Tip spreadsheet uses a combination of MSXML and EXCEL Querytable calls to Load the InputPriceData worksheet.
B45: First I call MSXML to get the HTML text for the Yahoo Summary Quote page using the requested symbol. From this HTML text I extract the full company name,
B46: the market it trades, the market status and time stamp, and finally the associated crumb string. There is a bunch of other useful bits buried in this HTML
B47: text that do not necessarily appear on the web page your browser presents. Perhaps some day I will go after and build a worksheet with these other bits.
B49: Next I add the freshly extracted crumb string to the URLs I use in three separate Querytable calls to retrieve Price history, Split history, and Dividend history respectively.
B51: From there VBA code proceeds as in the past to fill in the cell formulas and formatting that make the "prettied up" InputPriceData sheet.
A53: Why this approach works for Windows:
B54: First, MSXML shares the permanent Internet Explorer web cache where cookies are maintained. Both IE and MSXML automatically
B55: update this cache when a "set cookie" header accompanies a web response. And they both automatically search this shared cache for
B56: cookies and add any "appropriate" cookies to the headers of any web requests they send out.
B57: This cookie handling automation means that even if the response to our MSXML call for the Summary web page includes a new version of
B58: the Yahoo Finance cookie, the imbedded Crumb value will always match the cookie newly installed in the cache!
B60: Second, in the Windows environment the EXCEL Querytable mechanism leans heavily on bits from Internet Explorer. This means that cookie
B61: handling is also automated from the shared cache for Querytable calls. We can count on any appropriate cookies being added to any Querytable call.
B62: We only need to do our part by adding the corresponding Crumb value to complete the security for the Querytable to access Yahoo History downloads.
A64: Why this approach does not work for Macintosh:
B65: For what it is worth, the Macintosh version of the MS Office suite of products do in fact maintain a special, shared amongst themselves only, cookie cache.
B66: They automate cookie handling into and from this cache JUST for the Office products and any Querytable activity they might originate.
B68: This cache is not tied to, nor shared with, any browser that might be installed on the MAC. And I have not found anything with HTTP capabilities similar to
B69: MSXML that can work with that Office product cookie cache.
B71: When working in the MAC EXCEL environment, without that MSXML like capability against the office shared cache, l have no mechanism
B72: to obtain a crumb value that would be a valid match to the Yahoo Finance cookie that will be automatically attached to a Querytable call.
B73: This missing facility pretty much eliminates the use of Mac environment Querytables to access the new Yahoo Finance history download interface.
A75: One very low probability potential "Gottcha" for any Querytables approach.
B76: Yahoo Finance cookies typically have an assigned expiration that is a year out (to the second) from the time they are issued.
B77: Further, these cookies are unique. Yours will not match mine.
B79: If for testing purposes, instead of MSXML, you use a fresh instance of Winhttp (Fresh instance = empty cache = no cookie to automatically send)
B80: every time you call an entry level page, the Yahoo server says "What? Entry level page? With no inbound cookie? Get them a cookie!!"
B81: and will send you a new, unique cookie and will imbed the matching crumb value in the response HTML text for each of these "no cookie attached" calls.
B83: The Gottcha: Lets say that the Yahoo Finance cookie presently in the IE cache has an expiration date and time that just happens
B84: to fall between our MSXML call to the summary page to fetch our crumb and our first (or second, or third) Querytable call.
B85: The Querytable call after the cookie expiration may fail with a cookie and crumb validation error.
B87: Querytable error reporting is atrocious. So we will not get any sort of helpful message here. Just a very generalized message like "failed to connect".
B89: The workaround is to simply go to the InputPriceData tab and click the download button.
B90: This second time through the retrieval process should not fail on a mismatch.
B91: After all, you now have a year before the new cookie that just got put into the cache expires!
A93: Calculation and Chart Worksheet Usage Comments:
C94: In General, Items in Bolded BLUE are items you may freely change to play what-if games.
C95: Be sure to have a backup copy of the spreadsheet before you alter anything else.
A97: Features carried forward from the June 2016 version of my T-Tips Template
A98: Added a pair of buttons near cell F12 that will allow the user to step the charting window forward or backward one bar for each click.
A99: I find this to be a good way to test my understanding of the author's ideas as I step through the evolution of the price behavior and the indicators.
B101: First: In the "Help! I would like to plot data" area.
B102: Added button to resolve #NA problems by locating the bar in the input data with a slightly more recent date than what the user actually requested.
B103: I find this particularly useful when I have a general idea of where I want to be date wise. Now I can pick a set of dates "out of the air".
B104: If either (or both) of my date specifications fall between dates that are available in the price history,
B105: this button will resolve them to the dates of the nearest, slightly more recent input bars.
B106: I can then refine my data interval search as necessary from there.
B107: Really great when working with Weekly or Monthly studies!
C108: 2016Jun11 - added logic to the "I would like to chart.." button to detect #N/A values and terminate
C109: gracefully with a message instead of blowing up in the charting logic.
B111: Second: In the "Price Chart Windowing Controls" area. (A11 and A12)
B112: When retrieving data for a new symbol or when changing from daily to weekly or monthly data, there was the possibility that the
B113: residual settings in A11 and A12 would fall outside of the number bars available on the input data tab after the new data retrieval.
B114: In certain combinations, this could create a serious error in the chart sizing logic and crash the spreadsheet.
B115: I have taken this opportunity to update the validity checking logic used in the chart sizing macros
B116: to adjust these values as necessary so that they fall within the boundaries of the newly retrieved input data.
A117: Features carried forward from the October 2015 Traders Tips Template
B118: Improved automation: changes to any of the following will automatically initiate calculations appropriate to reflect a change.
C119: Changing either of cells A11 (pan) or A12 (zoom) will automatically initiate the same chart sizing macros that the manual
C120: "Set Chart" button uses.

Sheet InputPriceData
A1: SPDR S&P 500 ETF (SPY) -NYSEArca (Daily)
IJ2: 241.79
A3: Request Online Yahoo History for: | F3: Market State == > | G3: As of | H3: 11:43:00 | I3: EDT. Market open.
A4: Symbol | B4: SPY | D4: Valid | I4: =OFFSET(I4,-2,0,1,1) -> 0
A5: From | B5: 1950-01-01 | D5: Data | AF5: Trailing 12 Div return (Cur Close)
A6: To | B6: =NOW() -> 2019-03-18T16:58:01.060 | D6: Types | E6: =VLOOKUP(B7,D7:E10,2,FALSE) -> d
A7: Data Type | B7: Daily | D7: Daily | E7: d
B8: DO1Cui1VGSK | D8: Weekly | E8: w
A9: Available Data | D9: Monthly | E9: m
A10: Bar Count: | B10: 6580 | AF10: =OFFSET(AC15,1,0,1,1)/OFFSET(N15,1,0,1,1) -> 0.01859862206
A11: From: | B11: =IF(B10<=0,"",OFFSET(B15,B10,IF(HistReqDataType="v",1,0),1,1)) -> 1993-01-29 | W11: Trailing 12 Month Dividend Returns
A12: To: | B12: =IF(B10<=0,"",IF(HistReqDataType="v",OFFSET(B15,2,1,1,1),OFFSET(B15,1,0,1,1))) -> 2019-03-18 | W12: Raw Close price on Dividend date | X12: Div Year and Month | Y12: Looking for year ago Div Year and Month | Z12: Year ago Div Date we found | AA12: row offset to year ago div Date | AB12: Same month flag | AC12: Trailing 12 Div Total | AD12: Trailing 12 Div return
Q13: Split History | S13: 0 | T13: Running | U13: Dividend History
B14: Raw Data Values | H14: Adjusted | I14: Price Adjust | J14: Vol Adjust | K14: Adjusted Values | P14: Last | Q14: Effective | R14: Shares | T14: Vol Adjust | V14: 109
A15: RelRow | B15: Date | C15: Open | D15: High | E15: Low | F15: Close | G15: Volume | H15: Close | I15: Factor | J15: Factor | K15: Open | L15: High | M15: Low | N15: Close | O15: Volume | P15: Trade | Q15: 43543 | R15: New | S15: Old | T15: 1 | U15: Date | V15: $ / Share
A16: 1 | B16: 2019-03-18 | C16: 280.540009 | D16: 282.660004 | E16: 281.299988 | F16: 281.575012 | G16: 21051589 | H16: 281.575012 | I16: =IF(F16=0,1,H16/F16) -> 1 | J16: =INDEX(OFFSET($T$15,0,0,$S$13+1,1),MATCH(B16,OFFSET($Q$15,0,0,$S$13+1,1),-1)) -> 1 | K16: =ROUND($I16*C16,2) -> 280.54 | L16: =ROUND($I16*D16,2) -> 282.66 | M16: 281.3 | N16: 281.58 | O16: =G16*J16 -> 21051589 | U16: 2019-03-15 | V16: 1.233 | W16: =(INDEX(OFFSET($F$15,1,0,$B$10,1),MATCH(U16,OFFSET($B$15,1,0,$B$10,1),-1))) -> 281.309998 | X16: =YEAR(U16)&RIGHT("0"&MONTH(U16),2) -> 201903 | Y16: =YEAR(U16)-1&RIGHT("0"&MONTH(U16),2) -> 201803 | Z16: =OFFSET(U15,AA16,0,1,1) -> 2018-03-16 | AA16: =MATCH(Y16,OFFSET($X$15,A16,0,$V$14+1-A16,1),-1) -> 5 | AB16: =IF(OR(AND(YEAR(U16)=YEAR(Z16),MONTH(U16)=MONTH(Z16)),MONTH(U16)=MONTH(Z16)),1,0) -> 1 | AC16: =(V16+IF(AA16-AB16=0,0,IFERROR(SUM(OFFSET(V16,1,0,AA16-AB16-1,1)),0))) -> 5.237 | AD16: =AC16/(INDEX(OFFSET($F$15,1,0,$B$10,1),MATCH(U16,OFFSET($B$15,1,0,$B$10,1),-1))) -> 0.01861647306
A17: 2 | B17: 2019-03-15 | C17: 280.540009 | D17: 282.209991 | E17: 280.329987 | F17: 281.309998 | G17: 81251300 | H17: 281.309998 | I17: =IF(F17=0,1,H17/F17) -> 1 | J17: =INDEX(OFFSET($T$15,0,0,$S$13+1,1),MATCH(B17,OFFSET($Q$15,0,0,$S$13+1,1),-1)) -> 1 | K17: =ROUND($I17*C17,2) -> 280.54 | L17: =ROUND($I17*D17,2) -> 282.21 | M17: =ROUND($I17*E17,2) -> 280.33 | N17: =ROUND($I17*F17,2) -> 281.31 | O17: =G17*J17 -> 81251300 | U17: 2018-12-21 | V17: 1.435 | W17: =(INDEX(OFFSET($F$15,1,0,$B$10,1),MATCH(U17,OFFSET($B$15,1,0,$B$10,1),-1))) -> 240.699997 | X17: =YEAR(U17)&RIGHT("0"&MONTH(U17),2) -> 201812 | Y17: =YEAR(U17)-1&RIGHT("0"&MONTH(U17),2) -> 201712 | Z17: =OFFSET(U16,AA17,0,1,1) -> 2017-12-15 | AA17: =MATCH(Y17,OFFSET($X$15,A17,0,$V$14+1-A17,1),-1) -> 5 | AB17: =IF(OR(AND(YEAR(U17)=YEAR(Z17),MONTH(U17)=MONTH(Z17)),MONTH(U17)=MONTH(Z17)),1,0) -> 1 | AC17: =(V17+IF(AA17-AB17=0,0,IFERROR(SUM(OFFSET(V17,1,0,AA17-AB17-1,1)),0))) -> 5.101 | AD17: =AC17/(INDEX(OFFSET($F$15,1,0,$B$10,1),MATCH(U17,OFFSET($B$15,1,0,$B$10,1),-1))) -> 0.02119235589
A18: 3 | B18: 2019-03-14 | C18: 281.369995 | D18: 281.839996 | E18: 280.670013 | F18: 281.160004 | G18: 67518400 | H18: 279.927002 | I18: 0.9956145896 | J18: 1 | K18: 280.14 | L18: 280.6 | M18: 279.44 | N18: 279.93 | O18: 67518400 | U18: 2018-09-21 | V18: 1.323 | W18: 291.98999 | X18: 201809 | Y18: 201709 | Z18: 2017-09-15 | AA18: 5 | AB18: 1 | AC18: 5.017 | AD18: 0.01718209587
A19: 4 | B19: 2019-03-13 | C19: 280.480011 | D19: 282.380005 | E19: 280.299988 | F19: 281.339996 | G19: 80639200 | H19: 280.106201 | I19: 0.9956145766 | J19: 1 | K19: 279.25 | L19: 281.14 | M19: 279.07 | N19: 280.11 | O19: 80639200 | U19: 2018-06-15 | V19: 1.246 | W19: 277.130005 | X19: 201806 | Y19: 201706 | Z19: 2017-06-16 | AA19: 5 | AB19: 1 | AC19: 4.929 | AD19: 0.01778587634
A20: 5 | B20: 2019-03-12 | C20: 279.059998 | D20: 280.070007 | E20: 278.850006 | F20: 279.48999 | G20: 79667500 | H20: 278.264313 | I20: 0.9956145943 | J20: 1 | K20: 277.84 | L20: 278.84 | M20: 277.63 | N20: 278.26 | O20: 79667500 | U20: 2018-03-16 | V20: 1.097 | W20: 274.200012 | X20: 201803 | Y20: 201703 | Z20: 2017-03-17 | AA20: 5 | AB20: 1 | AC20: 4.866 | AD20: 0.0177461699
A21: 6 | B21: 2019-03-11 | C21: 275.26001 | D21: 278.619995 | E21: 275.230011 | F21: 278.440002 | G21: 65098900 | H21: 277.218933 | I21: 0.9956146064 | J21: 1 | K21: 274.05 | L21: 277.4 | M21: 274.02 | N21: 277.22 | O21: 65098900 | U21: 2017-12-15 | V21: 1.351 | W21: 266.51001 | X21: 201712 | Y21: 201612 | Z21: 2016-12-16 | AA21: 5 | AB21: 1 | AC21: 4.802 | AD21: 0.01801808495
A22: 7 | B22: 2019-03-08 | C22: 272.940002 | D22: 274.649994 | E22: 272.420013 | F22: 274.459991 | G22: 85795800 | H22: 273.256378 | I22: 0.995614614 | J22: 1 | K22: 271.74 | L22: 273.45 | M22: 271.23 | N22: 273.26 | O22: 85795800 | U22: 2017-09-15 | V22: 1.235 | W22: 249.190002 | X22: 201709 | Y22: 201609 | Z22: 2016-09-16 | AA22: 5 | AB22: 1 | AC22: 4.77993 | AD22: 0.0191818691
A23: 8 | B23: 2019-03-07 | C23: 276.829987 | D23: 276.98999 | E23: 274.070007 | F23: 275.01001 | G23: 94885100 | H23: 273.803986 | I23: 0.9956146178 | J23: 1 | K23: 275.62 | L23: 275.78 | M23: 272.87 | N23: 273.8 | O23: 94885100 | U23: 2017-06-16 | V23: 1.183 | W23: 242.639999 | X23: 201706 | Y23: 201606 | Z23: 2016-06-17 | AA23: 5 | AB23: 1 | AC23: 4.627 | AD23: 0.01906940331
A24: 9 | B24: 2019-03-06 | C24: 279.149994 | D24: 279.160004 | E24: 276.970001 | F24: 277.329987 | G24: 75039800 | H24: 276.11377 | I24: 0.9956145492 | J24: 1 | K24: 277.93 | L24: 277.94 | M24: 275.76 | N24: 276.11 | O24: 75039800 | U24: 2017-03-17 | V24: 1.033 | W24: 237.029999 | X24: 201703 | Y24: 201603 | Z24: 2016-03-18 | AA24: 5 | AB24: 1 | AC24: 4.52244 | AD24: 0.01907961026
A25: 10 | B25: 2019-03-05 | C25: 279.540009 | D25: 279.76001 | E25: 278.410004 | F25: 279.019989 | G25: 59114600 | H25: 277.796387 | I25: 0.9956146439 | J25: 1 | K25: 278.31 | L25: 278.53 | M25: 277.19 | N25: 277.8 | O25: 59114600 | U25: 2016-12-16 | V25: 1.32893 | W25: 225.039993 | X25: 201612 | Y25: 201512 | Z25: 2015-12-18 | AA25: 5 | AB25: 1 | AC25: 4.53904 | AD25: 0.02016992597
A26: 11 | B26: 2019-03-04 | C26: 281.600006 | D26: 281.869995 | E26: 276.839996 | F26: 279.399994 | G26: 106494600 | H26: 278.174713 | I26: 0.995614599 | J26: 1 | K26: 280.37 | L26: 280.63 | M26: 275.63 | N26: 278.17 | O26: 106494600 | U26: 2016-09-16 | V26: 1.08207 | W26: 213.369995 | X26: 201609 | Y26: 201509 | Z26: 2015-09-18 | AA26: 5 | AB26: 1 | AC26: 4.42166 | AD26: 0.02072296998
A27: 12 | B27: 2019-03-01 | C27: 280.440002 | D27: 280.880005 | E27: 278.820007 | F27: 280.420013 | G27: 78880500 | H27: 279.190247 | I27: 0.9956145569 | J27: 1 | K27: 279.21 | L27: 279.65 | M27: 277.6 | N27: 279.19 | O27: 78880500 | U27: 2016-06-17 | V27: 1.07844 | W27: 206.520004 | X27: 201606 | Y27: 201506 | Z27: 2015-06-19 | AA27: 5 | AB27: 1 | AC27: 4.37302 | AD27: 0.02117480106
A28: 13 | B28: 2019-02-28 | C28: 278.959991 | D28: 279.450012 | E28: 278.320007 | F28: 278.679993 | G28: 69268300 | H28: 277.457855 | I28: 0.995614547 | J28: 1 | K28: 277.74 | L28: 278.22 | M28: 277.1 | N28: 277.46 | O28: 69268300 | U28: 2016-03-18 | V28: 1.0496 | W28: 204.380005 | X28: 201603 | Y28: 201503 | Z28: 2015-03-20 | AA28: 5 | AB28: 1 | AC28: 4.32465 | AD28: 0.02115984878
A29: 14 | B29: 2019-02-27 | C29: 278.519989 | D29: 279.589996 | E29: 277.480011 | F29: 279.200012 | G29: 56921600 | H29: 277.975616 | I29: 0.9956146277 | J29: 1 | K29: 277.3 | L29: 278.36 | M29: 276.26 | N29: 277.98 | O29: 56921600 | U29: 2015-12-18 | V29: 1.21155 | W29: 200.020004 | X29: 201512 | Y29: 201412 | Z29: 2014-12-19 | AA29: 5 | AB29: 1 | AC29: 4.20586 | AD29: 0.02102719686
A30: 15 | B30: 2019-02-26 | C30: 279.130005 | D30: 280.299988 | E30: 278.899994 | F30: 279.320007 | G30: 56844100 | H30: 278.095062 | I30: 0.9956145462 | J30: 1 | K30: 277.91 | L30: 279.07 | M30: 277.68 | N30: 278.1 | O30: 56844100 | U30: 2015-09-18 | V30: 1.03343 | W30: 195.360001 | X30: 201509 | Y30: 201409 | Z30: 2014-09-19 | AA30: 5 | AB30: 1 | AC30: 4.12923 | AD30: 0.02113651709
A31: 16 | B31: 2019-02-25 | C31: 280.730011 | D31: 281.309998 | E31: 279.429993 | F31: 279.519989 | G31: 69030700 | H31: 278.294189 | I31: 0.9956146249 | J31: 1 | K31: 279.5 | L31: 280.08 | M31: 278.2 | N31: 278.29 | O31: 69030700 | U31: 2015-06-19 | V31: 1.03007 | W31: 210.809998 | X31: 201506 | Y31: 201406 | Z31: 2014-06-20 | AA31: 5 | AB31: 1 | AC31: 4.03499 | AD31: 0.01914041098
A32: 17 | B32: 2019-02-22 | C32: 278.109985 | D32: 279.359985 | E32: 277.399994 | F32: 279.140015 | G32: 78114600 | H32: 277.915863 | I32: 0.9956145592 | J32: 1 | K32: 276.89 | L32: 278.13 | M32: 276.18 | N32: 277.92 | O32: 78114600 | U32: 2015-03-20 | V32: 0.93081 | W32: 210.410004 | X32: 201503 | Y32: 201403 | Z32: 2014-03-21 | AA32: 5 | AB32: 1 | AC32: 3.94161 | AD32: 0.01873299712
A33: 18 | B33: 2019-02-21 | C33: 277.700012 | D33: 278.100006 | E33: 276.350006 | F33: 277.420013 | G33: 64214700 | H33: 276.2034 | I33: 0.9956145449 | J33: 1 | K33: 276.48 | L33: 276.88 | M33: 275.14 | N33: 276.2 | O33: 64214700 | U33: 2014-12-19 | V33: 1.13492 | W33: 206.520004 | X33: 201412 | Y33: 201312 | Z33: 2013-12-20 | AA33: 5 | AB33: 1 | AC33: 3.83541 | AD33: 0.01857161498
A34: 19 | B34: 2019-02-20 | C34: 277.809998 | D34: 278.920013 | E34: 277.25 | F34: 278.410004 | G34: 76610800 | H34: 277.189056 | I34: 0.9956145685 | J34: 1 | K34: 276.59 | L34: 277.7 | M34: 276.03 | N34: 277.19 | O34: 76610800 | U34: 2014-09-19 | V34: 0.93919 | W34: 200.699997 | X34: 201409 | Y34: 201309 | Z34: 2013-09-20 | AA34: 5 | AB34: 1 | AC34: 3.68074 | AD34: 0.01833951198
A35: 20 | B35: 2019-02-19 | C35: 276.480011 | D35: 278.579987 | E35: 276.470001 | F35: 277.850006 | G35: 59120800 | H35: 276.631531 | I35: 0.9956146303 | J35: 1 | K35: 275.27 | L35: 277.36 | M35: 275.26 | N35: 276.63 | O35: 59120800 | U35: 2014-06-20 | V35: 0.93669 | W35: 195.940002 | X35: 201406 | Y35: 201306 | Z35: 2013-06-21 | AA35: 5 | AB35: 1 | AC35: 3.5795 | AD35: 0.01826834727
A36: 21 | B36: 2019-02-15 | C36: 276.359985 | D36: 277.410004 | E36: 276.130005 | F36: 277.369995 | G36: 97088700 | H36: 276.153625 | I36: 0.9956146302 | J36: 1 | K36: 275.15 | L36: 276.19 | M36: 274.92 | N36: 276.15 | O36: 97088700 | U36: 2014-03-21 | V36: 0.82461 | W36: 186.199997 | X36: 201403 | Y36: 201303 | Z36: 2013-03-15 | AA36: 5 | AB36: 1 | AC36: 3.48181 | AD36: 0.01869930213
A37: 22 | B37: 2019-02-14 | C37: 273.779999 | D37: 275.640015 | E37: 272.869995 | F37: 274.380005 | G37: 83234400 | H37: 273.176727 | I37: 0.9956145565 | J37: 1 | K37: 272.58 | L37: 274.43 | M37: 271.67 | N37: 273.18 | O37: 83234400 | U37: 2013-12-20 | V37: 0.98025 | W37: 181.559998 | X37: 201312 | Y37: 201212 | Z37: 2012-12-21 | AA37: 5 | AB37: 1 | AC37: 3.3512 | AD37: 0.01845781029
A38: 23 | B38: 2019-02-13 | C38: 275.029999 | D38: 275.929993 | E38: 274.559998 | F38: 274.98999 | G38: 65277200 | H38: 273.784058 | I38: 0.9956146331 | J38: 1 | K38: 273.82 | L38: 274.72 | M38: 273.36 | N38: 273.78 | O38: 65277200 | U38: 2013-09-20 | V38: 0.83795 | W38: 170.720001 | X38: 201309 | Y38: 201209 | Z38: 2012-09-21 | AA38: 5 | AB38: 1 | AC38: 3.39295 | AD38: 0.01987435555
A39: 24 | B39: 2019-02-12 | C39: 272.420013 | D39: 274.519989 | E39: 272.339996 | F39: 274.100006 | G39: 72270200 | H39: 272.89798 | I39: 0.9956146444 | J39: 1 | K39: 271.23 | L39: 273.32 | M39: 271.15 | N39: 272.9 | O39: 72270200 | U39: 2013-06-21 | V39: 0.839 | W39: 159.070007 | X39: 201306 | Y39: 201206 | Z39: 2012-06-15 | AA39: 5 | AB39: 1 | AC39: 3.334 | AD39: 0.02095932516
A40: 25 | B40: 2019-02-11 | C40: 271.200012 | D40: 271.48999 | E40: 270.029999 | F40: 270.619995 | G40: 68021400 | H40: 269.433228 | I40: 0.9956146367 | J40: 1 | K40: 270.01 | L40: 270.3 | M40: 268.85 | N40: 269.43 | O40: 68021400 | U40: 2013-03-15 | V40: 0.694 | W40: 155.830002 | X40: 201303 | Y40: 201203 | Z40: 2012-03-16 | AA40: 5 | AB40: 1 | AC40: 3.183 | AD40: 0.02042610511
A41: 26 | B41: 2019-02-08 | C41: 268.75 | D41: 270.579987 | E41: 267.829987 | F41: 270.470001 | G41: 75788900 | H41: 269.283875 | I41: 0.9956145746 | J41: 1 | K41: 267.57 | L41: 269.39 | M41: 266.66 | N41: 269.28 | O41: 75788900 | U41: 2012-12-21 | V41: 1.022 | W41: 142.789993 | X41: 201212 | Y41: 201112 | Z41: 2011-12-16 | AA41: 5 | AB41: 1 | AC41: 3.103 | AD41: 0.02173121474
A42: 27 | B42: 2019-02-07 | C42: 270.940002 | D42: 271.549988 | E42: 268.290009 | F42: 270.140015 | G42: 95482000 | H42: 268.955353 | I42: 0.9956146371 | J42: 1 | K42: 269.75 | L42: 270.36 | M42: 267.11 | N42: 268.96 | O42: 95482000 | U42: 2012-09-21 | V42: 0.779 | W42: 145.869995 | X42: 201209 | Y42: 201109 | Z42: 2011-09-16 | AA42: 5 | AB42: 1 | AC42: 2.851 | AD42: 0.01954480083
A43: 28 | B43: 2019-02-06 | C43: 272.790009 | D43: 273.339996 | E43: 271.920013 | F43: 272.73999 | G43: 58347800 | H43: 271.543915 | I43: 0.9956145962 | J43: 1 | K43: 271.59 | L43: 272.14 | M43: 270.73 | N43: 271.54 | O43: 58347800 | U43: 2012-06-15 | V43: 0.688 | W43: 134.139999 | X43: 201206 | Y43: 201106 | Z43: 2011-06-17 | AA43: 5 | AB43: 1 | AC43: 2.697 | AD43: 0.0201058597
A44: 29 | B44: 2019-02-05 | C44: 272.440002 | D44: 273.440002 | E44: 271.880005 | F44: 273.100006 | G44: 79552800 | H44: 271.902344 | I44: 0.9956145662 | J44: 1 | K44: 271.25 | L44: 272.24 | M44: 270.69 | N44: 271.9 | O44: 79552800 | U44: 2012-03-16 | V44: 0.614 | W44: 140.300003 | X44: 201203 | Y44: 201103 | Z44: 2011-03-18 | AA44: 5 | AB44: 1 | AC44: 2.637 | AD44: 0.01879543794
A45: 30 | B45: 2019-02-04 | C45: 270.109985 | D45: 272.029999 | E45: 269.359985 | F45: 271.959991 | G45: 60744800 | H45: 270.767334 | I45: 0.9956145866 | J45: 1 | K45: 268.93 | L45: 270.84 | M45: 268.18 | N45: 270.77 | O45: 60744800 | U45: 2011-12-16 | V45: 0.77 | W45: 121.589996 | X45: 201112 | Y45: 201012 | Z45: 2010-12-17 | AA45: 5 | AB45: 1 | AC45: 2.576 | AD45: 0.02118595349
A46: 31 | B46: 2019-02-01 | C46: 270.149994 | D46: 271.200012 | E46: 269.179993 | F46: 270.059998 | G46: 85782500 | H46: 268.875671 | I46: 0.9956145782 | J46: 1 | K46: 268.97 | L46: 270.01 | M46: 268 | N46: 268.88 | O46: 85782500 | U46: 2011-09-16 | V46: 0.625 | W46: 121.519997 | X46: 201109 | Y46: 201009 | Z46: 2010-09-17 | AA46: 5 | AB46: 1 | AC46: 2.459 | AD46: 0.0202353527
A47: 32 | B47: 2019-01-31 | C47: 267.51001 | D47: 270.470001 | E47: 267.269989 | F47: 269.929993 | G47: 104012100 | H47: 268.746246 | I47: 0.9956146148 | J47: 1 | K47: 266.34 | L47: 269.28 | M47: 266.1 | N47: 268.75 | O47: 104012100 | U47: 2011-06-17 | V47: 0.628 | W47: 127.050003 | X47: 201106 | Y47: 201006 | Z47: 2010-06-18 | AA47: 5 | AB47: 1 | AC47: 2.436 | AD47: 0.01917355327
A48: 33 | B48: 2019-01-30 | C48: 265.100006 | D48: 268.519989 | E48: 264.25 | F48: 267.579987 | G48: 92473700 | H48: 266.406525 | I48: 0.9956145375 | J48: 1 | K48: 263.94 | L48: 267.34 | M48: 263.09 | N48: 266.41 | O48: 92473700 | U48: 2011-03-18 | V48: 0.553 | W48: 127.760002 | X48: 201103 | Y48: 201003 | Z48: 2010-03-19 | AA48: 5 | AB48: 1 | AC48: 2.339 | AD48: 0.01830776427
A49: 34 | B49: 2019-01-29 | C49: 263.920013 | D49: 264.549988 | E49: 262.480011 | F49: 263.410004 | G49: 66136300 | H49: 262.254852 | I49: 0.9956146237 | J49: 1 | K49: 262.76 | L49: 263.39 | M49: 261.33 | N49: 262.25 | O49: 66136300 | U49: 2010-12-17 | V49: 0.653 | W49: 124.300003 | X49: 201012 | Y49: 200912 | Z49: 2009-12-18 | AA49: 5 | AB49: 1 | AC49: 2.266 | AD49: 0.01823008806
A50: 35 | B50: 2019-01-28 | C50: 263.390015 | D50: 263.829987 | E50: 261.790009 | F50: 263.76001 | G50: 85613700 | H50: 262.603302 | I50: 0.9956145437 | J50: 1 | K50: 262.23 | L50: 262.67 | M50: 260.64 | N50: 262.6 | O50: 85613700 | U50: 2010-09-17 | V50: 0.602 | W50: 112.489998 | X50: 201009 | Y50: 200909 | Z50: 2009-09-18 | AA50: 5 | AB50: 1 | AC50: 2.203 | AD50: 0.01958396337
A51: 36 | B51: 2019-01-25 | C51: 265.609985 | D51: 266.700012 | E51: 263.660004 | F51: 265.779999 | G51: 96883400 | H51: 264.614441 | I51: 0.9956145759 | J51: 1 | K51: 264.45 | L51: 265.53 | M51: 262.5 | N51: 264.61 | O51: 96883400 | U51: 2010-06-18 | V51: 0.531 | W51: 111.730003 | X51: 201006 | Y51: 200906 | Z51: 2009-06-19 | AA51: 5 | AB51: 1 | AC51: 2.109 | AD51: 0.01887586094
A52: 37 | B52: 2019-01-24 | C52: 263.209991 | D52: 264.200012 | E52: 262.079987 | F52: 263.549988 | G52: 59204100 | H52: 262.394226 | I52: 0.9956146384 | J52: 1 | K52: 262.06 | L52: 263.04 | M52: 260.93 | N52: 262.39 | O52: 59204100 | U52: 2010-03-19 | V52: 0.48 | W52: 115.970001 | X52: 201003 | Y52: 200903 | Z52: 2009-03-20 | AA52: 5 | AB52: 1 | AC52: 2.096 | AD52: 0.01807363958
A53: 38 | B53: 2019-01-23 | C53: 264.01001 | D53: 264.790009 | E53: 260.660004 | F53: 263.410004 | G53: 86030300 | H53: 262.254852 | I53: 0.9956146237 | J53: 1 | K53: 262.85 | L53: 263.63 | M53: 259.52 | N53: 262.25 | O53: 86030300 | U53: 2009-12-18 | V53: 0.59 | W53: 110.209999 | X53: 200912 | Y53: 200812 | Z53: 2008-12-19 | AA53: 5 | AB53: 1 | AC53: 2.177 | AD53: 0.01975319862
A54: 39 | B54: 2019-01-22 | C54: 264.820007 | D54: 265.059998 | E54: 261.059998 | F54: 262.859985 | G54: 115531200 | H54: 261.707245 | I54: 0.9956146235 | J54: 1 | K54: 263.66 | L54: 263.9 | M54: 259.92 | N54: 261.71 | O54: 115531200 | U54: 2009-09-18 | V54: 0.508 | W54: 106.720001 | X54: 200909 | Y54: 200809 | Z54: 2008-09-19 | AA54: 5 | AB54: 1 | AC54: 2.306 | AD54: 0.02160794582
A55: 40 | B55: 2019-01-18 | C55: 264.980011 | D55: 266.980011 | E55: 263 | F55: 266.459991 | G55: 127900300 | H55: 265.291443 | I55: 0.9956145461 | J55: 1 | K55: 263.82 | L55: 265.81 | M55: 261.85 | N55: 265.29 | O55: 127900300 | U55: 2009-06-19 | V55: 0.518 | W55: 92.040001 | X55: 200906 | Y55: 200806 | Z55: 2008-06-20 | AA55: 5 | AB55: 1 | AC55: 2.489 | AD55: 0.02704258988
A56: 41 | B56: 2019-01-17 | C56: 260.01001 | D56: 263.920013 | E56: 259.959991 | F56: 262.959991 | G56: 96118400 | H56: 261.806793 | I56: 0.9956145496 | J56: 1 | K56: 258.87 | L56: 262.76 | M56: 258.82 | N56: 261.81 | O56: 96118400 | U56: 2009-03-20 | V56: 0.561 | W56: 76.709999 | X56: 200903 | Y56: 200803 | Z56: 2008-03-20 | AA56: 5 | AB56: 1 | AC56: 2.64 | AD56: 0.03441533091
A57: 42 | B57: 2019-01-16 | C57: 260.829987 | D57: 261.970001 | E57: 260.600006 | F57: 260.980011 | G57: 77636700 | H57: 259.83551 | I57: 0.9956146028 | J57: 1 | K57: 259.69 | L57: 260.82 | M57: 259.46 | N57: 259.84 | O57: 77636700 | U57: 2008-12-19 | V57: 0.719 | W57: 88.190002 | X57: 200812 | Y57: 200712 | Z57: 2007-12-21 | AA57: 5 | AB57: 1 | AC57: 2.721 | AD57: 0.0308538376
A58: 43 | B58: 2019-01-15 | C58: 257.820007 | D58: 260.700012 | E58: 257.809998 | F58: 260.350006 | G58: 85208300 | H58: 259.208252 | I58: 0.9956145421 | J58: 1 | K58: 256.69 | L58: 259.56 | M58: 256.68 | N58: 259.21 | O58: 85208300 | U58: 2008-09-19 | V58: 0.691 | W58: 124.120003 | X58: 200809 | Y58: 200709 | Z58: 2007-09-21 | AA58: 5 | AB58: 1 | AC58: 2.777 | AD58: 0.02237350897
A59: 44 | B59: 2019-01-14 | C59: 256.859985 | D59: 258.299988 | E59: 256.410004 | F59: 257.399994 | G59: 70908200 | H59: 256.271179 | I59: 0.9956145492 | J59: 1 | K59: 255.73 | L59: 257.17 | M59: 255.29 | N59: 256.27 | O59: 70908200 | U59: 2008-06-20 | V59: 0.669 | W59: 131.580002 | X59: 200806 | Y59: 200706 | Z59: 2007-06-15 | AA59: 5 | AB59: 1 | AC59: 2.805 | AD59: 0.02131782913
A60: 45 | B60: 2019-01-11 | C60: 257.679993 | D60: 259.01001 | E60: 257.029999 | F60: 258.980011 | G60: 73858100 | H60: 257.844269 | I60: 0.9956145573 | J60: 1 | K60: 256.55 | L60: 257.87 | M60: 255.9 | N60: 257.84 | O60: 73858100 | U60: 2008-03-20 | V60: 0.642 | W60: 132.080002 | X60: 200803 | Y60: 200703 | Z60: 2007-03-16 | AA60: 5 | AB60: 1 | AC60: 2.792 | AD60: 0.0211387035
A61: 46 | B61: 2019-01-10 | C61: 256.26001 | D61: 259.160004 | E61: 255.5 | F61: 258.880005 | G61: 96823900 | H61: 257.74472 | I61: 0.9956146285 | J61: 1 | K61: 255.14 | L61: 258.02 | M61: 254.38 | N61: 257.74 | O61: 96823900 | U61: 2007-12-21 | V61: 0.775 | W61: 148.130005 | X61: 200712 | Y61: 200612 | Z61: 2006-12-15 | AA61: 5 | AB61: 1 | AC61: 2.701 | AD61: 0.01823398305
A62: 47 | B62: 2019-01-09 | C62: 257.559998 | D62: 258.910004 | E62: 256.190002 | F62: 257.970001 | G62: 95006600 | H62: 256.838684 | I62: 0.9956145405 | J62: 1 | K62: 256.43 | L62: 257.77 | M62: 255.07 | N62: 256.84 | O62: 95006600 | U62: 2007-09-21 | V62: 0.719 | W62: 151.970001 | X62: 200709 | Y62: 200609 | Z62: 2006-09-15 | AA62: 5 | AB62: 1 | AC62: 2.719 | AD62: 0.01789168903
A63: 48 | B63: 2019-01-08 | C63: 256.820007 | D63: 257.309998 | E63: 254 | F63: 256.769989 | G63: 102512600 | H63: 255.643951 | I63: 0.9956146043 | J63: 1 | K63: 255.69 | L63: 256.18 | M63: 252.89 | N63: 255.64 | O63: 102512600 | U63: 2007-06-15 | V63: 0.656 | W63: 153.070007 | X63: 200706 | Y63: 200606 | Z63: 2006-06-16 | AA63: 5 | AB63: 1 | AC63: 2.579 | AD63: 0.01684849992
A64: 49 | B64: 2019-01-07 | C64: 252.690002 | D64: 255.949997 | E64: 251.690002 | F64: 254.380005 | G64: 103139100 | H64: 253.26445 | I64: 0.9956146121 | J64: 1 | K64: 251.58 | L64: 254.83 | M64: 250.59 | N64: 253.26 | O64: 103139100 | U64: 2007-03-16 | V64: 0.551 | W64: 138.529999 | X64: 200703 | Y64: 200603 | Z64: 2006-03-17 | AA64: 5 | AB64: 1 | AC64: 2.478 | AD64: 0.01788782226
A65: 50 | B65: 2019-01-04 | C65: 247.589996 | D65: 253.110001 | E65: 247.169998 | F65: 252.389999 | G65: 142628800 | H65: 251.283173 | I65: 0.9956146202 | J65: 1 | K65: 246.5 | L65: 252 | M65: 246.09 | N65: 251.28 | O65: 142628800 | U65: 2006-12-15 | V65: 0.793 | W65: 142.339996 | X65: 200612 | Y65: 200512 | Z65: 2005-12-16 | AA65: 5 | AB65: 1 | AC65: 2.446 | AD65: 0.01718420731
A66: 51 | B66: 2019-01-03 | C66: 248.229996 | D66: 248.570007 | E66: 243.669998 | F66: 244.210007 | G66: 144140700 | H66: 243.139038 | I66: 0.9956145573 | J66: 1 | K66: 247.14 | L66: 247.48 | M66: 242.6 | N66: 243.14 | O66: 144140700 | U66: 2006-09-15 | V66: 0.579 | W66: 131.960007 | X66: 200609 | Y66: 200509 | Z66: 2005-09-16 | AA66: 5 | AB66: 1 | AC66: 2.325 | AD66: 0.01761897451
A67: 52 | B67: 2019-01-02 | C67: 245.979996 | D67: 251.210007 | E67: 245.949997 | F67: 250.179993 | G67: 126925200 | H67: 249.082855 | I67: 0.9956146054 | J67: 1 | K67: 244.9 | L67: 250.11 | M67: 244.87 | N67: 249.08 | O67: 126925200 | U67: 2006-06-16 | V67: 0.555 | W67: 124.650002 | X67: 200606 | Y67: 200506 | Z67: 2005-06-17 | AA67: 5 | AB67: 1 | AC67: 2.268 | AD67: 0.01819494556
A68: 53 | B68: 2018-12-31 | C68: 249.559998 | D68: 250.190002 | E68: 247.470001 | F68: 249.919998 | G68: 144299400 | H68: 248.82399 | I68: 0.9956145646 | J68: 1 | K68: 248.47 | L68: 249.09 | M68: 246.38 | N68: 248.82 | O68: 144299400 | U68: 2006-03-17 | V68: 0.519 | W68: 130.619995 | X68: 200603 | Y68: 200503 | Z68: 2005-03-18 | AA68: 5 | AB68: 1 | AC68: 2.201 | AD68: 0.0168504064
A69: 54 | B69: 2018-12-28 | C69: 249.580002 | D69: 251.399994 | E69: 246.449997 | F69: 247.75 | G69: 153100200 | H69: 246.663513 | I69: 0.9956145832 | J69: 1 | K69: 248.49 | L69: 250.3 | M69: 245.37 | N69: 246.66 | O69: 153100200 | U69: 2005-12-16 | V69: 0.672 | W69: 126.360001 | X69: 200512 | Y69: 200412 | Z69: 2004-12-17 | AA69: 5 | AB69: 1 | AC69: 2.149 | AD69: 0.01700696409
A70: 55 | B70: 2018-12-27 | C70: 242.570007 | D70: 248.289993 | E70: 238.960007 | F70: 248.070007 | G70: 186267300 | H70: 246.982117 | I70: 0.9956145847 | J70: 1 | K70: 241.51 | L70: 247.2 | M70: 237.91 | N70: 246.98 | O70: 186267300 | U70: 2005-09-16 | V70: 0.522 | W70: 123.5 | X70: 200509 | Y70: 200409 | Z70: 2004-09-17 | AA70: 6 | AB70: 1 | AC70: 2.396 | AD70: 0.01940080972
A71: 56 | B71: 2018-12-26 | C71: 235.970001 | D71: 246.179993 | E71: 233.759995 | F71: 246.179993 | G71: 218485400 | H71: 245.100388 | I71: 0.9956145705 | J71: 1 | K71: 234.94 | L71: 245.1 | M71: 232.73 | N71: 245.1 | O71: 218485400 | U71: 2005-06-17 | V71: 0.488 | W71: 121.360001 | X71: 200506 | Y71: 200406 | Z71: 2004-06-18 | AA71: 6 | AB71: 1 | AC71: 2.343 | AD71: 0.01930619628
A72: 57 | B72: 2018-12-24 | C72: 239.039993 | D72: 240.839996 | E72: 234.270004 | F72: 234.339996 | G72: 147311600 | H72: 233.312317 | I72: 0.9956145813 | J72: 1 | K72: 237.99 | L72: 239.78 | M72: 233.24 | N72: 233.31 | O72: 147311600 | U72: 2005-03-18 | V72: 0.467 | W72: 118.540001 | X72: 200503 | Y72: 200403 | Z72: 2004-03-19 | AA72: 6 | AB72: 1 | AC72: 2.269 | AD72: 0.01914121799
A73: 58 | B73: 2018-12-21 | C73: 246.740005 | D73: 249.710007 | E73: 239.979996 | F73: 240.699997 | G73: 255345600 | H73: 239.644424 | I73: 0.9956145699 | J73: 1 | K73: 245.66 | L73: 248.61 | M73: 238.93 | N73: 239.64 | O73: 255345600 | U73: 2004-12-17 | V73: 0.568 | W73: 119.440002 | X73: 200412 | Y73: 200312 | Z73: 2003-12-19 | AA73: 6 | AB73: 1 | AC73: 2.197 | AD73: 0.0183941725
A74: 59 | B74: 2018-12-20 | C74: 249.860001 | D74: 251.619995 | E74: 244.649994 | F74: 247.169998 | G74: 252053400 | H74: 244.657349 | I74: 0.9898343285 | J74: 1 | K74: 247.32 | L74: 249.06 | M74: 242.16 | N74: 244.66 | O74: 252053400 | U74: 2004-11-15 | V74: 0.351 | W74: 118.730003 | X74: 200411 | Y74: 200311 | Z74: 2003-12-19 | AA74: 5 | AB74: 0 | AC74: 2.145 | AD74: 0.01806620017
A75: 60 | B75: 2018-12-19 | C75: 255.169998 | D75: 259.399994 | E75: 249.350006 | F75: 251.259995 | G75: 214992800 | H75: 248.705765 | I75: 0.9898343148 | J75: 1 | K75: 252.58 | L75: 256.76 | M75: 246.82 | N75: 248.71 | O75: 214992800 | U75: 2004-09-17 | V75: 0.469 | W75: 113.150002 | X75: 200409 | Y75: 200309 | Z75: 2003-09-19 | AA75: 5 | AB75: 1 | AC75: 1.794 | AD75: 0.01585505938
A76: 61 | B76: 2018-12-18 | C76: 257.200012 | D76: 257.950012 | E76: 253.279999 | F76: 255.080002 | G76: 134515100 | H76: 252.486938 | I76: 0.9898343109 | J76: 1 | K76: 254.59 | L76: 255.33 | M76: 250.71 | N76: 252.49 | O76: 134515100 | U76: 2004-06-18 | V76: 0.414 | W76: 113.629997 | X76: 200406 | Y76: 200306 | Z76: 2003-06-20 | AA76: 5 | AB76: 1 | AC76: 1.725 | AD76: 0.01518085053
A77: 62 | B77: 2018-12-17 | C77: 259.399994 | D77: 260.649994 | E77: 253.529999 | F77: 255.360001 | G77: 165492300 | H77: 252.764099 | I77: 0.9898343437 | J77: 1 | K77: 256.76 | L77: 258 | M77: 250.95 | N77: 252.76 | O77: 165492300 | U77: 2004-03-19 | V77: 0.395 | W77: 111.059998 | X77: 200403 | Y77: 200303 | Z77: 2003-03-21 | AA77: 5 | AB77: 1 | AC77: 1.671 | AD77: 0.01504592139
A78: 63 | B78: 2018-12-14 | C78: 262.959991 | D78: 264.029999 | E78: 259.850006 | F78: 260.470001 | G78: 116961100 | H78: 257.822144 | I78: 0.9898343111 | J78: 1 | K78: 260.29 | L78: 261.35 | M78: 257.21 | N78: 257.82 | O78: 116961100 | U78: 2003-12-19 | V78: 0.516 | W78: 108.900002 | X78: 200312 | Y78: 200212 | Z78: 2002-12-20 | AA78: 5 | AB78: 1 | AC78: 1.63 | AD78: 0.01496786015
A79: 64 | B79: 2018-12-13 | C79: 266.519989 | D79: 267.48999 | E79: 264.119995 | F79: 265.369995 | G79: 96662700 | H79: 262.672302 | I79: 0.98983422 | J79: 1 | K79: 263.81 | L79: 264.77 | M79: 261.44 | N79: 262.67 | O79: 96662700 | U79: 2003-09-19 | V79: 0.4 | W79: 103.669998 | X79: 200309 | Y79: 200209 | Z79: 2002-09-20 | AA79: 5 | AB79: 1 | AC79: 1.55 | AD79: 0.01495128803
A80: 65 | B80: 2018-12-12 | C80: 267.470001 | D80: 269 | E80: 265.369995 | F80: 265.459991 | G80: 97976700 | H80: 262.761414 | I80: 0.9898343363 | J80: 1 | K80: 264.75 | L80: 266.27 | M80: 262.67 | N80: 262.76 | O80: 97976700 | U80: 2003-06-20 | V80: 0.36 | W80: 99.440002 | X80: 200306 | Y80: 200206 | Z80: 2002-06-21 | AA80: 5 | AB80: 1 | AC80: 1.528 | AD80: 0.01536604957
A81: 66 | B81: 2018-12-11 | C81: 267.660004 | D81: 267.869995 | E81: 262.480011 | F81: 264.130005 | G81: 121504400 | H81: 261.444946 | I81: =IF(F81=0,1,H81/F81) -> 0.989834328 | J81: =INDEX(OFFSET($T$15,0,0,$S$13+1,1),MATCH(B81,OFFSET($Q$15,0,0,$S$13+1,1),-1)) -> 1 | K81: =ROUND($I81*C81,2) -> 264.94 | L81: =ROUND($I81*D81,2) -> 265.15 | M81: =ROUND($I81*E81,2) -> 259.81 | N81: =ROUND($I81*F81,2) -> 261.44 | O81: =G81*J81 -> 121504400 | U81: 2003-03-21 | V81: 0.354 | W81: =(INDEX(OFFSET($F$15,1,0,$B$10,1),MATCH(U81,OFFSET($B$15,1,0,$B$10,1),-1))) -> 89.669998 | X81: =YEAR(U81)&RIGHT("0"&MONTH(U81),2) -> 200303 | Y81: =YEAR(U81)-1&RIGHT("0"&MONTH(U81),2) -> 200203 | Z81: =OFFSET(U80,AA81,0,1,1) -> 2002-03-15 | AA81: =MATCH(Y81,OFFSET($X$15,A81,0,$V$14+1-A81,1),-1) -> 5 | AB81: =IF(OR(AND(YEAR(U81)=YEAR(Z81),MONTH(U81)=MONTH(Z81)),MONTH(U81)=MONTH(Z81)),1,0) -> 1 | AC81: =(V81+IF(AA81-AB81=0,0,IFERROR(SUM(OFFSET(V81,1,0,AA81-AB81-1,1)),0))) -> 1.521 | AD81: =AC81/(INDEX(OFFSET($F$15,1,0,$B$10,1),MATCH(U81,OFFSET($B$15,1,0,$B$10,1),-1))) -> 0.01696219509
A82: 67 | B82: 2018-12-10 | C82: 263.369995 | D82: 265.160004 | E82: 258.619995 | F82: 264.070007 | G82: 151445900 | H82: 261.385559 | I82: 0.9898343321 | J82: 1 | K82: 260.69 | L82: 262.46 | M82: 255.99 | N82: 261.39 | O82: 151445900 | U82: 2002-12-20 | V82: 0.436 | W82: 89.989998 | X82: 200212 | Y82: 200112 | Z82: 2001-12-21 | AA82: 5 | AB82: 1 | AC82: 1.498 | AD82: 0.0166462944
A83: 68 | B83: 2018-12-07 | C83: 269.459991 | D83: 271.220001 | E83: 262.630005 | F83: 263.570007 | G83: 161018900 | H83: 260.890656 | I83: 0.9898343858 | J83: 1 | K83: 266.72 | L83: 268.46 | M83: 259.96 | N83: 260.89 | O83: 161018900 | U83: 2002-09-20 | V83: 0.378 | W83: 84.349998 | X83: 200209 | Y83: 200109 | Z83: 2001-09-21 | AA83: 5 | AB83: 1 | AC83: 1.455 | AD83: 0.01724955583
A84: 69 | B84: 2018-12-06 | C84: 265.920013 | D84: 269.970001 | E84: 262.440002 | F84: 269.839996 | G84: 204185400 | H84: 267.096893 | I84: 0.989834335 | J84: 1 | K84: 263.22 | L84: 267.23 | M84: 259.77 | N84: 267.1 | O84: 204185400 | U84: 2002-06-21 | V84: 0.353 | W84: 99.279999 | X84: 200206 | Y84: 200106 | Z84: 2001-06-15 | AA84: 5 | AB84: 1 | AC84: 1.446 | AD84: 0.01456486719
A85: 70 | B85: 2018-12-04 | C85: 278.369995 | D85: 278.850006 | E85: 269.899994 | F85: 270.25 | G85: 177986000 | H85: 267.502716 | I85: 0.9898342868 | J85: 1 | K85: 275.54 | L85: 276.02 | M85: 267.16 | N85: 267.5 | O85: 177986000 | U85: 2002-03-15 | V85: 0.331 | W85: 116.650002 | X85: 200203 | Y85: 200103 | Z85: 2001-03-16 | AA85: 5 | AB85: 1 | AC85: 1.439 | AD85: 0.0123360478
A86: 71 | B86: 2018-12-03 | C86: 280.279999 | D86: 280.399994 | E86: 277.51001 | F86: 279.299988 | G86: 103176300 | H86: 276.460693 | I86: 0.9898342459 | J86: 1 | K86: 277.43 | L86: 277.55 | M86: 274.69 | N86: 276.46 | O86: 103176300 | U86: 2001-12-21 | V86: 0.393 | W86: 114.949997 | X86: 200112 | Y86: 200012 | Z86: 2000-12-27 | AA86: 5 | AB86: 1 | AC86: 1.424 | AD86: 0.0123879951
A87: 72 | B87: 2018-11-30 | C87: 273.809998 | D87: 276.279999 | E87: 273.450012 | F87: 275.649994 | G87: 98204200 | H87: 272.847839 | I87: 0.9898343731 | J87: 1 | K87: 271.03 | L87: 273.47 | M87: 270.67 | N87: 272.85 | O87: 98204200 | U87: 2001-09-21 | V87: 0.369 | W87: 97.279999 | X87: 200109 | Y87: 200009 | Z87: 2000-09-15 | AA87: 6 | AB87: 1 | AC87: 1.442 | AD87: 0.01482319094
A88: 73 | B88: 2018-11-29 | C88: 273.709991 | D88: 275.549988 | E88: 272.429993 | F88: 273.980011 | G88: 82346400 | H88: 271.194794 | I88: 0.9898342328 | J88: 1 | K88: 270.93 | L88: 272.75 | M88: 269.66 | N88: 271.19 | O88: 82346400 | U88: 2001-06-15 | V88: 0.346 | W88: 121.849998 | X88: 200106 | Y88: 200006 | Z88: 2000-06-16 | AA88: 7 | AB88: 1 | AC88: 1.448 | AD88: 0.01188346347
A89: 74 | B89: 2018-11-28 | C89: 269.600006 | D89: 274.579987 | E89: 268.329987 | F89: 274.579987 | G89: 127629600 | H89: 271.788696 | I89: 0.9898343247 | J89: 1 | K89: 266.86 | L89: 271.79 | M89: 265.6 | N89: 271.79 | O89: 127629600 | U89: 2001-03-16 | V89: 0.316 | W89: 115.010002 | X89: 200103 | Y89: 200003 | Z89: 2000-03-17 | AA89: 7 | AB89: 1 | AC89: 1.45 | AD89: 0.01260759912
A90: 75 | B90: 2018-11-27 | C90: 266.339996 | D90: 268.399994 | E90: 265.660004 | F90: 268.399994 | G90: 75502400 | H90: 265.671539 | I90: 0.9898343701 | J90: 1 | K90: 263.63 | L90: 265.67 | M90: 262.96 | N90: 265.67 | O90: 75502400 | U90: 2000-12-27 | V90: 0 | W90: 133.3125 | X90: 200012 | Y90: 199912 | Z90: 1999-12-17 | AA90: 7 | AB90: 1 | AC90: 1.505 | AD90: 0.01128926395
A91: 76 | B91: 2018-11-26 | C91: 265.779999 | D91: 267.75 | E91: 265.339996 | F91: 267.5 | G91: 79981400 | H91: 264.78067 | I91: 0.9898342804 | J91: 1 | K91: 263.08 | L91: 265.03 | M91: 262.64 | N91: 264.78 | O91: 79981400 | U91: 2000-12-15 | V91: 0.411 | W91: 130.968704 | X91: 200012 | Y91: 199912 | Z91: 1999-12-17 | AA91: 6 | AB91: 1 | AC91: 1.505 | AD91: 0.0114912949
A92: 77 | B92: 2018-11-23 | C92: 263.179993 | D92: 264.820007 | E92: 263.070007 | F92: 263.25 | G92: 42807900 | H92: 260.573883 | I92: 0.9898343134 | J92: 1 | K92: 260.5 | L92: 262.13 | M92: 260.4 | N92: 260.57 | O92: 42807900 | U92: 2000-09-15 | V92: 0.375 | W92: 146 | X92: 200009 | Y92: 199909 | Z92: 1999-09-17 | AA92: 6 | AB92: 1 | AC92: 1.442 | AD92: 0.009876712329
A93: 78 | B93: 2018-11-21 | C93: 265.859985 | D93: 267.149994 | E93: 265.01001 | F93: 265.019989 | G93: 75563700 | H93: 262.325867 | I93: 0.9898342687 | J93: 1 | K93: 263.16 | L93: 264.43 | M93: 262.32 | N93: 262.33 | O93: 75563700 | U93: 2000-09-14 | V93: 0 | W93: 149.640594 | X93: 200009 | Y93: 199909 | Z93: 1999-09-17 | AA93: 5 | AB93: 1 | AC93: 1.067 | AD93: 0.0071304181
A94: 79 | B94: 2018-11-20 | C94: 265.359985 | D94: 267 | E94: 263.149994 | F94: 264.119995 | G94: 136021300 | H94: 261.435028 | I94: 0.989834291 | J94: 1 | K94: 262.66 | L94: 264.29 | M94: 260.47 | N94: 261.44 | O94: 136021300 | U94: 2000-06-16 | V94: 0.348 | W94: 146.593704 | X94: 200006 | Y94: 199906 | Z94: 1999-06-18 | AA94: 5 | AB94: 1 | AC94: 1.439 | AD94: 0.009816246952
A95: 80 | B95: 2018-11-19 | C95: 273.049988 | D95: 273.380005 | E95: 268.070007 | F95: 269.100006 | G95: 103061700 | H95: 266.364441 | I95: 0.9898343926 | J95: 1 | K95: 270.27 | L95: 270.6 | M95: 265.34 | N95: 266.36 | O95: 103061700 | U95: 2000-03-17 | V95: 0.371 | W95: 146.9375 | X95: 200003 | Y95: 199903 | Z95: 1999-03-19 | AA95: 5 | AB95: 1 | AC95: 1.496 | AD95: 0.01018119949
A96: 81 | B96: 2018-11-16 | C96: 271.790009 | D96: 274.75 | E96: 271.209991 | F96: 273.730011 | G96: 126668000 | H96: 270.947357 | I96: 0.9898343116 | J96: 1 | K96: 269.03 | L96: 271.96 | M96: 268.45 | N96: 270.95 | O96: 126668000 | U96: 1999-12-17 | V96: 0.348 | W96: 142.6875 | X96: 199912 | Y96: 199812 | Z96: 1998-12-18 | AA96: 5 | AB96: 1 | AC96: 1.445 | AD96: 0.01012702584
A97: 82 | B97: 2018-11-15 | C97: 268.779999 | D97: 273.540009 | E97: 267.01001 | F97: 273.019989 | G97: 135101400 | H97: 270.244537 | I97: 0.9898342535 | J97: 1 | K97: 266.05 | L97: 270.76 | M97: 264.3 | N97: 270.24 | O97: 135101400 | U97: 1999-09-17 | V97: 0.372 | W97: 133.75 | X97: 199909 | Y97: 199809 | Z97: 1998-09-18 | AA97: 5 | AB97: 1 | AC97: 1.489 | AD97: 0.01113271028
A98: 83 | B98: 2018-11-14 | C98: 274.160004 | D98: 274.609985 | E98: 268.450012 | F98: 270.200012 | G98: 125335900 | H98: 267.453247 | I98: 0.9898343269 | J98: 1 | K98: 271.37 | L98: 271.82 | M98: 265.72 | N98: 267.45 | O98: 125335900 | U98: 1999-06-18 | V98: 0.405 | W98: 134.3125 | X98: 199906 | Y98: 199806 | Z98: 1998-06-19 | AA98: 5 | AB98: 1 | AC98: 1.476 | AD98: 0.01098929735
A99: 84 | B99: 2018-11-13 | C99: 273.089996 | D99: 275.329987 | E99: 271.25 | F99: 272.059998 | G99: 98176600 | H99: 269.294342 | I99: 0.9898343894 | J99: 1 | K99: 270.31 | L99: 272.53 | M99: 268.49 | N99: 269.29 | O99: 98176600 | U99: 1999-03-19 | V99: 0.32 | W99: 129.6875 | X99: 199903 | Y99: 199803 | Z99: 1998-03-20 | AA99: 5 | AB99: 1 | AC99: 1.423 | AD99: 0.01097253012
A100: 85 | B100: 2018-11-12 | C100: 277.190002 | D100: 277.459991 | E100: 271.98999 | F100: 272.570007 | G100: 99673600 | H100: 269.799164 | I100: 0.9898343804 | J100: 1 | K100: 274.37 | L100: 274.64 | M100: 269.23 | N100: 269.8 | O100: 99673600 | U100: 1998-12-18 | V100: 0.392 | W100: 118.5 | X100: 199812 | Y100: 199712 | Z100: 1997-12-19 | AA100: 5 | AB100: 1 | AC100: 1.416 | AD100: 0.01194936709
A101: 86 | B101: 2018-11-09 | C101: 279.029999 | D101: 279.23999 | E101: 276.179993 | F101: 277.76001 | G101: 98812600 | H101: 274.936371 | I101: 0.9898342494 | J101: 1 | K101: 276.19 | L101: 276.4 | M101: 273.37 | N101: 274.94 | O101: 98812600 | U101: 1998-09-18 | V101: 0.359 | W101: 102.093697 | X101: 199809 | Y101: 199709 | Z101: 1997-09-19 | AA101: 5 | AB101: 1 | AC101: 1.404 | AD101: 0.01375207325
A102: 87 | B102: 2018-11-08 | C102: 280.109985 | D102: 281.220001 | E102: 279.220001 | F102: 280.5 | G102: 65584900 | H102: 277.648529 | I102: 0.989834328 | J102: 1 | K102: 277.26 | L102: 278.36 | M102: 276.38 | N102: 277.65 | O102: 65584900 | U102: 1998-06-19 | V102: 0.352 | W102: 110.0625 | X102: 199806 | Y102: 199706 | Z102: 1997-06-20 | AA102: 5 | AB102: 1 | AC102: 1.393 | AD102: 0.0126564452
A103: 88 | B103: 2018-11-07 | C103: 277.559998 | D103: 281.100006 | E103: 277.079987 | F103: 281.01001 | G103: 102752100 | H103: 278.153351 | I103: 0.9898343159 | J103: 1 | K103: 274.74 | L103: 278.24 | M103: 274.26 | N103: 278.15 | O103: 102752100 | U103: 1998-03-20 | V103: 0.313 | W103: 109.875 | X103: 199803 | Y103: 199703 | Z103: 1997-03-21 | AA103: 5 | AB103: 1 | AC103: 1.391 | AD103: 0.01265984073
A104: 89 | B104: 2018-11-06 | C104: 273.320007 | D104: 275.299988 | E104: 273.25 | F104: 275.119995 | G104: 60085900 | H104: 272.323212 | I104: 0.9898343158 | J104: 1 | K104: 270.54 | L104: 272.5 | M104: 270.47 | N104: 272.32 | O104: 60085900 | U104: 1997-12-19 | V104: 0.38 | W104: 94.781197 | X104: 199712 | Y104: 199612 | Z104: 1996-12-20 | AA104: 5 | AB104: 1 | AC104: 1.377 | AD104: 0.01452819803
A105: 90 | B105: 2018-11-05 | C105: 272.440002 | D105: 274.01001 | E105: 271.350006 | F105: 273.390015 | G105: 65622500 | H105: 270.61084 | I105: 0.9898343946 | J105: 1 | K105: 269.67 | L105: 271.22 | M105: 268.59 | N105: 270.61 | O105: 65622500 | U105: 1997-09-19 | V105: 0.348 | W105: 95.031197 | X105: 199709 | Y105: 199609 | Z105: 1996-09-20 | AA105: 5 | AB105: 1 | AC105: 1.364 | AD105: 0.0143531813
A106: 91 | B106: 2018-11-02 | C106: 274.75 | D106: 275.230011 | E106: 269.589996 | F106: 271.890015 | G106: 122634100 | H106: 269.126068 | I106: 0.9898343196 | J106: 1 | K106: 271.96 | L106: 272.43 | M106: 266.85 | N106: 269.13 | O106: 122634100 | U106: 1997-06-20 | V106: 0.35 | W106: 89.578102 | X106: 199706 | Y106: 199606 | Z106: 1996-06-21 | AA106: 5 | AB106: 1 | AC106: 1.368 | AD106: 0.01527158948
A107: 92 | B107: 2018-11-01 | C107: 271.600006 | D107: 273.730011 | E107: 270.380005 | F107: 273.51001 | G107: 99495000 | H107: 270.729584 | I107: 0.9898342807 | J107: 1 | K107: 268.84 | L107: 270.95 | M107: 267.63 | N107: 270.73 | O107: 99495000 | U107: 1997-03-21 | V107: 0.299 | W107: 78.4375 | X107: 199703 | Y107: 199603 | Z107: 1996-03-15 | AA107: 5 | AB107: 1 | AC107: 1.369 | AD107: 0.01745338645
A108: 93 | B108: 2018-10-31 | C108: 270.649994 | D108: 273.230011 | E108: 270.119995 | F108: 270.630005 | G108: 128296300 | H108: 267.878876 | I108: 0.9898343534 | J108: 1 | K108: 267.9 | L108: 270.45 | M108: 267.37 | N108: 267.88 | O108: 128296300 | U108: 1996-12-20 | V108: 0.367 | W108: 74.843697 | X108: 199612 | Y108: 199512 | Z108: 1995-12-15 | AA108: 5 | AB108: 1 | AC108: 1.355 | AD108: 0.01810439695
A109: 94 | B109: 2018-10-30 | C109: 263.670013 | D109: 268.119995 | E109: 263.119995 | F109: 267.769989 | G109: 157116000 | H109: 265.047943 | I109: 0.9898343873 | J109: 1 | K109: 260.99 | L109: 265.39 | M109: 260.45 | N109: 265.05 | O109: 157116000 | U109: 1996-09-20 | V109: 0.352 | W109: 68.640602 | X109: 199609 | Y109: 199509 | Z109: 1995-09-15 | AA109: 5 | AB109: 1 | AC109: 1.37 | AD109: 0.01995903241
A110: 95 | B110: 2018-10-29 | C110: 268.799988 | D110: 270.25 | E110: 259.850006 | F110: 263.859985 | G110: 160749100 | H110: 261.177673 | I110: 0.9898343358 | J110: 1 | K110: 266.07 | L110: 267.5 | M110: 257.21 | N110: 261.18 | O110: 160749100 | U110: 1996-06-21 | V110: 0.351 | W110: 66.8125 | X110: 199606 | Y110: 199506 | Z110: 1995-06-16 | AA110: 5 | AB110: 1 | AC110: 1.33 | AD110: 0.01990645463
A111: 96 | B111: 2018-10-26 | C111: 265.920013 | D111: 271 | E111: 262.290009 | F111: 265.329987 | G111: 201574600 | H111: 262.632721 | I111: 0.9898342964 | J111: 1 | K111: 263.22 | L111: 268.25 | M111: 259.62 | N111: 262.63 | O111: 201574600 | U111: 1996-03-15 | V111: 0.285 | W111: 64.125 | X111: 199603 | Y111: 199503 | Z111: 1995-03-17 | AA111: 5 | AB111: 1 | AC111: 1.295 | AD111: 0.02019493177
A112: 97 | B112: 2018-10-25 | C112: 267.380005 | D112: 271.809998 | E112: 266.230011 | F112: 270.079987 | G112: 138061500 | H112: 267.334442 | I112: 0.9898343264 | J112: 1 | K112: 264.66 | L112: 269.05 | M112: 263.52 | N112: 267.33 | O112: 138061500 | U112: 1995-12-15 | V112: 0.382 | W112: 61.8125 | X112: 199512 | Y112: 199412 | Z112: 1994-12-16 | AA112: 5 | AB112: 1 | AC112: 1.278 | AD112: 0.02067542973
A113: 98 | B113: 2018-10-24 | C113: 273.329987 | D113: 273.76001 | E113: 264.700012 | F113: 265.320007 | G113: 177806700 | H113: 262.622864 | I113: 0.9898343776 | J113: 1 | K113: 270.55 | L113: 270.98 | M113: 262.01 | N113: 262.62 | O113: 177806700 | U113: 1995-09-15 | V113: 0.312 | W113: 58.4375 | X113: 199509 | Y113: 199409 | Z113: 1994-09-19 | AA113: 5 | AB113: 1 | AC113: 1.259 | AD113: 0.02154438503
A114: 99 | B114: 2018-10-23 | C114: 270.950012 | D114: 274.869995 | E114: 268.609985 | F114: 273.609985 | G114: 146352700 | H114: 270.828552 | I114: 0.9898343147 | J114: 1 | K114: 268.2 | L114: 272.08 | M114: 265.88 | N114: 270.83 | O114: 146352700 | U114: 1995-06-16 | V114: 0.316 | W114: 53.9687 | X114: 199506 | Y114: 199406 | Z114: 1994-06-17 | AA114: 6 | AB114: 1 | AC114: 1.235 | AD114: 0.0228836344
A115: 100 | B115: 2018-10-22 | C115: 277 | D115: 277.359985 | E115: 274.410004 | F115: 275.01001 | G115: 82415800 | H115: 272.214325 | I115: 0.9898342428 | J115: 1 | K115: 274.18 | L115: 274.54 | M115: 271.62 | N115: 272.21 | O115: 82415800 | U115: 1995-03-17 | V115: 0.268 | W115: 49.5625 | X115: 199503 | Y115: 199403 | Z115: 1994-03-18 | AA115: 6 | AB115: 1 | AC115: 1.224 | AD115: 0.02469609079
A116: 101 | B116: 2018-10-19 | C116: 277.130005 | D116: 279.299988 | E116: 275.470001 | F116: 276.25 | G116: 139901600 | H116: 273.441742 | I116: 0.9898343602 | J116: 1 | K116: 274.31 | L116: 276.46 | M116: 272.67 | N116: 273.44 | O116: 139901600 | U116: 1994-12-16 | V116: 0.363 | W116: 45.75 | X116: 199412 | Y116: 199312 | Z116: 1993-12-17 | AA116: 6 | AB116: 1 | AC116: 1.227 | AD116: 0.02681967213
A117: 102 | B117: 2018-10-18 | C117: 279.399994 | D117: 280.070007 | E117: 274.970001 | F117: 276.399994 | G117: 134557500 | H117: 273.59021 | I117: 0.9898343558 | J117: 1 | K117: 276.56 | L117: 277.22 | M117: 272.17 | N117: 273.59 | O117: 134557500 | U117: 1994-09-19 | V117: 0 | W117: 47.0625 | X117: 199409 | Y117: 199309 | Z117: 1993-09-17 | AA117: 6 | AB117: 1 | AC117: 1.181 | AD117: 0.02509428951
A118: 103 | B118: 2018-10-17 | C118: 280.440002 | D118: 281.149994 | E118: 277.559998 | F118: 280.450012 | G118: 110626000 | H118: 277.59906 | I118: 0.9898343666 | J118: 1 | K118: 277.59 | L118: 278.29 | M118: 274.74 | N118: 277.6 | O118: 110626000 | U118: 1994-09-16 | V118: 0.288 | W118: 47.015598 | X118: 199409 | Y118: 199309 | Z118: 1993-09-17 | AA118: 5 | AB118: 1 | AC118: 1.181 | AD118: 0.02511932317
A119: 104 | B119: 2018-10-16 | C119: 276.600006 | D119: 280.820007 | E119: 276.070007 | F119: 280.399994 | G119: 118255800 | H119: 277.54953 | I119: 0.9898342936 | J119: 1 | K119: 273.79 | L119: 277.97 | M119: 273.26 | N119: 277.55 | O119: 118255800 | U119: 1994-06-17 | V119: 0.305 | W119: 45.875 | X119: 199406 | Y119: 199306 | Z119: 1993-06-18 | AA119: 5 | AB119: 1 | AC119: 1.179 | AD119: 0.02570027248
A120: 105 | B120: 2018-10-15 | C120: 275.549988 | D120: 277.040009 | E120: 274.299988 | F120: 274.399994 | G120: 102263700 | H120: 271.610535 | I120: 0.9898343329 | J120: 1 | K120: 272.75 | L120: 274.22 | M120: 271.51 | N120: 271.61 | O120: 102263700 | U120: 1994-03-18 | V120: 0.271 | W120: 46.9687 | X120: 199403 | Y120: 199303 | Z120: 1993-03-19 | AA120: 5 | AB120: 1 | AC120: 1.192 | AD120: 0.0253786032
A121: 106 | B121: 2018-10-12 | C121: 276.769989 | D121: 277.089996 | E121: 272.369995 | F121: 275.950012 | G121: 183186500 | H121: 273.144806 | I121: 0.989834369 | J121: 1 | K121: 273.96 | L121: 274.27 | M121: 269.6 | N121: 273.14 | O121: 183186500 | U121: 1993-12-17 | V121: 0.317 | W121: 46.5625 | X121: 199312 | Y121: 199212 | Z121: 1993-03-19 | AA121: 4 | AB121: 0 | AC121: 1.134 | AD121: 0.02435436242
A122: 107 | B122: 2018-10-11 | C122: 277.079987 | D122: 278.899994 | E122: 270.359985 | F122: 272.170013 | G122: 274840500 | H122: 269.403229 | I122: 0.989834354 | J122: 1 | K122: 274.26 | L122: 276.06 | M122: 267.61 | N122: 269.4 | O122: 274840500 | U122: 1993-09-17 | V122: 0.286 | W122: 45.8125 | X122: 199309 | Y122: 199209 | Z122: 1993-03-19 | AA122: 3 | AB122: 0 | AC122: 0.817 | AD122: 0.01783356071
A123: 108 | B123: 2018-10-10 | C123: 286.829987 | D123: 286.910004 | E123: 277.880005 | F123: 278.299988 | G123: 214731000 | H123: 275.470886 | I123: 0.9898343438 | J123: 1 | K123: 283.91 | L123: 283.99 | M123: 275.06 | N123: 275.47 | O123: 214731000 | U123: 1993-06-18 | V123: 0.318 | W123: 44.5 | X123: 199306 | Y123: 199206 | Z123: 1993-03-19 | AA123: 2 | AB123: 0 | AC123: 0.531 | AD123: 0.01193258427
A124: 109 | B124: 2018-10-09 | C124: 287.390015 | D124: 288.859985 | E124: 286.769989 | F124: 287.399994 | G124: 74339000 | H124: 284.478363 | I124: 0.9898342691 | J124: 1 | K124: 284.47 | L124: 285.92 | M124: 283.85 | N124: 284.48 | O124: 74339000 | U124: 1993-03-19 | V124: 0.213 | W124: 45.0312 | X124: 199303 | Y124: 199203 | Z124: 1993-03-19 | AA124: 1 | AB124: 1 | AC124: 0.213 | AD124: 0.004730053829
A125: 110 | B125: 2018-10-08 | C125: 287.049988 | D125: 288.220001 | E125: 285.5 | F125: 287.820007 | G125: 87742200 | H125: 284.894104 | I125: 0.9898342612 | J125: 1 | K125: 284.13 | L125: 285.29 | M125: 282.6 | N125: 284.89 | O125: 87742200
A126: 111 | B126: 2018-10-05 | C126: 289.690002 | D126: 290.269989 | E126: 286.220001 | F126: 287.820007 | G126: 105951700 | H126: 284.894104 | I126: 0.9898342612 | J126: 1 | K126: 286.75 | L126: 287.32 | M126: 283.31 | N126: 284.89 | O126: 105951700
A127: 112 | B127: 2018-10-04 | C127: 291.179993 | D127: 291.23999 | E127: 287.660004 | F127: 289.440002 | G127: 111545900 | H127: 286.49765 | I127: 0.9898343284 | J127: 1 | K127: 288.22 | L127: 288.28 | M127: 284.74 | N127: 286.5 | O127: 111545900
A128: 113 | B128: 2018-10-03 | C128: 292.73999 | D128: 293.209991 | E128: 291.320007 | F128: 291.720001 | G128: 64694600 | H128: 288.754486 | I128: 0.9898343789 | J128: 1 | K128: 289.76 | L128: 290.23 | M128: 288.36 | N128: 288.75 | O128: 64694600
A129: 114 | B129: 2018-10-02 | C129: 291.559998 | D129: 292.359985 | E129: 291.140015 | F129: 291.559998 | G129: 47258200 | H129: 288.5961 | I129: 0.9898343462 | J129: 1 | K129: 288.6 | L129: 289.39 | M129: 288.18 | N129: 288.6 | O129: 47258200
A130: 115 | B130: 2018-10-01 | C130: 292.109985 | D130: 292.929993 | E130: 290.980011 | F130: 291.730011 | G130: 62078900 | H130: 288.764374 | I130: 0.9898343095 | J130: 1 | K130: 289.14 | L130: 289.95 | M130: 288.02 | N130: 288.76 | O130: 62078900
A131: 116 | B131: 2018-09-28 | C131: 289.98999 | D131: 291.279999 | E131: 289.950012 | F131: 290.720001 | G131: 70091400 | H131: 287.764648 | I131: 0.9898343664 | J131: 1 | K131: 287.04 | L131: 288.32 | M131: 287 | N131: 287.76 | O131: 70091400
A132: 117 | B132: 2018-09-27 | C132: 290.410004 | D132: 291.910004 | E132: 290.100006 | F132: 290.690002 | G132: 59249500 | H132: 287.734924 | I132: 0.9898342634 | J132: 1 | K132: 287.46 | L132: 288.94 | M132: 287.15 | N132: 287.73 | O132: 59249500
A133: 118 | B133: 2018-09-26 | C133: 290.910004 | D133: 292.23999 | E133: 289.410004 | F133: 289.880005 | G133: 79739700 | H133: 286.933197 | I133: 0.9898343868 | J133: 1 | K133: 287.95 | L133: 289.27 | M133: 286.47 | N133: 286.93 | O133: 79739700
A134: 119 | B134: 2018-09-25 | C134: 291.529999 | D134: 291.649994 | E134: 290.480011 | F134: 290.75 | G134: 44370000 | H134: 287.794312 | I134: 0.9898342631 | J134: 1 | K134: 288.57 | L134: 288.69 | M134: 287.53 | N134: 287.79 | O134: 44370000
A135: 120 | B135: 2018-09-24 | C135: 291.339996 | D135: 291.5 | E135: 290.369995 | F135: 291.019989 | G135: 53409600 | H135: 288.061584 | I135: 0.9898343581 | J135: 1 | K135: 288.38 | L135: 288.54 | M135: 287.42 | N135: 288.06 | O135: 53409600
A136: 121 | B136: 2018-09-21 | C136: 293.089996 | D136: 293.220001 | E136: 291.809998 | F136: 291.98999 | G136: 105479700 | H136: 289.021698 | I136: 0.9898342679 | J136: 1 | K136: 290.11 | L136: 290.24 | M136: 288.84 | N136: 289.02 | O136: 105479700
A137: 122 | B137: 2018-09-20 | C137: 292.640015 | D137: 293.940002 | E137: 291.23999 | F137: 293.579987 | G137: 100360600 | H137: 289.286011 | I137: 0.9853737442 | J137: 1 | K137: 288.36 | L137: 289.64 | M137: 286.98 | N137: 289.29 | O137: 100360600
A138: 123 | B138: 2018-09-19 | C138: 290.970001 | D138: 291.690002 | E138: 290.829987 | F138: 291.220001 | G138: 49080600 | H138: 286.960541 | I138: 0.9853737381 | J138: 1 | K138: 286.71 | L138: 287.42 | M138: 286.58 | N138: 286.96 | O138: 49080600
A139: 124 | B139: 2018-09-18 | C139: 289.579987 | D139: 291.579987 | E139: 289.549988 | F139: 290.910004 | G139: 61930400 | H139: 286.65509 | I139: 0.985373779 | J139: 1 | K139: 285.34 | L139: 287.32 | M139: 285.31 | N139: 286.66 | O139: 61930400
A140: 125 | B140: 2018-09-17 | C140: 290.820007 | D140: 290.859985 | E140: 289.029999 | F140: 289.339996 | G140: 68244000 | H140: 285.108002 | I140: 0.9853736294 | J140: 1 | K140: 286.57 | L140: 286.61 | M140: 284.8 | N140: 285.11 | O140: 68244000
A141: 126 | B141: 2018-09-14 | C141: 291.059998 | D141: 291.269989 | E141: 290 | F141: 290.880005 | G141: 55079900 | H141: 286.625488 | I141: 0.9853736354 | J141: 1 | K141: 286.8 | L141: 287.01 | M141: 285.76 | N141: 286.63 | O141: 55079900
A142: 127 | B142: 2018-09-13 | C142: 290.320007 | D142: 291.040009 | E142: 290 | F142: 290.829987 | G142: 51034200 | H142: 286.576233 | I142: 0.9853737435 | J142: 1 | K142: 286.07 | L142: 286.78 | M142: 285.76 | N142: 286.58 | O142: 51034200
A143: 128 | B143: 2018-09-12 | C143: 289.059998 | D143: 289.799988 | E143: 288.230011 | F143: 289.119995 | G143: 59810800 | H143: 284.891235 | I143: 0.9853736854 | J143: 1 | K143: 284.83 | L143: 285.56 | M143: 284.01 | N143: 284.89 | O143: 59810800
A144: 129 | B144: 2018-09-11 | C144: 287.369995 | D144: 289.549988 | E144: 286.980011 | F144: 289.049988 | G144: 50530500 | H144: 284.822235 | I144: 0.9853736268 | J144: 1 | K144: 283.17 | L144: 285.31 | M144: 282.78 | N144: 284.82 | O144: 50530500
A145: 130 | B145: 2018-09-10 | C145: 288.73999 | D145: 289.040009 | E145: 287.880005 | F145: 288.100006 | G145: 50210900 | H145: 283.886169 | I145: =IF(F145=0,1,H145/F145) -> 0.9853737004 | J145: =INDEX(OFFSET($T$15,0,0,$S$13+1,1),MATCH(B145,OFFSET($Q$15,0,0,$S$13+1,1),-1)) -> 1 | K145: =ROUND($I145*C145,2) -> 284.52 | L145: =ROUND($I145*D145,2) -> 284.81 | M145: =ROUND($I145*E145,2) -> 283.67 | N145: =ROUND($I145*F145,2) -> 283.89 | O145: =G145*J145 -> 50210900
A146: 131 | B146: 2018-09-07 | C146: 286.980011 | D146: 288.700012 | E146: 286.709991 | F146: 287.600006 | G146: 73524800 | H146: 283.393494 | I146: 0.9853737416 | J146: 1 | K146: 282.78 | L146: 284.48 | M146: 282.52 | N146: 283.39 | O146: 73524800
A147: 132 | B147: 2018-09-06 | C147: 289.149994 | D147: 289.48999 | E147: 287 | F147: 288.160004 | G147: 65909900 | H147: 283.945313 | I147: 0.9853737821 | J147: 1 | K147: 284.92 | L147: 285.26 | M147: 282.8 | N147: 283.95 | O147: 65909900
A148: 133 | B148: 2018-09-05 | C148: 289.410004 | D148: 289.640015 | E148: 287.890015 | F148: 289.029999 | G148: 72452400 | H148: 284.802551 | I148: 0.9853736705 | J148: 1 | K148: 285.18 | L148: 285.4 | M148: 283.68 | N148: 284.8 | O148: 72452400
A149: 134 | B149: 2018-09-04 | C149: 289.839996 | D149: 290.209991 | E149: 288.679993 | F149: 289.809998 | G149: 57594400 | H149: 285.571136 | I149: 0.9853736516 | J149: 1 | K149: 285.6 | L149: 285.97 | M149: 284.46 | N149: 285.57 | O149: 57594400
A150: 135 | B150: 2018-08-31 | C150: 289.839996 | D150: 290.809998 | E150: 289.290009 | F150: 290.309998 | G150: 66140800 | H150: 286.063843 | I150: 0.9853737211 | J150: 1 | K150: 285.6 | L150: 286.56 | M150: 285.06 | N150: 286.06 | O150: 66140800
A151: 136 | B151: 2018-08-30 | C151: 290.940002 | D151: 291.359985 | E151: 289.630005 | F151: 290.299988 | G151: 61229500 | H151: 286.053986 | I151: 0.9853737438 | J151: 1 | K151: 286.68 | L151: 287.1 | M151: 285.39 | N151: 286.05 | O151: 61229500
A152: 137 | B152: 2018-08-29 | C152: 290.160004 | D152: 291.73999 | E152: 289.890015 | F152: 291.480011 | G152: 61485500 | H152: 287.216736 | I152: 0.9853736969 | J152: 1 | K152: 285.92 | L152: 287.47 | M152: 285.65 | N152: 287.22 | O152: 61485500
A153: 138 | B153: 2018-08-28 | C153: 290.299988 | D153: 290.420013 | E153: 289.399994 | F153: 289.920013 | G153: 46943500 | H153: 285.679565 | I153: 0.9853737313 | J153: 1 | K153: 286.05 | L153: 286.17 | M153: 285.17 | N153: 285.68 | O153: 46943500
A154: 139 | B154: 2018-08-27 | C154: 288.859985 | D154: 289.899994 | E154: 288.679993 | F154: 289.779999 | G154: 57072400 | H154: 285.541626 | I154: 0.9853738249 | J154: 1 | K154: 284.64 | L154: 285.66 | M154: 284.46 | N154: 285.54 | O154: 57072400
A155: 140 | B155: 2018-08-24 | C155: 286.440002 | D155: 287.670013 | E155: 286.380005 | F155: 287.51001 | G155: 57487400 | H155: 283.304779 | I155: 0.9853736188 | J155: 1 | K155: 282.25 | L155: 283.46 | M155: 282.19 | N155: 283.3 | O155: 57487400
A156: 141 | B156: 2018-08-23 | C156: 285.970001 | D156: 286.940002 | E156: 285.429993 | F156: 285.790009 | G156: 49204900 | H156: 281.609985 | I156: 0.9853737924 | J156: 1 | K156: 281.79 | L156: 282.74 | M156: 281.26 | N156: 281.61 | O156: 49204900
A157: 142 | B157: 2018-08-22 | C157: 285.880005 | D157: 286.76001 | E157: 285.579987 | F157: 286.170013 | G157: 44993300 | H157: 281.984406 | I157: 0.9853737051 | J157: 1 | K157: 281.7 | L157: 282.57 | M157: 281.4 | N157: 281.98 | O157: 44993300
A158: 143 | B158: 2018-08-21 | C158: 286.25 | D158: 287.309998 | E158: 285.709991 | F158: 286.339996 | G158: 67272000 | H158: 282.151917 | I158: 0.9853737548 | J158: 1 | K158: 282.06 | L158: 283.11 | M158: 281.53 | N158: 282.15 | O158: 67272000
A159: 144 | B159: 2018-08-20 | C159: 285.570007 | D159: 285.970001 | E159: 285.059998 | F159: 285.670013 | G159: 39807500 | H159: 281.49173 | I159: 0.9853737431 | J159: 1 | K159: 281.39 | L159: 281.79 | M159: 280.89 | N159: 281.49 | O159: 39807500
A160: 145 | B160: 2018-08-17 | C160: 283.829987 | D160: 285.559998 | E160: 283.369995 | F160: 285.059998 | G160: 65618500 | H160: 280.890656 | I160: 0.9853738089 | J160: 1 | K160: 279.68 | L160: 281.38 | M160: 279.23 | N160: 280.89 | O160: 65618500
A161: 146 | B161: 2018-08-16 | C161: 283.399994 | D161: 285.040009 | E161: 283.359985 | F161: 284.059998 | G161: 69967900 | H161: 279.905273 | I161: 0.9853737766 | J161: 1 | K161: 279.25 | L161: 280.87 | M161: 279.22 | N161: 279.91 | O161: 69967900
A162: 147 | B162: 2018-08-15 | C162: 282.380005 | D162: 282.540009 | E162: 280.160004 | F162: 281.779999 | G162: 102925400 | H162: 277.6586 | I162: 0.9853736993 | J162: 1 | K162: 278.25 | L162: 278.41 | M162: 276.06 | N162: 277.66 | O162: 102925400
A163: 148 | B163: 2018-08-14 | C163: 282.920013 | D163: 284.170013 | E163: 282.480011 | F163: 283.899994 | G163: 43842000 | H163: 279.747589 | I163: 0.9853737052 | J163: 1 | K163: 278.78 | L163: 280.01 | M163: 278.35 | N163: 279.75 | O163: 43842000
A164: 149 | B164: 2018-08-13 | C164: 283.470001 | D164: 284.160004 | E164: 281.769989 | F164: 282.100006 | G164: 65686900 | H164: 277.973938 | I164: 0.9853737401 | J164: 1 | K164: 279.32 | L164: 280 | M164: 277.65 | N164: 277.97 | O164: 65686900
A165: 150 | B165: 2018-08-10 | C165: 283.450012 | D165: 284.059998 | E165: 282.359985 | F165: 283.160004 | G165: 77076000 | H165: 279.018433 | I165: 0.985373743 | J165: 1 | K165: 279.3 | L165: 279.91 | M165: 278.23 | N165: 279.02 | O165: 77076000
A166: 151 | B166: 2018-08-09 | C166: 285.529999 | D166: 285.970001 | E166: 284.920013 | F166: 285.070007 | G166: 35652400 | H166: 280.900482 | I166: 0.9853736805 | J166: 1 | K166: 281.35 | L166: 281.79 | M166: 280.75 | N166: 280.9 | O166: 35652400
A167: 152 | B167: 2018-08-08 | C167: 285.390015 | D167: 285.910004 | E167: 284.940002 | F167: 285.459991 | G167: 42114600 | H167: 281.28476 | I167: 0.9853736736 | J167: 1 | K167: 281.22 | L167: 281.73 | M167: 280.77 | N167: 281.28 | O167: 42114600
A168: 153 | B168: 2018-08-07 | C168: 285.390015 | D168: 286.01001 | E168: 285.23999 | F168: 285.579987 | G168: 43196600 | H168: 281.403015 | I168: 0.985373723 | J168: 1 | K168: 281.22 | L168: 281.83 | M168: 281.07 | N168: 281.4 | O168: 43196600
A169: 154 | B169: 2018-08-06 | C169: 283.640015 | D169: 284.98999 | E169: 283.200012 | F169: 284.640015 | G169: 39400900 | H169: 280.476776 | I169: 0.9853736693 | J169: 1 | K169: 279.49 | L169: 280.82 | M169: 279.06 | N169: 280.48 | O169: 39400900
A170: 155 | B170: 2018-08-03 | C170: 282.529999 | D170: 283.660004 | E170: 282.329987 | F170: 283.600006 | G170: 53935400 | H170: 279.451996 | I170: 0.9853737309 | J170: 1 | K170: 278.4 | L170: 279.51 | M170: 278.2 | N170: 279.45 | O170: 53935400
A171: 156 | B171: 2018-08-02 | C171: 279.390015 | D171: 282.579987 | E171: 279.160004 | F171: 282.390015 | G171: 63426400 | H171: 278.259735 | I171: 0.9853738455 | J171: 1 | K171: 275.3 | L171: 278.45 | M171: 275.08 | N171: 278.26 | O171: 63426400
A172: 157 | B172: 2018-08-01 | C172: 281.559998 | D172: 282.130005 | E172: 280.130005 | F172: 280.859985 | G172: 53853300 | H172: 276.752045 | I172: 0.9853737085 | J172: 1 | K172: 277.44 | L172: 278 | M172: 276.03 | N172: 276.75 | O172: 53853300
A173: 158 | B173: 2018-07-31 | C173: 280.809998 | D173: 282.019989 | E173: 280.380005 | F173: 281.329987 | G173: 68570500 | H173: 277.215149 | I173: 0.9853736246 | J173: 1 | K173: 276.7 | L173: 277.9 | M173: 276.28 | N173: 277.22 | O173: 68570500
A174: 159 | B174: 2018-07-30 | C174: 281.51001 | D174: 281.690002 | E174: 279.359985 | F174: 279.950012 | G174: 63742500 | H174: 275.855408 | I174: 0.9853738031 | J174: 1 | K174: 277.39 | L174: 277.57 | M174: 275.27 | N174: 275.86 | O174: 63742500
A175: 160 | B175: 2018-07-27 | C175: 283.709991 | D175: 283.820007 | E175: 280.380005 | F175: 281.420013 | G175: 76768700 | H175: 277.303894 | I175: 0.9853737517 | J175: 1 | K175: 279.56 | L175: 279.67 | M175: 276.28 | N175: 277.3 | O175: 76768700
A176: 161 | B176: 2018-07-26 | C176: 283.200012 | D176: 284.109985 | E176: 283.089996 | F176: 283.339996 | G176: 57919500 | H176: 279.195801 | I176: 0.9853737734 | J176: 1 | K176: 279.06 | L176: 279.95 | M176: 278.95 | N176: 279.2 | O176: 57919500
A177: 162 | B177: 2018-07-25 | C177: 281.329987 | D177: 284.369995 | E177: 281.279999 | F177: 284.01001 | G177: 78882900 | H177: 279.855988 | I177: 0.9853736775 | J177: 1 | K177: 277.22 | L177: 280.21 | M177: 277.17 | N177: 279.86 | O177: 78882900
A178: 163 | B178: 2018-07-24 | C178: 281.790009 | D178: 282.559998 | E178: 280.630005 | F178: 281.609985 | G178: 68026900 | H178: 277.491089 | I178: 0.9853737573 | J178: 1 | K178: 277.67 | L178: 278.43 | M178: 276.53 | N178: 277.49 | O178: 68026900
A179: 164 | B179: 2018-07-23 | C179: 279.450012 | D179: 280.429993 | E179: 279.059998 | F179: 280.200012 | G179: 47047600 | H179: 276.101715 | I179: 0.985373673 | J179: 1 | K179: 275.36 | L179: 276.33 | M179: 274.98 | N179: 276.1 | O179: 47047600
A180: 165 | B180: 2018-07-20 | C180: 279.769989 | D180: 280.480011 | E180: 279.5 | F180: 279.679993 | G180: 82337700 | H180: 275.589325 | I180: 0.9853737554 | J180: 1 | K180: 275.68 | L180: 276.38 | M180: 275.41 | N180: 275.59 | O180: 82337700
A181: 166 | B181: 2018-07-19 | C181: 280.309998 | D181: 280.73999 | E181: 279.459991 | F181: 280 | G181: 61412100 | H181: 275.904663 | I181: 0.9853737964 | J181: 1 | K181: 276.21 | L181: 276.63 | M181: 275.37 | N181: 275.9 | O181: 61412100
A182: 167 | B182: 2018-07-18 | C182: 280.559998 | D182: 281.179993 | E182: 280.059998 | F182: 281.059998 | G182: 44593500 | H182: 276.949158 | I182: 0.9853737991 | J182: 1 | K182: 276.46 | L182: 277.07 | M182: 275.96 | N182: 276.95 | O182: 44593500
A183: 168 | B183: 2018-07-17 | C183: 278.470001 | D183: 280.910004 | E183: 278.410004 | F183: 280.470001 | G183: 52315500 | H183: 276.367798 | I183: 0.9853738261 | J183: 1 | K183: 274.4 | L183: 276.8 | M183: 274.34 | N183: 276.37 | O183: 52315500
A184: 169 | B184: 2018-07-16 | C184: 279.640015 | D184: 279.799988 | E184: 278.839996 | F184: 279.339996 | G184: 48201000 | H184: 275.254272 | I184: 0.985373652 | J184: 1 | K184: 275.55 | L184: 275.71 | M184: 274.76 | N184: 275.25 | O184: 48201000
A185: 170 | B185: 2018-07-13 | C185: 279.170013 | D185: 279.929993 | E185: 278.660004 | F185: 279.589996 | G185: 48216000 | H185: 275.500641 | I185: 0.9853737435 | J185: 1 | K185: 275.09 | L185: 275.84 | M185: 274.58 | N185: 275.5 | O185: 48216000
A186: 171 | B186: 2018-07-12 | C186: 278.279999 | D186: 279.429993 | E186: 277.600006 | F186: 279.369995 | G186: 60124700 | H186: 275.283844 | I186: 0.9853736941 | J186: 1 | K186: 274.21 | L186: 275.34 | M186: 273.54 | N186: 275.28 | O186: 60124700
A187: 172 | B187: 2018-07-11 | C187: 277.149994 | D187: 278.040009 | E187: 276.519989 | F187: 276.859985 | G187: 77054700 | H187: 272.810577 | I187: 0.9853738055 | J187: 1 | K187: 273.1 | L187: 273.97 | M187: 272.48 | N187: 272.81 | O187: 77054700
A188: 173 | B188: 2018-07-10 | C188: 278.410004 | D188: 279.01001 | E188: 278.079987 | F188: 278.899994 | G188: 51966800 | H188: 274.820709 | I188: 0.9853736641 | J188: 1 | K188: 274.34 | L188: 274.93 | M188: 274.01 | N188: 274.82 | O188: 51966800
A189: 174 | B189: 2018-07-09 | C189: 276.549988 | D189: 277.959991 | E189: 276.5 | F189: 277.899994 | G189: 50550400 | H189: 273.835358 | I189: 0.9853737456 | J189: 1 | K189: 272.51 | L189: 273.89 | M189: 272.46 | N189: 273.84 | O189: 50550400
A190: 175 | B190: 2018-07-06 | C190: 273.140015 | D190: 275.839996 | E190: 272.709991 | F190: 275.420013 | G190: 66493700 | H190: 271.391632 | I190: 0.9853736809 | J190: 1 | K190: 269.14 | L190: 271.81 | M190: 268.72 | N190: 271.39 | O190: 66493700
A191: 176 | B191: 2018-07-05 | C191: 272.170013 | D191: 273.179993 | E191: 270.959991 | F191: 273.109985 | G191: 56925900 | H191: 269.115387 | I191: 0.9853736655 | J191: 1 | K191: 268.19 | L191: 269.18 | M191: 267 | N191: 269.12 | O191: 56925900
A192: 177 | B192: 2018-07-03 | C192: 272.869995 | D192: 272.980011 | E192: 270.420013 | F192: 270.899994 | G192: 42187100 | H192: 266.937744 | I192: 0.9853737538 | J192: 1 | K192: 268.88 | L192: 268.99 | M192: 266.46 | N192: 266.94 | O192: 42187100
A193: 178 | B193: 2018-07-02 | C193: 269.51001 | D193: 272.040009 | E193: 269.23999 | F193: 271.859985 | G193: 63554800 | H193: 267.883698 | I193: 0.9853737688 | J193: 1 | K193: 265.57 | L193: 268.06 | M193: 265.3 | N193: 267.88 | O193: 63554800
A194: 179 | B194: 2018-06-29 | C194: 272.119995 | D194: 273.660004 | E194: 271.149994 | F194: 271.279999 | G194: 97592500 | H194: 267.312195 | I194: 0.9853737687 | J194: 1 | K194: 268.14 | L194: 269.66 | M194: 267.18 | N194: 267.31 | O194: 97592500
A195: 180 | B195: 2018-06-28 | C195: 269.290009 | D195: 271.75 | E195: 268.48999 | F195: 270.890015 | G195: 76650500 | H195: 266.927887 | I195: 0.9853736654 | J195: 1 | K195: 265.35 | L195: 267.78 | M195: 264.56 | N195: 266.93 | O195: 76650500
A196: 181 | B196: 2018-06-27 | C196: 272.26001 | D196: 273.869995 | E196: 269.179993 | F196: 269.350006 | G196: 105110700 | H196: 265.4104 | I196: 0.9853736554 | J196: 1 | K196: 268.28 | L196: 269.86 | M196: 265.24 | N196: 265.41 | O196: 105110700
A197: 182 | B197: 2018-06-26 | C197: 271.640015 | D197: 272.559998 | E197: 270.790009 | F197: 271.600006 | G197: 68547400 | H197: 267.627502 | I197: 0.9853736969 | J197: 1 | K197: 267.67 | L197: 268.57 | M197: 266.83 | N197: 267.63 | O197: 68547400
A198: 183 | B198: 2018-06-25 | C198: 273.440002 | D198: 273.619995 | E198: 269.100006 | F198: 271 | G198: 137854200 | H198: 267.036285 | I198: 0.9853737454 | J198: 1 | K198: 269.44 | L198: 269.62 | M198: 265.16 | N198: 267.04 | O198: 137854200
A199: 184 | B199: 2018-06-22 | C199: 275.660004 | D199: 275.790009 | E199: 274.48999 | F199: 274.73999 | G199: 54898500 | H199: 270.721588 | I199: 0.9853738002 | J199: 1 | K199: 271.63 | L199: 271.76 | M199: 270.48 | N199: 270.72 | O199: 54898500
A200: 185 | B200: 2018-06-21 | C200: 275.959991 | D200: 275.980011 | E200: 273.679993 | F200: 274.23999 | G200: 71061400 | H200: 270.228882 | I200: 0.9853737305 | J200: 1 | K200: 271.92 | L200: 271.94 | M200: 269.68 | N200: 270.23 | O200: 71061400
... 4300 more rows

Sheet CalculationsAndCharts
A1: Mean Reversion Backtest
A2: =InputPriceData!A1 -> SPDR S&P 500 ETF (SPY) -NYSEArca (Daily)
A4: User Charting Controls | E4: Click to Shift Chart One Bar:
A5: Data Control
A6: =InputPriceData!$B$10 -> 6580 | B6: Available Input Data Rows | E6: Earliest: | F6: =OFFSET(InputPriceData!B15,CalculationsAndCharts!A6,0,1,1) -> 1993-01-29
B7: Use Close Adjusted: | C7: TRUE | E7: Latest: | F7: =OFFSET(InputPriceData!B15,1,0,1,1) -> 2019-03-18
A8: =MIN(A6-A11,LOOKUP(2,1/(B:B<>0),ROW(A:A))-32) -> 1000 | B8: Logically Available for Calc / Plot | E8: $ Change: | F8: =G33-G34 -> 0.27
F10: Y-axis Range
A11: 0 | B11: Input Data Offset (Pan) | E11: Max High+ | F11: =CEILING(MAX(MAX(OFFSET($E$33,0,0,$A$12,1)))+2*F14,0.1) -> 296.8 | AB11: The order in which you add a series to a stack determines the series position in the stack.
A12: 475 | B12: Data Points to Plot (Zoom) | E12: Min Low- | F12: =FLOOR(MIN(MIN(OFFSET($F$33,0,0,$A$12,1)))-2*F14,0.1) -> 220.1
B13: First: | C13: =OFFSET(B32,A12,0,1,1) -> 2017-04-27 | E13: White space %: | F13: 0.05 | AB13: The first positive series starts at zero and goes up, second positive series sits on top of that. And so on.
B14: ="Last: " & IF(OFFSET(InputPriceData!P15,1+A11,0,1,1)="","",TEXT(OFFSET(InputPriceData!P15,1+A11,0,1,1),"H:MM AM/PM")) -> Last: | C14: =B33 -> 2019-03-18 | E14: Allowance: | F14: =FLOOR((CEILING(MAX(MAX(OFFSET($E$33,0,0,$A$12,1))),1)-FLOOR(MIN(MIN(OFFSET($F$33,0,0,$A$12,1))),1))*F13,0.01) -> 3.25 | AB14: Likewise, the first negative series starts as zero and goes down, second negative series sits below that.
A15: User Controls
D16: Begin Money: | E16: 1000 | AB16: A visually floating bar is accomplished by inserting a dummy series in front of the series you wish to have
A17: 10 | B17: :Lookback Window Length | AB17: float and then format that dummy with No Fill and No Outline, which renders it invisible on the chart.
A18: 10 | B18: :Length Multiplier | C18: <==> | D18: LMA Length: | E18: =A17*A18 -> 100
A19: 1 | B19: :Max Position | AB19: The two series designated as "blank" below are used for that purpose.
A20: 1 | B20: :% Of Equity Per Trade
A21: 0 | B21: :% Slippage Adjustment (per trade) | AB21: Note the computations in the various columns to get the vertical spacing to work out.
A22: 0.5 | B22: :Z Score Neutral Zone Limit (+-)
A23: 1 | B23: :Z Score Trade Zone Limit (+-) | AB23: Also, to get a shaded area that straddles zero you will need a positive and a negative bar with the same fill.
AB24: Here those bars are Low and Hi neutral.
A25: Help! I would like to plot data
A26: From | B26: 1993-02-01 | C26: =OFFSET(InputPriceData!$A$15,MATCH(B26,OFFSET(InputPriceData!B15,1,0,InputPriceData!$B$10,1),0),0,1,1)-C27 -> 475 | E26: 449 | AB26: Last step is to remove the un necessary series names from the chart ledged.
A27: To | B27: 1994-12-15 | C27: =OFFSET(InputPriceData!$A$15,MATCH(B27,OFFSET(InputPriceData!$B$15,1,0,InputPriceData!$B$10,1),0),0,1,1)-1 -> 6104 | E27: =$A$12-$E$26+1 -> 27
H28: @ Cursor => | I28: =OFFSET(A32,$E$27,0,1,1)&"(RR)" -> 27(RR) | J28: =OFFSET($B$32,E27,0,1,1) -> 2019-02-07 | K28: =TEXT(OFFSET(D32,$E$27,0,1,1),"#,##0.00")&"(o)" -> 269.75(o) | L28: =TEXT(OFFSET(E32,$E$27,0,1,1),"#,##0.00")&"(h)" -> 270.36(h) | M28: =TEXT(OFFSET(F32,$E$27,0,1,1),"#,##0.00")&"(l)" -> 267.11(l) | N28: =TEXT(OFFSET(G32,$E$27,0,1,1),"#,##0.00")&"(c)" -> 268.96(c) | Y28: ="Position Change Value with "&TEXT(A21,"##0.00%")&" Slippage" -> Position Change Value with 0.00% Slippage | AB28: Z Score Floating Bar Stack Work Area
E29: Cursor ==> | AB29: Background Shading to Highlight Z Score Values Relative to the Z Score Decision Boundaries | AU29: Chart Cursor work area
R30: Z Score Neutral Zone Violation | X30: Position Change Value | AB30: Floating Bar Max | AC30: 5
A31: Rel Row | O31: Position Count | P31: Position Value | Q31: Fixed Fraction | S31: Short Signal | T31: Exit Short | U31: Long Signal | V31: Exit Long | W31: Position Change | AB31: Low Neutral | AC31: low blank | AD31: low long | AE31: Hi Neutral | AF31: high blank | AG31: hi Short | AP31: Used To Color Vol Bars
B32: Date | C32: Volume | D32: Open | E32: High | F32: Low | G32: Close | H32: ="mu(" & $A$17 & ")" -> mu(10) | I32: ="SMA(" & A17 & ")" -> SMA(10) | J32: ="LMA(" & $E$18 & ")" -> LMA(100) | K32: ="STD(" & $A$17 & ")" -> STD(10) | L32: Z Score | M32: Money | N32: Equity | AB32: Exit All | AD32: Allow Long | AG32: Allow Short | AP32: Up Vol | AQ32: Dn Vol | AU32: Volume Cursor | AV32: =MAX(OFFSET(C33,0,0,A12,1)) -> 355026800 | AW32: Z Cursor | AY32: Price Chart Cursor
A33: 1 | B33: =OFFSET(InputPriceData!B$15,CalculationsAndCharts!$A33+$A$11,0,1,1) -> 2019-03-18 | C33: =OFFSET(InputPriceData!G$15,CalculationsAndCharts!$A33+$A$11,IF($C$7,8,0),1,1) -> 21051589 | D33: =OFFSET(InputPriceData!C$15,CalculationsAndCharts!$A33+$A$11,IF($C$7,8,0),1,1) -> 280.54 | E33: =OFFSET(InputPriceData!D$15,CalculationsAndCharts!$A33+$A$11,IF($C$7,8,0),1,1) -> 282.66 | F33: =OFFSET(InputPriceData!E$15,CalculationsAndCharts!$A33+$A$11,IF($C$7,8,0),1,1) -> 281.3 | G33: =OFFSET(InputPriceData!F$15,CalculationsAndCharts!$A33+$A$11,IF($C$7,8,0),1,1) -> 281.58 | H33: =IF(LogicallyAvailableRows-$A33<$A$17,NA(),AVERAGE(OFFSET($G33,0,0,$A$17,1))) -> 277.938 | I33: =IF(LogicallyAvailableRows-$A33<$A$17,NA(),AVERAGE(OFFSET($G33,0,0,$A$17,1))) -> 277.938 | J33: =IF(LogicallyAvailableRows-$A33<$E$18,NA(),AVERAGE(OFFSET($G33,0,0,$E$18,1))) -> 266.0662 | K33: =IF(LogicallyAvailableRows-$A33<$A$17,NA(),_xlfn.STDEV.P(OFFSET($G33,0,0,$A$17,1))) -> 2.762367825 | L33: =IF(LogicallyAvailableRows-$A33<$A$17,NA(),(G33-H33)/K33) -> 1.318434123 | M33: =IF(LogicallyAvailableRows-$A33<$E$18,NA(),IF(LogicallyAvailableRows-$A33=$E$18,$E$16,M34+Y34)) -> 1044.31 | N33: =IF(LogicallyAvailableRows-$A33<$E$18,NA(),M33+P33) -> 1044.31 | O33: =IF(LogicallyAvailableRows-$A33<$E$18,NA(),IF(LogicallyAvailableRows-$A33=$E$18,0,O34+W34)) -> 0 | P33: =IF(LogicallyAvailableRows-$A33<$E$18,NA(),O33*G33) -> 0 | Q33: =IF(LogicallyAvailableRows-$A33<$E$18,NA(),ROUND(IF(N33>0,(N33*$A$20)/G33,0),0)) -> 4 | R33: =IF(LogicallyAvailableRows-$A33<$E$18,NA(),IF(LogicallyAvailableRows-$A33=$E$18,FALSE,OR(AND(L34>$A$22,L33<-$A$22),AND(L34<-$A$22,L33>$A$22),ABS(L33)<$A$22))) -> FALSE | S33: =IF(LogicallyAvailableRows-$A33<$E$18,NA(),AND((L33>$A$23),(O33>($A$19*-1)),(I33<J33))) -> FALSE | T33: =AND(R33,O33<0) -> FALSE | U33: =IF(LogicallyAvailableRows-$A33<$E$18,NA(),AND((L33<-$A$23),(O33<$A$19),(I33>J33))) -> FALSE | V33: =AND(R33,O33>0) -> FALSE | W33: =IF(LogicallyAvailableRows-$A33<$E$18,NA(),IF(R33,-O33,IF(S33,-Q33,IF(U33,Q33,0)))) -> 0 | X33: =IF(LogicallyAvailableRows-$A33<$E$18,NA(),G33*-W33) -> 0 | Y33: =IF(LogicallyAvailableRows-$A33<$E$18,NA(),G33*-W33*IF(W33<0,1-$A$21,1+$A$21)) -> 0 | AB33: =-$A$22 -> -0.5 | AC33: =-$A$23-AB33 -> -0.5 | AD33: =-$AC$30-(-$A$23) -> -4 | AE33: =$A$22 -> 0.5 | AF33: =$A$23-AE33 -> 0.5 | AG33: =$AC$30-$A$23 -> 4 | AP33: =IF(G33>=D33,C33,NA()) -> 21051589 | AQ33: =IF(G33<D33,C33,NA()) ->  | AU33: =$E$27 -> 27 | AV33: 0 | AW33: =$E$27 -> 27 | AX33: -6 | AY33: =E27 -> 27 | AZ33: 216.4089525
A34: 2 | B34: =OFFSET(InputPriceData!B$15,CalculationsAndCharts!$A34+$A$11,0,1,1) -> 2019-03-15 | C34: =OFFSET(InputPriceData!G$15,CalculationsAndCharts!$A34+$A$11,IF($C$7,8,0),1,1) -> 81251300 | D34: =OFFSET(InputPriceData!C$15,CalculationsAndCharts!$A34+$A$11,IF($C$7,8,0),1,1) -> 280.54 | E34: =OFFSET(InputPriceData!D$15,CalculationsAndCharts!$A34+$A$11,IF($C$7,8,0),1,1) -> 282.21 | F34: =OFFSET(InputPriceData!E$15,CalculationsAndCharts!$A34+$A$11,IF($C$7,8,0),1,1) -> 280.33 | G34: =OFFSET(InputPriceData!F$15,CalculationsAndCharts!$A34+$A$11,IF($C$7,8,0),1,1) -> 281.31 | H34: =IF(LogicallyAvailableRows-A34<$A$17,NA(),AVERAGE(OFFSET($G34,0,0,$A$17,1))) -> 277.597 | I34: =IF(LogicallyAvailableRows-A34<$A$17,NA(),AVERAGE(OFFSET($G34,0,0,$A$17,1))) -> 277.597 | J34: =IF(LogicallyAvailableRows-A34<$E$18,NA(),AVERAGE(OFFSET($G34,0,0,$E$18,1))) -> 265.9848 | K34: =IF(LogicallyAvailableRows-A34<$A$17,NA(),_xlfn.STDEV.P(OFFSET($G34,0,0,$A$17,1))) -> 2.488646419 | L34: =IF(LogicallyAvailableRows-A34<$A$17,NA(),(G34-H34)/K34) -> 1.491975707 | M34: 1044.31 | N34: 1044.31 | O34: 0 | P34: 0 | Q34: 4 | R34: FALSE | S34: FALSE | T34: FALSE | U34: FALSE | V34: FALSE | W34: 0 | X34: 0 | Y34: 0 | AB34: =-$A$22 -> -0.5 | AC34: =-$A$23-AB34 -> -0.5 | AD34: =-$AC$30-(-$A$23) -> -4 | AE34: =$A$22 -> 0.5 | AF34: =$A$23-AE34 -> 0.5 | AG34: =$AC$30-$A$23 -> 4 | AP34: =IF(G34>=D34,C34,NA()) -> 81251300 | AQ34: =IF(G34<D34,C34,NA()) ->  | AU34: =$E$27 -> 27 | AV34: =CEILING(AV32,10^INT(LOG10(AV32))) -> 400000000 | AW34: =$E$27 -> 27 | AX34: 6 | AY34: =E27 -> 27 | AZ34: 297.496
A35: 3 | B35: =OFFSET(InputPriceData!B$15,CalculationsAndCharts!$A35+$A$11,0,1,1) -> 2019-03-14 | C35: =OFFSET(InputPriceData!G$15,CalculationsAndCharts!$A35+$A$11,IF($C$7,8,0),1,1) -> 67518400 | D35: =OFFSET(InputPriceData!C$15,CalculationsAndCharts!$A35+$A$11,IF($C$7,8,0),1,1) -> 280.14 | E35: =OFFSET(InputPriceData!D$15,CalculationsAndCharts!$A35+$A$11,IF($C$7,8,0),1,1) -> 280.6 | F35: =OFFSET(InputPriceData!E$15,CalculationsAndCharts!$A35+$A$11,IF($C$7,8,0),1,1) -> 279.44 | G35: =OFFSET(InputPriceData!F$15,CalculationsAndCharts!$A35+$A$11,IF($C$7,8,0),1,1) -> 279.93 | H35: 277.385 | I35: 277.385 | J35: 265.9076 | K35: 2.241326616 | L35: 1.135488233 | M35: 1044.31 | N35: 1044.31 | O35: 0 | P35: 0 | Q35: 4 | R35: FALSE | S35: FALSE | T35: FALSE | U35: FALSE | V35: FALSE | W35: 0 | X35: 0 | Y35: 0 | AB35: -0.5 | AC35: -0.5 | AD35: -4 | AE35: 0.5 | AF35: 0.5 | AG35: 4 | AP35: =IF(G35>=D35,C35,NA()) ->  | AQ35: =IF(G35<D35,C35,NA()) -> 67518400
A36: 4 | B36: =OFFSET(InputPriceData!B$15,CalculationsAndCharts!$A36+$A$11,0,1,1) -> 2019-03-13 | C36: =OFFSET(InputPriceData!G$15,CalculationsAndCharts!$A36+$A$11,IF($C$7,8,0),1,1) -> 80639200 | D36: =OFFSET(InputPriceData!C$15,CalculationsAndCharts!$A36+$A$11,IF($C$7,8,0),1,1) -> 279.25 | E36: =OFFSET(InputPriceData!D$15,CalculationsAndCharts!$A36+$A$11,IF($C$7,8,0),1,1) -> 281.14 | F36: =OFFSET(InputPriceData!E$15,CalculationsAndCharts!$A36+$A$11,IF($C$7,8,0),1,1) -> 279.07 | G36: =OFFSET(InputPriceData!F$15,CalculationsAndCharts!$A36+$A$11,IF($C$7,8,0),1,1) -> 280.11 | H36: 277.138 | I36: 277.138 | J36: 265.8843 | K36: 2.077353124 | L36: 1.43066673 | M36: 1044.31 | N36: 1044.31 | O36: 0 | P36: 0 | Q36: 4 | R36: FALSE | S36: FALSE | T36: FALSE | U36: FALSE | V36: FALSE | W36: 0 | X36: 0 | Y36: 0 | AB36: -0.5 | AC36: -0.5 | AD36: -4 | AE36: 0.5 | AF36: 0.5 | AG36: 4 | AP36: =IF(G36>=D36,C36,NA()) -> 80639200 | AQ36: =IF(G36<D36,C36,NA()) -> 
A37: 5 | B37: =OFFSET(InputPriceData!B$15,CalculationsAndCharts!$A37+$A$11,0,1,1) -> 2019-03-12 | C37: =OFFSET(InputPriceData!G$15,CalculationsAndCharts!$A37+$A$11,IF($C$7,8,0),1,1) -> 79667500 | D37: =OFFSET(InputPriceData!C$15,CalculationsAndCharts!$A37+$A$11,IF($C$7,8,0),1,1) -> 277.84 | E37: =OFFSET(InputPriceData!D$15,CalculationsAndCharts!$A37+$A$11,IF($C$7,8,0),1,1) -> 278.84 | F37: =OFFSET(InputPriceData!E$15,CalculationsAndCharts!$A37+$A$11,IF($C$7,8,0),1,1) -> 277.63 | G37: =OFFSET(InputPriceData!F$15,CalculationsAndCharts!$A37+$A$11,IF($C$7,8,0),1,1) -> 278.26 | H37: 276.925 | I37: 276.925 | J37: 265.8587 | K37: 1.859474388 | L37: 0.7179448174 | M37: 1044.31 | N37: 1044.31 | O37: 0 | P37: 0 | Q37: 4 | R37: FALSE | S37: FALSE | T37: FALSE | U37: FALSE | V37: FALSE | W37: 0 | X37: 0 | Y37: 0 | AB37: -0.5 | AC37: -0.5 | AD37: -4 | AE37: 0.5 | AF37: 0.5 | AG37: 4 | AP37: 79667500
A38: 6 | B38: =OFFSET(InputPriceData!B$15,CalculationsAndCharts!$A38+$A$11,0,1,1) -> 2019-03-11 | C38: =OFFSET(InputPriceData!G$15,CalculationsAndCharts!$A38+$A$11,IF($C$7,8,0),1,1) -> 65098900 | D38: =OFFSET(InputPriceData!C$15,CalculationsAndCharts!$A38+$A$11,IF($C$7,8,0),1,1) -> 274.05 | E38: =OFFSET(InputPriceData!D$15,CalculationsAndCharts!$A38+$A$11,IF($C$7,8,0),1,1) -> 277.4 | F38: =OFFSET(InputPriceData!E$15,CalculationsAndCharts!$A38+$A$11,IF($C$7,8,0),1,1) -> 274.02 | G38: =OFFSET(InputPriceData!F$15,CalculationsAndCharts!$A38+$A$11,IF($C$7,8,0),1,1) -> 277.22 | H38: 276.909 | I38: 276.909 | J38: 265.7922 | K38: 1.848574856 | L38: 0.1682377097 | M38: -64.57 | N38: 1044.31 | O38: 4 | P38: 1108.88 | Q38: 4 | R38: TRUE | S38: FALSE | T38: FALSE | U38: FALSE | V38: TRUE | W38: -4 | X38: 1108.88 | Y38: 1108.88 | AB38: -0.5 | AC38: -0.5 | AD38: -4 | AE38: 0.5 | AF38: 0.5 | AG38: 4 | AP38: 65098900
A39: 7 | B39: =OFFSET(InputPriceData!B$15,CalculationsAndCharts!$A39+$A$11,0,1,1) -> 2019-03-08 | C39: =OFFSET(InputPriceData!G$15,CalculationsAndCharts!$A39+$A$11,IF($C$7,8,0),1,1) -> 85795800 | D39: =OFFSET(InputPriceData!C$15,CalculationsAndCharts!$A39+$A$11,IF($C$7,8,0),1,1) -> 271.74 | E39: =OFFSET(InputPriceData!D$15,CalculationsAndCharts!$A39+$A$11,IF($C$7,8,0),1,1) -> 273.45 | F39: =OFFSET(InputPriceData!E$15,CalculationsAndCharts!$A39+$A$11,IF($C$7,8,0),1,1) -> 271.23 | G39: =OFFSET(InputPriceData!F$15,CalculationsAndCharts!$A39+$A$11,IF($C$7,8,0),1,1) -> 273.26 | H39: 277.016 | I39: 277.016 | J39: 265.7514 | K39: 1.893891232 | L39: -1.983218432 | M39: -64.57 | N39: 1028.47 | O39: 4 | P39: 1093.04 | Q39: 4 | R39: FALSE | S39: FALSE | T39: FALSE | U39: FALSE | V39: FALSE | W39: 0 | X39: 0 | Y39: 0 | AB39: -0.5 | AC39: -0.5 | AD39: -4 | AE39: 0.5 | AF39: 0.5 | AG39: 4 | AP39: 85795800
A40: 8 | B40: =OFFSET(InputPriceData!B$15,CalculationsAndCharts!$A40+$A$11,0,1,1) -> 2019-03-07 | C40: =OFFSET(InputPriceData!G$15,CalculationsAndCharts!$A40+$A$11,IF($C$7,8,0),1,1) -> 94885100 | D40: =OFFSET(InputPriceData!C$15,CalculationsAndCharts!$A40+$A$11,IF($C$7,8,0),1,1) -> 275.62 | E40: =OFFSET(InputPriceData!D$15,CalculationsAndCharts!$A40+$A$11,IF($C$7,8,0),1,1) -> 275.78 | F40: =OFFSET(InputPriceData!E$15,CalculationsAndCharts!$A40+$A$11,IF($C$7,8,0),1,1) -> 272.87 | G40: =OFFSET(InputPriceData!F$15,CalculationsAndCharts!$A40+$A$11,IF($C$7,8,0),1,1) -> 273.8 | H40: 277.482 | I40: 277.482 | J40: 265.7128 | K40: 1.428508313 | L40: -2.577513877 | M40: -64.57 | N40: 1030.63 | O40: 4 | P40: 1095.2 | Q40: 4 | R40: FALSE | S40: FALSE | T40: FALSE | U40: FALSE | V40: FALSE | W40: 0 | X40: 0 | Y40: 0 | AB40: -0.5 | AC40: -0.5 | AD40: -4 | AE40: 0.5 | AF40: 0.5 | AG40: 4 | AQ40: 94885100
A41: 9 | B41: =OFFSET(InputPriceData!B$15,CalculationsAndCharts!$A41+$A$11,0,1,1) -> 2019-03-06 | C41: =OFFSET(InputPriceData!G$15,CalculationsAndCharts!$A41+$A$11,IF($C$7,8,0),1,1) -> 75039800 | D41: =OFFSET(InputPriceData!C$15,CalculationsAndCharts!$A41+$A$11,IF($C$7,8,0),1,1) -> 277.93 | E41: =OFFSET(InputPriceData!D$15,CalculationsAndCharts!$A41+$A$11,IF($C$7,8,0),1,1) -> 277.94 | F41: =OFFSET(InputPriceData!E$15,CalculationsAndCharts!$A41+$A$11,IF($C$7,8,0),1,1) -> 275.76 | G41: =OFFSET(InputPriceData!F$15,CalculationsAndCharts!$A41+$A$11,IF($C$7,8,0),1,1) -> 276.11 | H41: 277.722 | I41: 277.722 | J41: 265.7295 | K41: 0.8897617659 | L41: -1.811720914 | M41: 1039.87 | N41: 1039.87 | O41: 0 | P41: 0 | Q41: 4 | R41: FALSE | S41: FALSE | T41: FALSE | U41: TRUE | V41: FALSE | W41: 4 | X41: -1104.44 | Y41: -1104.44 | AB41: -0.5 | AC41: -0.5 | AD41: -4 | AE41: 0.5 | AF41: 0.5 | AG41: 4 | AQ41: 75039800
A42: 10 | B42: =OFFSET(InputPriceData!B$15,CalculationsAndCharts!$A42+$A$11,0,1,1) -> 2019-03-05 | C42: =OFFSET(InputPriceData!G$15,CalculationsAndCharts!$A42+$A$11,IF($C$7,8,0),1,1) -> 59114600 | D42: =OFFSET(InputPriceData!C$15,CalculationsAndCharts!$A42+$A$11,IF($C$7,8,0),1,1) -> 278.31 | E42: =OFFSET(InputPriceData!D$15,CalculationsAndCharts!$A42+$A$11,IF($C$7,8,0),1,1) -> 278.53 | F42: =OFFSET(InputPriceData!E$15,CalculationsAndCharts!$A42+$A$11,IF($C$7,8,0),1,1) -> 277.19 | G42: =OFFSET(InputPriceData!F$15,CalculationsAndCharts!$A42+$A$11,IF($C$7,8,0),1,1) -> 277.8 | H42: 277.83 | I42: 277.83 | J42: 265.8132 | K42: 0.7405808531 | L42: -0.04050874374 | M42: 1039.87 | N42: 1039.87 | O42: 0 | P42: 0 | Q42: 4 | R42: TRUE | S42: FALSE | T42: FALSE | U42: FALSE | V42: FALSE | W42: 0 | X42: 0 | Y42: 0 | AB42: -0.5 | AC42: -0.5 | AD42: -4 | AE42: 0.5 | AF42: 0.5 | AG42: 4 | AQ42: 59114600
A43: 11 | B43: =OFFSET(InputPriceData!B$15,CalculationsAndCharts!$A43+$A$11,0,1,1) -> 2019-03-04 | C43: =OFFSET(InputPriceData!G$15,CalculationsAndCharts!$A43+$A$11,IF($C$7,8,0),1,1) -> 106494600 | D43: =OFFSET(InputPriceData!C$15,CalculationsAndCharts!$A43+$A$11,IF($C$7,8,0),1,1) -> 280.37 | E43: =OFFSET(InputPriceData!D$15,CalculationsAndCharts!$A43+$A$11,IF($C$7,8,0),1,1) -> 280.63 | F43: =OFFSET(InputPriceData!E$15,CalculationsAndCharts!$A43+$A$11,IF($C$7,8,0),1,1) -> 275.63 | G43: =OFFSET(InputPriceData!F$15,CalculationsAndCharts!$A43+$A$11,IF($C$7,8,0),1,1) -> 278.17 | H43: 277.713 | I43: 277.713 | J43: 265.8841 | K43: 0.8238209757 | L43: 0.554732173 | M43: 1039.87 | N43: 1039.87 | O43: 0 | P43: 0 | Q43: 4 | R43: FALSE | S43: FALSE | T43: FALSE | U43: FALSE | V43: FALSE | W43: 0 | X43: 0 | Y43: 0 | AB43: -0.5 | AC43: -0.5 | AD43: -4 | AE43: 0.5 | AF43: 0.5 | AG43: 4 | AQ43: 106494600
A44: 12 | B44: =OFFSET(InputPriceData!B$15,CalculationsAndCharts!$A44+$A$11,0,1,1) -> 2019-03-01 | C44: =OFFSET(InputPriceData!G$15,CalculationsAndCharts!$A44+$A$11,IF($C$7,8,0),1,1) -> 78880500 | D44: =OFFSET(InputPriceData!C$15,CalculationsAndCharts!$A44+$A$11,IF($C$7,8,0),1,1) -> 279.21 | E44: =OFFSET(InputPriceData!D$15,CalculationsAndCharts!$A44+$A$11,IF($C$7,8,0),1,1) -> 279.65 | F44: =OFFSET(InputPriceData!E$15,CalculationsAndCharts!$A44+$A$11,IF($C$7,8,0),1,1) -> 277.6 | G44: =OFFSET(InputPriceData!F$15,CalculationsAndCharts!$A44+$A$11,IF($C$7,8,0),1,1) -> 279.19 | H44: 277.511 | I44: 277.511 | J44: 265.9513 | K44: 0.9280565716 | L44: 1.809156954 | M44: 1039.87 | N44: 1039.87 | O44: 0 | P44: 0 | Q44: 4 | R44: FALSE | S44: FALSE | T44: FALSE | U44: FALSE | V44: FALSE | W44: 0 | X44: 0 | Y44: 0 | AB44: -0.5 | AC44: -0.5 | AD44: -4 | AE44: 0.5 | AF44: 0.5 | AG44: 4 | AQ44: 78880500
A45: 13 | B45: =OFFSET(InputPriceData!B$15,CalculationsAndCharts!$A45+$A$11,0,1,1) -> 2019-02-28 | C45: =OFFSET(InputPriceData!G$15,CalculationsAndCharts!$A45+$A$11,IF($C$7,8,0),1,1) -> 69268300 | D45: =OFFSET(InputPriceData!C$15,CalculationsAndCharts!$A45+$A$11,IF($C$7,8,0),1,1) -> 277.74 | E45: =OFFSET(InputPriceData!D$15,CalculationsAndCharts!$A45+$A$11,IF($C$7,8,0),1,1) -> 278.22 | F45: =OFFSET(InputPriceData!E$15,CalculationsAndCharts!$A45+$A$11,IF($C$7,8,0),1,1) -> 277.1 | G45: =OFFSET(InputPriceData!F$15,CalculationsAndCharts!$A45+$A$11,IF($C$7,8,0),1,1) -> 277.46 | H45: 276.91 | I45: 276.91 | J45: 266.0244 | K45: 1.447045265 | L45: 0.380084862 | M45: 1039.87 | N45: 1039.87 | O45: 0 | P45: 0 | Q45: 4 | R45: TRUE | S45: FALSE | T45: FALSE | U45: FALSE | V45: FALSE | W45: 0 | X45: 0 | Y45: 0 | AB45: -0.5 | AC45: -0.5 | AD45: -4 | AE45: 0.5 | AF45: 0.5 | AG45: 4 | AQ45: 69268300
A46: 14 | B46: =OFFSET(InputPriceData!B$15,CalculationsAndCharts!$A46+$A$11,0,1,1) -> 2019-02-27 | C46: =OFFSET(InputPriceData!G$15,CalculationsAndCharts!$A46+$A$11,IF($C$7,8,0),1,1) -> 56921600 | D46: =OFFSET(InputPriceData!C$15,CalculationsAndCharts!$A46+$A$11,IF($C$7,8,0),1,1) -> 277.3 | E46: =OFFSET(InputPriceData!D$15,CalculationsAndCharts!$A46+$A$11,IF($C$7,8,0),1,1) -> 278.36 | F46: =OFFSET(InputPriceData!E$15,CalculationsAndCharts!$A46+$A$11,IF($C$7,8,0),1,1) -> 276.26 | G46: =OFFSET(InputPriceData!F$15,CalculationsAndCharts!$A46+$A$11,IF($C$7,8,0),1,1) -> 277.98 | H46: 276.542 | I46: 276.542 | J46: 266.1373 | K46: 1.705272999 | L46: 0.8432667386 | M46: 1039.87 | N46: 1039.87 | O46: 0 | P46: 0 | Q46: 4 | R46: FALSE | S46: FALSE | T46: FALSE | U46: FALSE | V46: FALSE | W46: 0 | X46: 0 | Y46: 0 | AB46: -0.5 | AC46: -0.5 | AD46: -4 | AE46: 0.5 | AF46: 0.5 | AG46: 4 | AP46: 56921600
A47: 15 | B47: =OFFSET(InputPriceData!B$15,CalculationsAndCharts!$A47+$A$11,0,1,1) -> 2019-02-26 | C47: =OFFSET(InputPriceData!G$15,CalculationsAndCharts!$A47+$A$11,IF($C$7,8,0),1,1) -> 56844100 | D47: =OFFSET(InputPriceData!C$15,CalculationsAndCharts!$A47+$A$11,IF($C$7,8,0),1,1) -> 277.91 | E47: =OFFSET(InputPriceData!D$15,CalculationsAndCharts!$A47+$A$11,IF($C$7,8,0),1,1) -> 279.07 | F47: =OFFSET(InputPriceData!E$15,CalculationsAndCharts!$A47+$A$11,IF($C$7,8,0),1,1) -> 277.68 | G47: =OFFSET(InputPriceData!F$15,CalculationsAndCharts!$A47+$A$11,IF($C$7,8,0),1,1) -> 278.1 | H47: 276.034 | I47: 276.034 | J47: 266.2435 | K47: 1.941526204 | L47: 1.064111314 | M47: 1039.87 | N47: 1039.87 | O47: 0 | P47: 0 | Q47: 4 | R47: FALSE | S47: FALSE | T47: FALSE | U47: FALSE | V47: FALSE | W47: 0 | X47: 0 | Y47: 0 | AB47: -0.5 | AC47: -0.5 | AD47: -4 | AE47: 0.5 | AF47: 0.5 | AG47: 4 | AP47: 56844100
A48: 16 | B48: =OFFSET(InputPriceData!B$15,CalculationsAndCharts!$A48+$A$11,0,1,1) -> 2019-02-25 | C48: =OFFSET(InputPriceData!G$15,CalculationsAndCharts!$A48+$A$11,IF($C$7,8,0),1,1) -> 69030700 | D48: =OFFSET(InputPriceData!C$15,CalculationsAndCharts!$A48+$A$11,IF($C$7,8,0),1,1) -> 279.5 | E48: =OFFSET(InputPriceData!D$15,CalculationsAndCharts!$A48+$A$11,IF($C$7,8,0),1,1) -> 280.08 | F48: =OFFSET(InputPriceData!E$15,CalculationsAndCharts!$A48+$A$11,IF($C$7,8,0),1,1) -> 278.2 | G48: =OFFSET(InputPriceData!F$15,CalculationsAndCharts!$A48+$A$11,IF($C$7,8,0),1,1) -> 278.29 | H48: 275.167 | I48: 275.167 | J48: 266.3501 | K48: 2.636717846 | L48: 1.184427073 | M48: 1039.87 | N48: 1039.87 | O48: 0 | P48: 0 | Q48: 4 | R48: FALSE | S48: FALSE | T48: FALSE | U48: FALSE | V48: FALSE | W48: 0 | X48: 0 | Y48: 0 | AB48: -0.5 | AC48: -0.5 | AD48: -4 | AE48: 0.5 | AF48: 0.5 | AG48: 4 | AQ48: 69030700
A49: 17 | B49: =OFFSET(InputPriceData!B$15,CalculationsAndCharts!$A49+$A$11,0,1,1) -> 2019-02-22 | C49: =OFFSET(InputPriceData!G$15,CalculationsAndCharts!$A49+$A$11,IF($C$7,8,0),1,1) -> 78114600 | D49: =OFFSET(InputPriceData!C$15,CalculationsAndCharts!$A49+$A$11,IF($C$7,8,0),1,1) -> 276.89 | E49: =OFFSET(InputPriceData!D$15,CalculationsAndCharts!$A49+$A$11,IF($C$7,8,0),1,1) -> 278.13 | F49: =OFFSET(InputPriceData!E$15,CalculationsAndCharts!$A49+$A$11,IF($C$7,8,0),1,1) -> 276.18 | G49: =OFFSET(InputPriceData!F$15,CalculationsAndCharts!$A49+$A$11,IF($C$7,8,0),1,1) -> 277.92 | H49: 274.266 | I49: 274.266 | J49: 266.4448 | K49: 2.937829811 | L49: 1.243775247 | M49: 1039.87 | N49: 1039.87 | O49: 0 | P49: 0 | Q49: 4 | R49: FALSE | S49: FALSE | T49: FALSE | U49: FALSE | V49: FALSE | W49: 0 | X49: 0 | Y49: 0 | AB49: -0.5 | AC49: -0.5 | AD49: -4 | AE49: 0.5 | AF49: 0.5 | AG49: 4 | AP49: 78114600
A50: 18 | B50: =OFFSET(InputPriceData!B$15,CalculationsAndCharts!$A50+$A$11,0,1,1) -> 2019-02-21 | C50: =OFFSET(InputPriceData!G$15,CalculationsAndCharts!$A50+$A$11,IF($C$7,8,0),1,1) -> 64214700 | D50: =OFFSET(InputPriceData!C$15,CalculationsAndCharts!$A50+$A$11,IF($C$7,8,0),1,1) -> 276.48 | E50: =OFFSET(InputPriceData!D$15,CalculationsAndCharts!$A50+$A$11,IF($C$7,8,0),1,1) -> 276.88 | F50: =OFFSET(InputPriceData!E$15,CalculationsAndCharts!$A50+$A$11,IF($C$7,8,0),1,1) -> 275.14 | G50: =OFFSET(InputPriceData!F$15,CalculationsAndCharts!$A50+$A$11,IF($C$7,8,0),1,1) -> 276.2 | H50: 273.37 | I50: 273.37 | J50: 266.5429 | K50: 3.050937561 | L50: 0.927583716 | M50: 1039.87 | N50: 1039.87 | O50: 0 | P50: 0 | Q50: 4 | R50: FALSE | S50: FALSE | T50: FALSE | U50: FALSE | V50: FALSE | W50: 0 | X50: 0 | Y50: 0 | AB50: -0.5 | AC50: -0.5 | AD50: -4 | AE50: 0.5 | AF50: 0.5 | AG50: 4 | AQ50: 64214700
A51: 19 | B51: =OFFSET(InputPriceData!B$15,CalculationsAndCharts!$A51+$A$11,0,1,1) -> 2019-02-20 | C51: =OFFSET(InputPriceData!G$15,CalculationsAndCharts!$A51+$A$11,IF($C$7,8,0),1,1) -> 76610800 | D51: =OFFSET(InputPriceData!C$15,CalculationsAndCharts!$A51+$A$11,IF($C$7,8,0),1,1) -> 276.59 | E51: =OFFSET(InputPriceData!D$15,CalculationsAndCharts!$A51+$A$11,IF($C$7,8,0),1,1) -> 277.7 | F51: =OFFSET(InputPriceData!E$15,CalculationsAndCharts!$A51+$A$11,IF($C$7,8,0),1,1) -> 276.03 | G51: =OFFSET(InputPriceData!F$15,CalculationsAndCharts!$A51+$A$11,IF($C$7,8,0),1,1) -> 277.19 | H51: 272.904 | I51: 272.904 | J51: 266.6502 | K51: 2.936845927 | L51: 1.459388782 | M51: 1039.87 | N51: 1039.87 | O51: 0 | P51: 0 | Q51: 4 | R51: FALSE | S51: FALSE | T51: FALSE | U51: FALSE | V51: FALSE | W51: 0 | X51: 0 | Y51: 0 | AB51: -0.5 | AC51: -0.5 | AD51: -4 | AE51: 0.5 | AF51: 0.5 | AG51: 4 | AP51: 76610800
A52: 20 | B52: =OFFSET(InputPriceData!B$15,CalculationsAndCharts!$A52+$A$11,0,1,1) -> 2019-02-19 | C52: =OFFSET(InputPriceData!G$15,CalculationsAndCharts!$A52+$A$11,IF($C$7,8,0),1,1) -> 59120800 | D52: =OFFSET(InputPriceData!C$15,CalculationsAndCharts!$A52+$A$11,IF($C$7,8,0),1,1) -> 275.27 | E52: =OFFSET(InputPriceData!D$15,CalculationsAndCharts!$A52+$A$11,IF($C$7,8,0),1,1) -> 277.36 | F52: =OFFSET(InputPriceData!E$15,CalculationsAndCharts!$A52+$A$11,IF($C$7,8,0),1,1) -> 275.26 | G52: =OFFSET(InputPriceData!F$15,CalculationsAndCharts!$A52+$A$11,IF($C$7,8,0),1,1) -> 276.63 | H52: 272.375 | I52: 272.375 | J52: 266.7562 | K52: 2.570806294 | L52: 1.655122757 | M52: 1039.87 | N52: 1039.87 | O52: 0 | P52: 0 | Q52: 4 | R52: FALSE | S52: FALSE | T52: FALSE | U52: FALSE | V52: FALSE | W52: 0 | X52: 0 | Y52: 0 | AB52: -0.5 | AC52: -0.5 | AD52: -4 | AE52: 0.5 | AF52: 0.5 | AG52: 4 | AP52: 59120800
A53: 21 | B53: =OFFSET(InputPriceData!B$15,CalculationsAndCharts!$A53+$A$11,0,1,1) -> 2019-02-15 | C53: =OFFSET(InputPriceData!G$15,CalculationsAndCharts!$A53+$A$11,IF($C$7,8,0),1,1) -> 97088700 | D53: =OFFSET(InputPriceData!C$15,CalculationsAndCharts!$A53+$A$11,IF($C$7,8,0),1,1) -> 275.15 | E53: =OFFSET(InputPriceData!D$15,CalculationsAndCharts!$A53+$A$11,IF($C$7,8,0),1,1) -> 276.19 | F53: =OFFSET(InputPriceData!E$15,CalculationsAndCharts!$A53+$A$11,IF($C$7,8,0),1,1) -> 274.92 | G53: =OFFSET(InputPriceData!F$15,CalculationsAndCharts!$A53+$A$11,IF($C$7,8,0),1,1) -> 276.15 | H53: 271.789 | I53: 271.789 | J53: 266.8705 | K53: 2.170886685 | L53: 2.008856579 | M53: 1039.87 | N53: 1039.87 | O53: 0 | P53: 0 | Q53: 4 | R53: FALSE | S53: FALSE | T53: FALSE | U53: FALSE | V53: FALSE | W53: 0 | X53: 0 | Y53: 0 | AB53: -0.5 | AC53: -0.5 | AD53: -4 | AE53: 0.5 | AF53: 0.5 | AG53: 4 | AP53: 97088700
A54: 22 | B54: =OFFSET(InputPriceData!B$15,CalculationsAndCharts!$A54+$A$11,0,1,1) -> 2019-02-14 | C54: =OFFSET(InputPriceData!G$15,CalculationsAndCharts!$A54+$A$11,IF($C$7,8,0),1,1) -> 83234400 | D54: =OFFSET(InputPriceData!C$15,CalculationsAndCharts!$A54+$A$11,IF($C$7,8,0),1,1) -> 272.58 | E54: =OFFSET(InputPriceData!D$15,CalculationsAndCharts!$A54+$A$11,IF($C$7,8,0),1,1) -> 274.43 | F54: =OFFSET(InputPriceData!E$15,CalculationsAndCharts!$A54+$A$11,IF($C$7,8,0),1,1) -> 271.67 | G54: =OFFSET(InputPriceData!F$15,CalculationsAndCharts!$A54+$A$11,IF($C$7,8,0),1,1) -> 273.18 | H54: 271.062 | I54: 271.062 | J54: 266.9992 | K54: 1.768789417 | L54: 1.197429146 | M54: 1039.87 | N54: 1039.87 | O54: 0 | P54: 0 | Q54: 4 | R54: FALSE | S54: FALSE | T54: FALSE | U54: FALSE | V54: FALSE | W54: 0 | X54: 0 | Y54: 0 | AB54: -0.5 | AC54: -0.5 | AD54: -4 | AE54: 0.5 | AF54: 0.5 | AG54: 4 | AP54: 83234400
A55: 23 | B55: =OFFSET(InputPriceData!B$15,CalculationsAndCharts!$A55+$A$11,0,1,1) -> 2019-02-13 | C55: =OFFSET(InputPriceData!G$15,CalculationsAndCharts!$A55+$A$11,IF($C$7,8,0),1,1) -> 65277200 | D55: =OFFSET(InputPriceData!C$15,CalculationsAndCharts!$A55+$A$11,IF($C$7,8,0),1,1) -> 273.82 | E55: =OFFSET(InputPriceData!D$15,CalculationsAndCharts!$A55+$A$11,IF($C$7,8,0),1,1) -> 274.72 | F55: =OFFSET(InputPriceData!E$15,CalculationsAndCharts!$A55+$A$11,IF($C$7,8,0),1,1) -> 273.36 | G55: =OFFSET(InputPriceData!F$15,CalculationsAndCharts!$A55+$A$11,IF($C$7,8,0),1,1) -> 273.78 | H55: 270.619 | I55: 270.619 | J55: 267.1603 | K55: 1.737328121 | L55: 1.819460562 | M55: 1039.87 | N55: 1039.87 | O55: 0 | P55: 0 | Q55: 4 | R55: FALSE | S55: FALSE | T55: FALSE | U55: FALSE | V55: FALSE | W55: 0 | X55: 0 | Y55: 0 | AB55: -0.5 | AC55: -0.5 | AD55: -4 | AE55: 0.5 | AF55: 0.5 | AG55: 4 | AQ55: 65277200
A56: 24 | B56: =OFFSET(InputPriceData!B$15,CalculationsAndCharts!$A56+$A$11,0,1,1) -> 2019-02-12 | C56: =OFFSET(InputPriceData!G$15,CalculationsAndCharts!$A56+$A$11,IF($C$7,8,0),1,1) -> 72270200 | D56: =OFFSET(InputPriceData!C$15,CalculationsAndCharts!$A56+$A$11,IF($C$7,8,0),1,1) -> 271.23 | E56: =OFFSET(InputPriceData!D$15,CalculationsAndCharts!$A56+$A$11,IF($C$7,8,0),1,1) -> 273.32 | F56: =OFFSET(InputPriceData!E$15,CalculationsAndCharts!$A56+$A$11,IF($C$7,8,0),1,1) -> 271.15 | G56: =OFFSET(InputPriceData!F$15,CalculationsAndCharts!$A56+$A$11,IF($C$7,8,0),1,1) -> 272.9 | H56: 269.882 | I56: 269.882 | J56: 267.2921 | K56: 1.802086568 | L56: 1.674725317 | M56: 1039.87 | N56: 1039.87 | O56: 0 | P56: 0 | Q56: 4 | R56: FALSE | S56: FALSE | T56: FALSE | U56: FALSE | V56: FALSE | W56: 0 | X56: 0 | Y56: 0 | AB56: -0.5 | AC56: -0.5 | AD56: -4 | AE56: 0.5 | AF56: 0.5 | AG56: 4 | AP56: 72270200
A57: 25 | B57: =OFFSET(InputPriceData!B$15,CalculationsAndCharts!$A57+$A$11,0,1,1) -> 2019-02-11 | C57: =OFFSET(InputPriceData!G$15,CalculationsAndCharts!$A57+$A$11,IF($C$7,8,0),1,1) -> 68021400 | D57: =OFFSET(InputPriceData!C$15,CalculationsAndCharts!$A57+$A$11,IF($C$7,8,0),1,1) -> 270.01 | E57: =OFFSET(InputPriceData!D$15,CalculationsAndCharts!$A57+$A$11,IF($C$7,8,0),1,1) -> 270.3 | F57: =OFFSET(InputPriceData!E$15,CalculationsAndCharts!$A57+$A$11,IF($C$7,8,0),1,1) -> 268.85 | G57: =OFFSET(InputPriceData!F$15,CalculationsAndCharts!$A57+$A$11,IF($C$7,8,0),1,1) -> 269.43 | H57: 268.817 | I57: 268.817 | J57: 267.4297 | K57: 2.650886833 | L57: 0.2312433682 | M57: 1039.87 | N57: 1039.87 | O57: 0 | P57: 0 | Q57: 4 | R57: TRUE | S57: FALSE | T57: FALSE | U57: FALSE | V57: FALSE | W57: 0 | X57: 0 | Y57: 0 | AB57: -0.5 | AC57: -0.5 | AD57: -4 | AE57: 0.5 | AF57: 0.5 | AG57: 4 | AQ57: 68021400
A58: 26 | B58: =OFFSET(InputPriceData!B$15,CalculationsAndCharts!$A58+$A$11,0,1,1) -> 2019-02-08 | C58: =OFFSET(InputPriceData!G$15,CalculationsAndCharts!$A58+$A$11,IF($C$7,8,0),1,1) -> 75788900 | D58: =OFFSET(InputPriceData!C$15,CalculationsAndCharts!$A58+$A$11,IF($C$7,8,0),1,1) -> 267.57 | E58: =OFFSET(InputPriceData!D$15,CalculationsAndCharts!$A58+$A$11,IF($C$7,8,0),1,1) -> 269.39 | F58: =OFFSET(InputPriceData!E$15,CalculationsAndCharts!$A58+$A$11,IF($C$7,8,0),1,1) -> 266.66 | G58: =OFFSET(InputPriceData!F$15,CalculationsAndCharts!$A58+$A$11,IF($C$7,8,0),1,1) -> 269.28 | H58: 268.134 | I58: 268.134 | J58: 267.5865 | K58: 3.223079894 | L58: 0.3555605315 | M58: 1039.87 | N58: 1039.87 | O58: 0 | P58: 0 | Q58: 4 | R58: TRUE | S58: FALSE | T58: FALSE | U58: FALSE | V58: FALSE | W58: 0 | X58: 0 | Y58: 0 | AB58: -0.5 | AC58: -0.5 | AD58: -4 | AE58: 0.5 | AF58: 0.5 | AG58: 4 | AP58: 75788900
A59: 27 | B59: =OFFSET(InputPriceData!B$15,CalculationsAndCharts!$A59+$A$11,0,1,1) -> 2019-02-07 | C59: =OFFSET(InputPriceData!G$15,CalculationsAndCharts!$A59+$A$11,IF($C$7,8,0),1,1) -> 95482000 | D59: =OFFSET(InputPriceData!C$15,CalculationsAndCharts!$A59+$A$11,IF($C$7,8,0),1,1) -> 269.75 | E59: =OFFSET(InputPriceData!D$15,CalculationsAndCharts!$A59+$A$11,IF($C$7,8,0),1,1) -> 270.36 | F59: =OFFSET(InputPriceData!E$15,CalculationsAndCharts!$A59+$A$11,IF($C$7,8,0),1,1) -> 267.11 | G59: =OFFSET(InputPriceData!F$15,CalculationsAndCharts!$A59+$A$11,IF($C$7,8,0),1,1) -> 268.96 | H59: 267.667 | I59: 267.667 | J59: 267.76 | K59: 3.358672506 | L59: 0.3849735268 | M59: 2115.71 | N59: 1039.87 | O59: -4 | P59: -1075.84 | Q59: 4 | R59: TRUE | S59: FALSE | T59: TRUE | U59: FALSE | V59: FALSE | W59: 4 | X59: -1075.84 | Y59: -1075.84 | AB59: -0.5 | AC59: -0.5 | AD59: -4 | AE59: 0.5 | AF59: 0.5 | AG59: 4 | AQ59: 95482000
A60: 28 | B60: =OFFSET(InputPriceData!B$15,CalculationsAndCharts!$A60+$A$11,0,1,1) -> 2019-02-06 | C60: =OFFSET(InputPriceData!G$15,CalculationsAndCharts!$A60+$A$11,IF($C$7,8,0),1,1) -> 58347800 | D60: =OFFSET(InputPriceData!C$15,CalculationsAndCharts!$A60+$A$11,IF($C$7,8,0),1,1) -> 271.59 | E60: =OFFSET(InputPriceData!D$15,CalculationsAndCharts!$A60+$A$11,IF($C$7,8,0),1,1) -> 272.14 | F60: =OFFSET(InputPriceData!E$15,CalculationsAndCharts!$A60+$A$11,IF($C$7,8,0),1,1) -> 270.73 | G60: =OFFSET(InputPriceData!F$15,CalculationsAndCharts!$A60+$A$11,IF($C$7,8,0),1,1) -> 271.54 | H60: 267.01 | I60: 267.01 | J60: 267.9362 | K60: 3.669675735 | L60: 1.234441495 | M60: 2115.71 | N60: 1029.55 | O60: -4 | P60: -1086.16 | Q60: 4 | R60: FALSE | S60: FALSE | T60: FALSE | U60: FALSE | V60: FALSE | W60: 0 | X60: 0 | Y60: 0 | AB60: -0.5 | AC60: -0.5 | AD60: -4 | AE60: 0.5 | AF60: 0.5 | AG60: 4 | AQ60: 58347800
A61: 29 | B61: =OFFSET(InputPriceData!B$15,CalculationsAndCharts!$A61+$A$11,0,1,1) -> 2019-02-05 | C61: =OFFSET(InputPriceData!G$15,CalculationsAndCharts!$A61+$A$11,IF($C$7,8,0),1,1) -> 79552800 | D61: =OFFSET(InputPriceData!C$15,CalculationsAndCharts!$A61+$A$11,IF($C$7,8,0),1,1) -> 271.25 | E61: =OFFSET(InputPriceData!D$15,CalculationsAndCharts!$A61+$A$11,IF($C$7,8,0),1,1) -> 272.24 | F61: =OFFSET(InputPriceData!E$15,CalculationsAndCharts!$A61+$A$11,IF($C$7,8,0),1,1) -> 270.69 | G61: =OFFSET(InputPriceData!F$15,CalculationsAndCharts!$A61+$A$11,IF($C$7,8,0),1,1) -> 271.9 | H61: 266.081 | I61: 266.081 | J61: 268.0697 | K61: 3.580104607 | L61: 1.625371501 | M61: 2115.71 | N61: 1028.11 | O61: -4 | P61: -1087.6 | Q61: 4 | R61: FALSE | S61: FALSE | T61: FALSE | U61: FALSE | V61: FALSE | W61: 0 | X61: 0 | Y61: 0 | AB61: -0.5 | AC61: -0.5 | AD61: -4 | AE61: 0.5 | AF61: 0.5 | AG61: 4 | AP61: 79552800
A62: 30 | B62: =OFFSET(InputPriceData!B$15,CalculationsAndCharts!$A62+$A$11,0,1,1) -> 2019-02-04 | C62: =OFFSET(InputPriceData!G$15,CalculationsAndCharts!$A62+$A$11,IF($C$7,8,0),1,1) -> 60744800 | D62: =OFFSET(InputPriceData!C$15,CalculationsAndCharts!$A62+$A$11,IF($C$7,8,0),1,1) -> 268.93 | E62: =OFFSET(InputPriceData!D$15,CalculationsAndCharts!$A62+$A$11,IF($C$7,8,0),1,1) -> 270.84 | F62: =OFFSET(InputPriceData!E$15,CalculationsAndCharts!$A62+$A$11,IF($C$7,8,0),1,1) -> 268.18 | G62: =OFFSET(InputPriceData!F$15,CalculationsAndCharts!$A62+$A$11,IF($C$7,8,0),1,1) -> 270.77 | H62: 265.062 | I62: 265.062 | J62: 268.1989 | K62: 3.209871649 | L62: 1.77826425 | M62: 2115.71 | N62: 1032.63 | O62: -4 | P62: -1083.08 | Q62: 4 | R62: FALSE | S62: FALSE | T62: FALSE | U62: FALSE | V62: FALSE | W62: 0 | X62: 0 | Y62: 0 | AB62: -0.5 | AC62: -0.5 | AD62: -4 | AE62: 0.5 | AF62: 0.5 | AG62: 4 | AP62: 60744800
A63: 31 | B63: =OFFSET(InputPriceData!B$15,CalculationsAndCharts!$A63+$A$11,0,1,1) -> 2019-02-01 | C63: =OFFSET(InputPriceData!G$15,CalculationsAndCharts!$A63+$A$11,IF($C$7,8,0),1,1) -> 85782500 | D63: =OFFSET(InputPriceData!C$15,CalculationsAndCharts!$A63+$A$11,IF($C$7,8,0),1,1) -> 268.97 | E63: =OFFSET(InputPriceData!D$15,CalculationsAndCharts!$A63+$A$11,IF($C$7,8,0),1,1) -> 270.01 | F63: =OFFSET(InputPriceData!E$15,CalculationsAndCharts!$A63+$A$11,IF($C$7,8,0),1,1) -> 268 | G63: =OFFSET(InputPriceData!F$15,CalculationsAndCharts!$A63+$A$11,IF($C$7,8,0),1,1) -> 268.88 | H63: 264.514 | I63: 264.514 | J63: 268.3301 | K63: 2.598084679 | L63: 1.680468706 | M63: 2115.71 | N63: 1040.19 | O63: -4 | P63: -1075.52 | Q63: 4 | R63: FALSE | S63: FALSE | T63: FALSE | U63: FALSE | V63: FALSE | W63: 0 | X63: 0 | Y63: 0 | AB63: -0.5 | AC63: -0.5 | AD63: -4 | AE63: 0.5 | AF63: 0.5 | AG63: 4 | AQ63: 85782500
A64: 32 | B64: =OFFSET(InputPriceData!B$15,CalculationsAndCharts!$A64+$A$11,0,1,1) -> 2019-01-31 | C64: =OFFSET(InputPriceData!G$15,CalculationsAndCharts!$A64+$A$11,IF($C$7,8,0),1,1) -> 104012100 | D64: =OFFSET(InputPriceData!C$15,CalculationsAndCharts!$A64+$A$11,IF($C$7,8,0),1,1) -> 266.34 | E64: =OFFSET(InputPriceData!D$15,CalculationsAndCharts!$A64+$A$11,IF($C$7,8,0),1,1) -> 269.28 | F64: =OFFSET(InputPriceData!E$15,CalculationsAndCharts!$A64+$A$11,IF($C$7,8,0),1,1) -> 266.1 | G64: =OFFSET(InputPriceData!F$15,CalculationsAndCharts!$A64+$A$11,IF($C$7,8,0),1,1) -> 268.75 | H64: 263.807 | I64: 263.807 | J64: 268.4752 | K64: 2.252811799 | L64: 2.194146889 | M64: 2115.71 | N64: 1040.71 | O64: -4 | P64: -1075 | Q64: 4 | R64: FALSE | S64: FALSE | T64: FALSE | U64: FALSE | V64: FALSE | W64: 0 | X64: 0 | Y64: 0 | AB64: -0.5 | AC64: -0.5 | AD64: -4 | AE64: 0.5 | AF64: 0.5 | AG64: 4 | AP64: 104012100
A65: 33 | B65: =OFFSET(InputPriceData!B$15,CalculationsAndCharts!$A65+$A$11,0,1,1) -> 2019-01-30 | C65: =OFFSET(InputPriceData!G$15,CalculationsAndCharts!$A65+$A$11,IF($C$7,8,0),1,1) -> 92473700 | D65: =OFFSET(InputPriceData!C$15,CalculationsAndCharts!$A65+$A$11,IF($C$7,8,0),1,1) -> 263.94 | E65: =OFFSET(InputPriceData!D$15,CalculationsAndCharts!$A65+$A$11,IF($C$7,8,0),1,1) -> 267.34 | F65: =OFFSET(InputPriceData!E$15,CalculationsAndCharts!$A65+$A$11,IF($C$7,8,0),1,1) -> 263.09 | G65: =OFFSET(InputPriceData!F$15,CalculationsAndCharts!$A65+$A$11,IF($C$7,8,0),1,1) -> 266.41 | H65: 262.916 | I65: 262.916 | J65: 268.6272 | K65: 1.84706903 | L65: 1.891645599 | M65: 1050.07 | N65: 1050.07 | O65: 0 | P65: 0 | Q65: 4 | R65: FALSE | S65: TRUE | T65: FALSE | U65: FALSE | V65: FALSE | W65: -4 | X65: 1065.64 | Y65: 1065.64 | AB65: -0.5 | AC65: -0.5 | AD65: -4 | AE65: 0.5 | AF65: 0.5 | AG65: 4 | AP65: 92473700
A66: 34 | B66: =OFFSET(InputPriceData!B$15,CalculationsAndCharts!$A66+$A$11,0,1,1) -> 2019-01-29 | C66: =OFFSET(InputPriceData!G$15,CalculationsAndCharts!$A66+$A$11,IF($C$7,8,0),1,1) -> 66136300 | D66: =OFFSET(InputPriceData!C$15,CalculationsAndCharts!$A66+$A$11,IF($C$7,8,0),1,1) -> 262.76 | E66: =OFFSET(InputPriceData!D$15,CalculationsAndCharts!$A66+$A$11,IF($C$7,8,0),1,1) -> 263.39 | F66: =OFFSET(InputPriceData!E$15,CalculationsAndCharts!$A66+$A$11,IF($C$7,8,0),1,1) -> 261.33 | G66: =OFFSET(InputPriceData!F$15,CalculationsAndCharts!$A66+$A$11,IF($C$7,8,0),1,1) -> 262.25 | H66: 262.196 | I66: 262.196 | J66: 268.8111 | K66: 1.745251844 | L66: 0.03094109322 | M66: 1050.07 | N66: 1050.07 | O66: 0 | P66: 0 | Q66: 4 | R66: TRUE | S66: FALSE | T66: FALSE | U66: FALSE | V66: FALSE | W66: 0 | X66: 0 | Y66: 0 | AB66: -0.5 | AC66: -0.5 | AD66: -4 | AE66: 0.5 | AF66: 0.5 | AG66: 4 | AQ66: 66136300
A67: 35 | B67: =OFFSET(InputPriceData!B$15,CalculationsAndCharts!$A67+$A$11,0,1,1) -> 2019-01-28 | C67: =OFFSET(InputPriceData!G$15,CalculationsAndCharts!$A67+$A$11,IF($C$7,8,0),1,1) -> 85613700 | D67: =OFFSET(InputPriceData!C$15,CalculationsAndCharts!$A67+$A$11,IF($C$7,8,0),1,1) -> 262.23 | E67: =OFFSET(InputPriceData!D$15,CalculationsAndCharts!$A67+$A$11,IF($C$7,8,0),1,1) -> 262.67 | F67: =OFFSET(InputPriceData!E$15,CalculationsAndCharts!$A67+$A$11,IF($C$7,8,0),1,1) -> 260.64 | G67: =OFFSET(InputPriceData!F$15,CalculationsAndCharts!$A67+$A$11,IF($C$7,8,0),1,1) -> 262.6 | H67: 261.598 | I67: 261.598 | J67: 269.0443 | K67: 2.489930923 | L67: 0.4024208025 | M67: 2100.47 | N67: 1050.07 | O67: -4 | P67: -1050.4 | Q67: 4 | R67: TRUE | S67: FALSE | T67: TRUE | U67: FALSE | V67: FALSE | W67: 4 | X67: -1050.4 | Y67: -1050.4 | AB67: -0.5 | AC67: -0.5 | AD67: -4 | AE67: 0.5 | AF67: 0.5 | AG67: 4 | AP67: 85613700
A68: 36 | B68: =OFFSET(InputPriceData!B$15,CalculationsAndCharts!$A68+$A$11,0,1,1) -> 2019-01-25 | C68: =OFFSET(InputPriceData!G$15,CalculationsAndCharts!$A68+$A$11,IF($C$7,8,0),1,1) -> 96883400 | D68: =OFFSET(InputPriceData!C$15,CalculationsAndCharts!$A68+$A$11,IF($C$7,8,0),1,1) -> 264.45 | E68: =OFFSET(InputPriceData!D$15,CalculationsAndCharts!$A68+$A$11,IF($C$7,8,0),1,1) -> 265.53 | F68: =OFFSET(InputPriceData!E$15,CalculationsAndCharts!$A68+$A$11,IF($C$7,8,0),1,1) -> 262.5 | G68: =OFFSET(InputPriceData!F$15,CalculationsAndCharts!$A68+$A$11,IF($C$7,8,0),1,1) -> 264.61 | H68: 261.122 | I68: 261.122 | J68: 269.2789 | K68: 2.699080584 | L68: 1.292291909 | M68: 2100.47 | N68: 1042.03 | O68: -4 | P68: -1058.44 | Q68: 4 | R68: FALSE | S68: FALSE | T68: FALSE | U68: FALSE | V68: FALSE | W68: 0 | X68: 0 | Y68: 0 | AB68: -0.5 | AC68: -0.5 | AD68: -4 | AE68: 0.5 | AF68: 0.5 | AG68: 4 | AP68: 96883400
A69: 37 | B69: =OFFSET(InputPriceData!B$15,CalculationsAndCharts!$A69+$A$11,0,1,1) -> 2019-01-24 | C69: =OFFSET(InputPriceData!G$15,CalculationsAndCharts!$A69+$A$11,IF($C$7,8,0),1,1) -> 59204100 | D69: =OFFSET(InputPriceData!C$15,CalculationsAndCharts!$A69+$A$11,IF($C$7,8,0),1,1) -> 262.06 | E69: =OFFSET(InputPriceData!D$15,CalculationsAndCharts!$A69+$A$11,IF($C$7,8,0),1,1) -> 263.04 | F69: =OFFSET(InputPriceData!E$15,CalculationsAndCharts!$A69+$A$11,IF($C$7,8,0),1,1) -> 260.93 | G69: =OFFSET(InputPriceData!F$15,CalculationsAndCharts!$A69+$A$11,IF($C$7,8,0),1,1) -> 262.39 | H69: 260.435 | I69: 260.435 | J69: 269.4933 | K69: 2.596198182 | L69: 0.7530241773 | M69: 2100.47 | N69: 1050.91 | O69: -4 | P69: -1049.56 | Q69: 4 | R69: FALSE | S69: FALSE | T69: FALSE | U69: FALSE | V69: FALSE | W69: 0 | X69: 0 | Y69: 0 | AB69: -0.5 | AC69: -0.5 | AD69: -4 | AE69: 0.5 | AF69: 0.5 | AG69: 4 | AP69: 59204100
A70: 38 | B70: =OFFSET(InputPriceData!B$15,CalculationsAndCharts!$A70+$A$11,0,1,1) -> 2019-01-23 | C70: =OFFSET(InputPriceData!G$15,CalculationsAndCharts!$A70+$A$11,IF($C$7,8,0),1,1) -> 86030300 | D70: =OFFSET(InputPriceData!C$15,CalculationsAndCharts!$A70+$A$11,IF($C$7,8,0),1,1) -> 262.85 | E70: =OFFSET(InputPriceData!D$15,CalculationsAndCharts!$A70+$A$11,IF($C$7,8,0),1,1) -> 263.63 | F70: =OFFSET(InputPriceData!E$15,CalculationsAndCharts!$A70+$A$11,IF($C$7,8,0),1,1) -> 259.52 | G70: =OFFSET(InputPriceData!F$15,CalculationsAndCharts!$A70+$A$11,IF($C$7,8,0),1,1) -> 262.25 | H70: 259.88 | I70: 259.88 | J70: 269.7416 | K70: 2.709690019 | L70: 0.8746387901 | M70: 2100.47 | N70: 1051.47 | O70: -4 | P70: -1049 | Q70: 4 | R70: FALSE | S70: FALSE | T70: FALSE | U70: FALSE | V70: FALSE | W70: 0 | X70: 0 | Y70: 0 | AB70: -0.5 | AC70: -0.5 | AD70: -4 | AE70: 0.5 | AF70: 0.5 | AG70: 4 | AQ70: 86030300
A71: 39 | B71: =OFFSET(InputPriceData!B$15,CalculationsAndCharts!$A71+$A$11,0,1,1) -> 2019-01-22 | C71: =OFFSET(InputPriceData!G$15,CalculationsAndCharts!$A71+$A$11,IF($C$7,8,0),1,1) -> 115531200 | D71: =OFFSET(InputPriceData!C$15,CalculationsAndCharts!$A71+$A$11,IF($C$7,8,0),1,1) -> 263.66 | E71: =OFFSET(InputPriceData!D$15,CalculationsAndCharts!$A71+$A$11,IF($C$7,8,0),1,1) -> 263.9 | F71: =OFFSET(InputPriceData!E$15,CalculationsAndCharts!$A71+$A$11,IF($C$7,8,0),1,1) -> 259.92 | G71: =OFFSET(InputPriceData!F$15,CalculationsAndCharts!$A71+$A$11,IF($C$7,8,0),1,1) -> 261.71 | H71: 259.219 | I71: 259.219 | J71: 269.9759 | K71: 2.853343477 | L71: 0.873010915 | M71: 2100.47 | N71: 1053.63 | O71: -4 | P71: -1046.84 | Q71: 4 | R71: FALSE | S71: FALSE | T71: FALSE | U71: FALSE | V71: FALSE | W71: 0 | X71: 0 | Y71: 0 | AB71: -0.5 | AC71: -0.5 | AD71: -4 | AE71: 0.5 | AF71: 0.5 | AG71: 4 | AQ71: 115531200
A72: 40 | B72: =OFFSET(InputPriceData!B$15,CalculationsAndCharts!$A72+$A$11,0,1,1) -> 2019-01-18 | C72: =OFFSET(InputPriceData!G$15,CalculationsAndCharts!$A72+$A$11,IF($C$7,8,0),1,1) -> 127900300 | D72: =OFFSET(InputPriceData!C$15,CalculationsAndCharts!$A72+$A$11,IF($C$7,8,0),1,1) -> 263.82 | E72: =OFFSET(InputPriceData!D$15,CalculationsAndCharts!$A72+$A$11,IF($C$7,8,0),1,1) -> 265.81 | F72: =OFFSET(InputPriceData!E$15,CalculationsAndCharts!$A72+$A$11,IF($C$7,8,0),1,1) -> 261.85 | G72: =OFFSET(InputPriceData!F$15,CalculationsAndCharts!$A72+$A$11,IF($C$7,8,0),1,1) -> 265.29 | H72: 258.374 | I72: 258.374 | J72: 270.2142 | K72: 3.218385309 | L72: 2.148903669 | M72: 2100.47 | N72: 1039.31 | O72: -4 | P72: -1061.16 | Q72: 4 | R72: FALSE | S72: FALSE | T72: FALSE | U72: FALSE | V72: FALSE | W72: 0 | X72: 0 | Y72: 0 | AB72: -0.5 | AC72: -0.5 | AD72: -4 | AE72: 0.5 | AF72: 0.5 | AG72: 4 | AP72: 127900300
A73: 41 | B73: =OFFSET(InputPriceData!B$15,CalculationsAndCharts!$A73+$A$11,0,1,1) -> 2019-01-17 | C73: =OFFSET(InputPriceData!G$15,CalculationsAndCharts!$A73+$A$11,IF($C$7,8,0),1,1) -> 96118400 | D73: =OFFSET(InputPriceData!C$15,CalculationsAndCharts!$A73+$A$11,IF($C$7,8,0),1,1) -> 258.87 | E73: =OFFSET(InputPriceData!D$15,CalculationsAndCharts!$A73+$A$11,IF($C$7,8,0),1,1) -> 262.76 | F73: =OFFSET(InputPriceData!E$15,CalculationsAndCharts!$A73+$A$11,IF($C$7,8,0),1,1) -> 258.82 | G73: =OFFSET(InputPriceData!F$15,CalculationsAndCharts!$A73+$A$11,IF($C$7,8,0),1,1) -> 261.81 | H73: 256.973 | I73: 256.973 | J73: 270.3943 | K73: 2.940166832 | L73: 1.645144741 | M73: 2100.47 | N73: 1053.23 | O73: -4 | P73: -1047.24 | Q73: 4 | R73: FALSE | S73: FALSE | T73: FALSE | U73: FALSE | V73: FALSE | W73: 0 | X73: 0 | Y73: 0 | AB73: -0.5 | AC73: -0.5 | AD73: -4 | AE73: 0.5 | AF73: 0.5 | AG73: 4 | AP73: 96118400
A74: 42 | B74: =OFFSET(InputPriceData!B$15,CalculationsAndCharts!$A74+$A$11,0,1,1) -> 2019-01-16 | C74: =OFFSET(InputPriceData!G$15,CalculationsAndCharts!$A74+$A$11,IF($C$7,8,0),1,1) -> 77636700 | D74: =OFFSET(InputPriceData!C$15,CalculationsAndCharts!$A74+$A$11,IF($C$7,8,0),1,1) -> 259.69 | E74: =OFFSET(InputPriceData!D$15,CalculationsAndCharts!$A74+$A$11,IF($C$7,8,0),1,1) -> 260.82 | F74: =OFFSET(InputPriceData!E$15,CalculationsAndCharts!$A74+$A$11,IF($C$7,8,0),1,1) -> 259.46 | G74: =OFFSET(InputPriceData!F$15,CalculationsAndCharts!$A74+$A$11,IF($C$7,8,0),1,1) -> 259.84 | H74: 255.106 | I74: 255.106 | J74: 270.5923 | K74: 4.685554823 | L74: 1.010339262 | M74: 2100.47 | N74: 1061.11 | O74: -4 | P74: -1039.36 | Q74: 4 | R74: FALSE | S74: FALSE | T74: FALSE | U74: FALSE | V74: FALSE | W74: 0 | X74: 0 | Y74: 0 | AB74: -0.5 | AC74: -0.5 | AD74: -4 | AE74: 0.5 | AF74: 0.5 | AG74: 4 | AP74: 77636700
A75: 43 | B75: =OFFSET(InputPriceData!B$15,CalculationsAndCharts!$A75+$A$11,0,1,1) -> 2019-01-15 | C75: =OFFSET(InputPriceData!G$15,CalculationsAndCharts!$A75+$A$11,IF($C$7,8,0),1,1) -> 85208300 | D75: =OFFSET(InputPriceData!C$15,CalculationsAndCharts!$A75+$A$11,IF($C$7,8,0),1,1) -> 256.69 | E75: =OFFSET(InputPriceData!D$15,CalculationsAndCharts!$A75+$A$11,IF($C$7,8,0),1,1) -> 259.56 | F75: =OFFSET(InputPriceData!E$15,CalculationsAndCharts!$A75+$A$11,IF($C$7,8,0),1,1) -> 256.68 | G75: =OFFSET(InputPriceData!F$15,CalculationsAndCharts!$A75+$A$11,IF($C$7,8,0),1,1) -> 259.21 | H75: 254.03 | I75: 254.03 | J75: 270.8137 | K75: 4.710290862 | L75: 1.099719774 | M75: 2100.47 | N75: 1063.63 | O75: -4 | P75: -1036.84 | Q75: 4 | R75: FALSE | S75: FALSE | T75: FALSE | U75: FALSE | V75: FALSE | W75: 0 | X75: 0 | Y75: 0 | AB75: -0.5 | AC75: -0.5 | AD75: -4 | AE75: 0.5 | AF75: 0.5 | AG75: 4 | AP75: 85208300
A76: 44 | B76: =OFFSET(InputPriceData!B$15,CalculationsAndCharts!$A76+$A$11,0,1,1) -> 2019-01-14 | C76: =OFFSET(InputPriceData!G$15,CalculationsAndCharts!$A76+$A$11,IF($C$7,8,0),1,1) -> 70908200 | D76: =OFFSET(InputPriceData!C$15,CalculationsAndCharts!$A76+$A$11,IF($C$7,8,0),1,1) -> 255.73 | E76: =OFFSET(InputPriceData!D$15,CalculationsAndCharts!$A76+$A$11,IF($C$7,8,0),1,1) -> 257.17 | F76: =OFFSET(InputPriceData!E$15,CalculationsAndCharts!$A76+$A$11,IF($C$7,8,0),1,1) -> 255.29 | G76: =OFFSET(InputPriceData!F$15,CalculationsAndCharts!$A76+$A$11,IF($C$7,8,0),1,1) -> 256.27 | H76: 252.991 | I76: 252.991 | J76: 271.0431 | K76: 4.597661253 | L76: 0.7131886886 | M76: 2100.47 | N76: 1075.39 | O76: -4 | P76: -1025.08 | Q76: 4 | R76: FALSE | S76: FALSE | T76: FALSE | U76: FALSE | V76: FALSE | W76: 0 | X76: 0 | Y76: 0 | AB76: -0.5 | AC76: -0.5 | AD76: -4 | AE76: 0.5 | AF76: 0.5 | AG76: 4 | AP76: 70908200
A77: 45 | B77: =OFFSET(InputPriceData!B$15,CalculationsAndCharts!$A77+$A$11,0,1,1) -> 2019-01-11 | C77: =OFFSET(InputPriceData!G$15,CalculationsAndCharts!$A77+$A$11,IF($C$7,8,0),1,1) -> 73858100 | D77: =OFFSET(InputPriceData!C$15,CalculationsAndCharts!$A77+$A$11,IF($C$7,8,0),1,1) -> 256.55 | E77: =OFFSET(InputPriceData!D$15,CalculationsAndCharts!$A77+$A$11,IF($C$7,8,0),1,1) -> 257.87 | F77: =OFFSET(InputPriceData!E$15,CalculationsAndCharts!$A77+$A$11,IF($C$7,8,0),1,1) -> 255.9 | G77: =OFFSET(InputPriceData!F$15,CalculationsAndCharts!$A77+$A$11,IF($C$7,8,0),1,1) -> 257.84 | H77: 252.03 | I77: 252.03 | J77: 271.2953 | K77: 4.811230612 | L77: 1.207591252 | M77: 2100.47 | N77: 1069.11 | O77: -4 | P77: -1031.36 | Q77: 4 | R77: FALSE | S77: FALSE | T77: FALSE | U77: FALSE | V77: FALSE | W77: 0 | X77: 0 | Y77: 0 | AB77: -0.5 | AC77: -0.5 | AD77: -4 | AE77: 0.5 | AF77: 0.5 | AG77: 4 | AP77: 73858100
A78: 46 | B78: =OFFSET(InputPriceData!B$15,CalculationsAndCharts!$A78+$A$11,0,1,1) -> 2019-01-10 | C78: =OFFSET(InputPriceData!G$15,CalculationsAndCharts!$A78+$A$11,IF($C$7,8,0),1,1) -> 96823900 | D78: =OFFSET(InputPriceData!C$15,CalculationsAndCharts!$A78+$A$11,IF($C$7,8,0),1,1) -> 255.14 | E78: =OFFSET(InputPriceData!D$15,CalculationsAndCharts!$A78+$A$11,IF($C$7,8,0),1,1) -> 258.02 | F78: =OFFSET(InputPriceData!E$15,CalculationsAndCharts!$A78+$A$11,IF($C$7,8,0),1,1) -> 254.38 | G78: =OFFSET(InputPriceData!F$15,CalculationsAndCharts!$A78+$A$11,IF($C$7,8,0),1,1) -> 257.74 | H78: 250.944 | I78: 250.944 | J78: 271.5258 | K78: 4.598171811 | L78: 1.477978701 | M78: 2100.47 | N78: 1069.51 | O78: -4 | P78: -1030.96 | Q78: 4 | R78: FALSE | S78: FALSE | T78: FALSE | U78: FALSE | V78: FALSE | W78: 0 | X78: 0 | Y78: 0 | AB78: -0.5 | AC78: -0.5 | AD78: -4 | AE78: 0.5 | AF78: 0.5 | AG78: 4 | AP78: 96823900
A79: 47 | B79: =OFFSET(InputPriceData!B$15,CalculationsAndCharts!$A79+$A$11,0,1,1) -> 2019-01-09 | C79: =OFFSET(InputPriceData!G$15,CalculationsAndCharts!$A79+$A$11,IF($C$7,8,0),1,1) -> 95006600 | D79: =OFFSET(InputPriceData!C$15,CalculationsAndCharts!$A79+$A$11,IF($C$7,8,0),1,1) -> 256.43 | E79: =OFFSET(InputPriceData!D$15,CalculationsAndCharts!$A79+$A$11,IF($C$7,8,0),1,1) -> 257.77 | F79: =OFFSET(InputPriceData!E$15,CalculationsAndCharts!$A79+$A$11,IF($C$7,8,0),1,1) -> 255.07 | G79: =OFFSET(InputPriceData!F$15,CalculationsAndCharts!$A79+$A$11,IF($C$7,8,0),1,1) -> 256.84 | H79: 249.68 | I79: 249.68 | J79: 271.7475 | K79: 4.282774801 | L79: 1.671813329 | M79: 2100.47 | N79: 1073.11 | O79: -4 | P79: -1027.36 | Q79: 4 | R79: FALSE | S79: FALSE | T79: FALSE | U79: FALSE | V79: FALSE | W79: 0 | X79: 0 | Y79: 0 | AB79: -0.5 | AC79: -0.5 | AD79: -4 | AE79: 0.5 | AF79: 0.5 | AG79: 4 | AP79: 95006600
A80: 48 | B80: =OFFSET(InputPriceData!B$15,CalculationsAndCharts!$A80+$A$11,0,1,1) -> 2019-01-08 | C80: =OFFSET(InputPriceData!G$15,CalculationsAndCharts!$A80+$A$11,IF($C$7,8,0),1,1) -> 102512600 | D80: =OFFSET(InputPriceData!C$15,CalculationsAndCharts!$A80+$A$11,IF($C$7,8,0),1,1) -> 255.69 | E80: =OFFSET(InputPriceData!D$15,CalculationsAndCharts!$A80+$A$11,IF($C$7,8,0),1,1) -> 256.18 | F80: =OFFSET(InputPriceData!E$15,CalculationsAndCharts!$A80+$A$11,IF($C$7,8,0),1,1) -> 252.89 | G80: =OFFSET(InputPriceData!F$15,CalculationsAndCharts!$A80+$A$11,IF($C$7,8,0),1,1) -> 255.64 | H80: 247.327 | I80: 247.327 | J80: 271.9557 | K80: 5.871684682 | L80: 1.41577766 | M80: 2100.47 | N80: 1077.91 | O80: -4 | P80: -1022.56 | Q80: 4 | R80: FALSE | S80: FALSE | T80: FALSE | U80: FALSE | V80: FALSE | W80: 0 | X80: 0 | Y80: 0 | AB80: -0.5 | AC80: -0.5 | AD80: -4 | AE80: 0.5 | AF80: 0.5 | AG80: 4 | AQ80: 102512600
A81: 49 | B81: =OFFSET(InputPriceData!B$15,CalculationsAndCharts!$A81+$A$11,0,1,1) -> 2019-01-07 | C81: =OFFSET(InputPriceData!G$15,CalculationsAndCharts!$A81+$A$11,IF($C$7,8,0),1,1) -> 103139100 | D81: =OFFSET(InputPriceData!C$15,CalculationsAndCharts!$A81+$A$11,IF($C$7,8,0),1,1) -> 251.58 | E81: =OFFSET(InputPriceData!D$15,CalculationsAndCharts!$A81+$A$11,IF($C$7,8,0),1,1) -> 254.83 | F81: =OFFSET(InputPriceData!E$15,CalculationsAndCharts!$A81+$A$11,IF($C$7,8,0),1,1) -> 250.59 | G81: =OFFSET(InputPriceData!F$15,CalculationsAndCharts!$A81+$A$11,IF($C$7,8,0),1,1) -> 253.26 | H81: 245.727 | I81: 245.727 | J81: 272.1968 | K81: 5.560133182 | L81: 1.354823662 | M81: 2100.47 | N81: 1087.43 | O81: -4 | P81: -1013.04 | Q81: 4 | R81: FALSE | S81: FALSE | T81: FALSE | U81: FALSE | V81: FALSE | W81: 0 | X81: 0 | Y81: 0 | AB81: -0.5 | AC81: -0.5 | AD81: -4 | AE81: 0.5 | AF81: 0.5 | AG81: 4 | AP81: 103139100
A82: 50 | B82: =OFFSET(InputPriceData!B$15,CalculationsAndCharts!$A82+$A$11,0,1,1) -> 2019-01-04 | C82: =OFFSET(InputPriceData!G$15,CalculationsAndCharts!$A82+$A$11,IF($C$7,8,0),1,1) -> 142628800 | D82: =OFFSET(InputPriceData!C$15,CalculationsAndCharts!$A82+$A$11,IF($C$7,8,0),1,1) -> 246.5 | E82: =OFFSET(InputPriceData!D$15,CalculationsAndCharts!$A82+$A$11,IF($C$7,8,0),1,1) -> 252 | F82: =OFFSET(InputPriceData!E$15,CalculationsAndCharts!$A82+$A$11,IF($C$7,8,0),1,1) -> 246.09 | G82: =OFFSET(InputPriceData!F$15,CalculationsAndCharts!$A82+$A$11,IF($C$7,8,0),1,1) -> 251.28 | H82: 244.867 | I82: 244.867 | J82: 272.4439 | K82: 4.961322505 | L82: 1.292598897 | M82: 1095.35 | N82: 1095.35 | O82: 0 | P82: 0 | Q82: 4 | R82: FALSE | S82: TRUE | T82: FALSE | U82: FALSE | V82: FALSE | W82: -4 | X82: 1005.12 | Y82: 1005.12 | AB82: -0.5 | AC82: -0.5 | AD82: -4 | AE82: 0.5 | AF82: 0.5 | AG82: 4 | AP82: =IF(G82>=D82,C82,NA()) -> 142628800 | AQ82: =IF(G82<D82,C82,NA()) -> 
A83: 51 | B83: =OFFSET(InputPriceData!B$15,CalculationsAndCharts!$A83+$A$11,0,1,1) -> 2019-01-03 | C83: =OFFSET(InputPriceData!G$15,CalculationsAndCharts!$A83+$A$11,IF($C$7,8,0),1,1) -> 144140700 | D83: =OFFSET(InputPriceData!C$15,CalculationsAndCharts!$A83+$A$11,IF($C$7,8,0),1,1) -> 247.14 | E83: =OFFSET(InputPriceData!D$15,CalculationsAndCharts!$A83+$A$11,IF($C$7,8,0),1,1) -> 247.48 | F83: =OFFSET(InputPriceData!E$15,CalculationsAndCharts!$A83+$A$11,IF($C$7,8,0),1,1) -> 242.6 | G83: =OFFSET(InputPriceData!F$15,CalculationsAndCharts!$A83+$A$11,IF($C$7,8,0),1,1) -> 243.14 | H83: 244.61 | I83: 244.61 | J83: 272.7213 | K83: 4.681119524 | L83: -0.3140274442 | M83: 1095.35 | N83: 1095.35 | O83: 0 | P83: 0 | Q83: 5 | R83: TRUE | S83: FALSE | T83: FALSE | U83: FALSE | V83: FALSE | W83: 0 | X83: 0 | Y83: 0 | AB83: -0.5 | AC83: -0.5 | AD83: -4 | AE83: 0.5 | AF83: 0.5 | AG83: 4 | AQ83: 144140700
A84: 52 | B84: =OFFSET(InputPriceData!B$15,CalculationsAndCharts!$A84+$A$11,0,1,1) -> 2019-01-02 | C84: =OFFSET(InputPriceData!G$15,CalculationsAndCharts!$A84+$A$11,IF($C$7,8,0),1,1) -> 126925200 | D84: =OFFSET(InputPriceData!C$15,CalculationsAndCharts!$A84+$A$11,IF($C$7,8,0),1,1) -> 244.9 | E84: =OFFSET(InputPriceData!D$15,CalculationsAndCharts!$A84+$A$11,IF($C$7,8,0),1,1) -> 250.11 | F84: =OFFSET(InputPriceData!E$15,CalculationsAndCharts!$A84+$A$11,IF($C$7,8,0),1,1) -> 244.87 | G84: =OFFSET(InputPriceData!F$15,CalculationsAndCharts!$A84+$A$11,IF($C$7,8,0),1,1) -> 249.08 | H84: 245.545 | I84: 245.545 | J84: 273.0989 | K84: 5.199231193 | L84: 0.679908215 | M84: 1095.35 | N84: 1095.35 | O84: 0 | P84: 0 | Q84: 4 | R84: FALSE | S84: FALSE | T84: FALSE | U84: FALSE | V84: FALSE | W84: 0 | X84: 0 | Y84: 0 | AB84: -0.5 | AC84: -0.5 | AD84: -4 | AE84: 0.5 | AF84: 0.5 | AG84: 4 | AP84: 126925200
A85: 53 | B85: =OFFSET(InputPriceData!B$15,CalculationsAndCharts!$A85+$A$11,0,1,1) -> 2018-12-31 | C85: =OFFSET(InputPriceData!G$15,CalculationsAndCharts!$A85+$A$11,IF($C$7,8,0),1,1) -> 144299400 | D85: =OFFSET(InputPriceData!C$15,CalculationsAndCharts!$A85+$A$11,IF($C$7,8,0),1,1) -> 248.47 | E85: =OFFSET(InputPriceData!D$15,CalculationsAndCharts!$A85+$A$11,IF($C$7,8,0),1,1) -> 249.09 | F85: =OFFSET(InputPriceData!E$15,CalculationsAndCharts!$A85+$A$11,IF($C$7,8,0),1,1) -> 246.38 | G85: =OFFSET(InputPriceData!F$15,CalculationsAndCharts!$A85+$A$11,IF($C$7,8,0),1,1) -> 248.82 | H85: 245.913 | I85: 245.913 | J85: 273.4209 | K85: 5.554509969 | L85: 0.523358499 | M85: 1095.35 | N85: 1095.35 | O85: 0 | P85: 0 | Q85: 4 | R85: FALSE | S85: FALSE | T85: FALSE | U85: FALSE | V85: FALSE | W85: 0 | X85: 0 | Y85: 0 | AB85: -0.5 | AC85: -0.5 | AD85: -4 | AE85: 0.5 | AF85: 0.5 | AG85: 4 | AP85: 144299400
A86: 54 | B86: =OFFSET(InputPriceData!B$15,CalculationsAndCharts!$A86+$A$11,0,1,1) -> 2018-12-28 | C86: =OFFSET(InputPriceData!G$15,CalculationsAndCharts!$A86+$A$11,IF($C$7,8,0),1,1) -> 153100200 | D86: =OFFSET(InputPriceData!C$15,CalculationsAndCharts!$A86+$A$11,IF($C$7,8,0),1,1) -> 248.49 | E86: =OFFSET(InputPriceData!D$15,CalculationsAndCharts!$A86+$A$11,IF($C$7,8,0),1,1) -> 250.3 | F86: =OFFSET(InputPriceData!E$15,CalculationsAndCharts!$A86+$A$11,IF($C$7,8,0),1,1) -> 245.37 | G86: =OFFSET(InputPriceData!F$15,CalculationsAndCharts!$A86+$A$11,IF($C$7,8,0),1,1) -> 246.66 | H86: 246.813 | I86: 246.813 | J86: 273.7467 | K86: 6.585983677 | L86: -0.02323115384 | M86: 1095.35 | N86: 1095.35 | O86: 0 | P86: 0 | Q86: 4 | R86: TRUE | S86: FALSE | T86: FALSE | U86: FALSE | V86: FALSE | W86: 0 | X86: 0 | Y86: 0 | AB86: -0.5 | AC86: -0.5 | AD86: -4 | AE86: 0.5 | AF86: 0.5 | AG86: 4 | AQ86: 153100200
A87: 55 | B87: =OFFSET(InputPriceData!B$15,CalculationsAndCharts!$A87+$A$11,0,1,1) -> 2018-12-27 | C87: =OFFSET(InputPriceData!G$15,CalculationsAndCharts!$A87+$A$11,IF($C$7,8,0),1,1) -> 186267300 | D87: =OFFSET(InputPriceData!C$15,CalculationsAndCharts!$A87+$A$11,IF($C$7,8,0),1,1) -> 241.51 | E87: =OFFSET(InputPriceData!D$15,CalculationsAndCharts!$A87+$A$11,IF($C$7,8,0),1,1) -> 247.2 | F87: =OFFSET(InputPriceData!E$15,CalculationsAndCharts!$A87+$A$11,IF($C$7,8,0),1,1) -> 237.91 | G87: =OFFSET(InputPriceData!F$15,CalculationsAndCharts!$A87+$A$11,IF($C$7,8,0),1,1) -> 246.98 | H87: 248.414 | I87: 248.414 | J87: 274.0849 | K87: 8.121211979 | L87: -0.17657463 | M87: 1095.35 | N87: 1095.35 | O87: 0 | P87: 0 | Q87: 4 | R87: TRUE | S87: FALSE | T87: FALSE | U87: FALSE | V87: FALSE | W87: 0 | X87: 0 | Y87: 0 | AB87: -0.5 | AC87: -0.5 | AD87: -4 | AE87: 0.5 | AF87: 0.5 | AG87: 4 | AP87: 186267300
A88: 56 | B88: =OFFSET(InputPriceData!B$15,CalculationsAndCharts!$A88+$A$11,0,1,1) -> 2018-12-26 | C88: =OFFSET(InputPriceData!G$15,CalculationsAndCharts!$A88+$A$11,IF($C$7,8,0),1,1) -> 218485400 | D88: =OFFSET(InputPriceData!C$15,CalculationsAndCharts!$A88+$A$11,IF($C$7,8,0),1,1) -> 234.94 | E88: =OFFSET(InputPriceData!D$15,CalculationsAndCharts!$A88+$A$11,IF($C$7,8,0),1,1) -> 245.1 | F88: =OFFSET(InputPriceData!E$15,CalculationsAndCharts!$A88+$A$11,IF($C$7,8,0),1,1) -> 232.73 | G88: =OFFSET(InputPriceData!F$15,CalculationsAndCharts!$A88+$A$11,IF($C$7,8,0),1,1) -> 245.1 | H88: 249.992 | I88: 249.992 | J88: 274.4096 | K88: 9.156371334 | L88: -0.5342727836 | M88: 1095.35 | N88: 1095.35 | O88: 0 | P88: 0 | Q88: 4 | R88: FALSE | S88: FALSE | T88: FALSE | U88: FALSE | V88: FALSE | W88: 0 | X88: 0 | Y88: 0 | AB88: -0.5 | AC88: -0.5 | AD88: -4 | AE88: 0.5 | AF88: 0.5 | AG88: 4 | AP88: 218485400
A89: 57 | B89: =OFFSET(InputPriceData!B$15,CalculationsAndCharts!$A89+$A$11,0,1,1) -> 2018-12-24 | C89: =OFFSET(InputPriceData!G$15,CalculationsAndCharts!$A89+$A$11,IF($C$7,8,0),1,1) -> 147311600 | D89: =OFFSET(InputPriceData!C$15,CalculationsAndCharts!$A89+$A$11,IF($C$7,8,0),1,1) -> 237.99 | E89: =OFFSET(InputPriceData!D$15,CalculationsAndCharts!$A89+$A$11,IF($C$7,8,0),1,1) -> 239.78 | F89: =OFFSET(InputPriceData!E$15,CalculationsAndCharts!$A89+$A$11,IF($C$7,8,0),1,1) -> 233.24 | G89: =OFFSET(InputPriceData!F$15,CalculationsAndCharts!$A89+$A$11,IF($C$7,8,0),1,1) -> 233.31 | H89: 251.626 | I89: 251.626 | J89: 274.7412 | K89: 9.585493415 | L89: -1.910804088 | M89: 1095.35 | N89: 1095.35 | O89: 0 | P89: 0 | Q89: 5 | R89: FALSE | S89: FALSE | T89: FALSE | U89: FALSE | V89: FALSE | W89: 0 | X89: 0 | Y89: 0 | AB89: -0.5 | AC89: -0.5 | AD89: -4 | AE89: 0.5 | AF89: 0.5 | AG89: 4 | AQ89: 147311600
A90: 58 | B90: =OFFSET(InputPriceData!B$15,CalculationsAndCharts!$A90+$A$11,0,1,1) -> 2018-12-21 | C90: =OFFSET(InputPriceData!G$15,CalculationsAndCharts!$A90+$A$11,IF($C$7,8,0),1,1) -> 255345600 | D90: =OFFSET(InputPriceData!C$15,CalculationsAndCharts!$A90+$A$11,IF($C$7,8,0),1,1) -> 245.66 | E90: =OFFSET(InputPriceData!D$15,CalculationsAndCharts!$A90+$A$11,IF($C$7,8,0),1,1) -> 248.61 | F90: =OFFSET(InputPriceData!E$15,CalculationsAndCharts!$A90+$A$11,IF($C$7,8,0),1,1) -> 238.93 | G90: =OFFSET(InputPriceData!F$15,CalculationsAndCharts!$A90+$A$11,IF($C$7,8,0),1,1) -> 239.64 | H90: 254.434 | I90: 254.434 | J90: 275.1756 | K90: 7.744856616 | L90: -1.910170935 | M90: 1095.35 | N90: 1095.35 | O90: 0 | P90: 0 | Q90: 5 | R90: FALSE | S90: FALSE | T90: FALSE | U90: FALSE | V90: FALSE | W90: 0 | X90: 0 | Y90: 0 | AB90: -0.5 | AC90: -0.5 | AD90: -4 | AE90: 0.5 | AF90: 0.5 | AG90: 4 | AQ90: 255345600
A91: 59 | B91: =OFFSET(InputPriceData!B$15,CalculationsAndCharts!$A91+$A$11,0,1,1) -> 2018-12-20 | C91: =OFFSET(InputPriceData!G$15,CalculationsAndCharts!$A91+$A$11,IF($C$7,8,0),1,1) -> 252053400 | D91: =OFFSET(InputPriceData!C$15,CalculationsAndCharts!$A91+$A$11,IF($C$7,8,0),1,1) -> 247.32 | E91: =OFFSET(InputPriceData!D$15,CalculationsAndCharts!$A91+$A$11,IF($C$7,8,0),1,1) -> 249.06 | F91: =OFFSET(InputPriceData!E$15,CalculationsAndCharts!$A91+$A$11,IF($C$7,8,0),1,1) -> 242.16 | G91: =OFFSET(InputPriceData!F$15,CalculationsAndCharts!$A91+$A$11,IF($C$7,8,0),1,1) -> 244.66 | H91: 256.559 | I91: 256.559 | J91: 275.5514 | K91: 6.144015706 | L91: -1.936681247 | M91: 1095.35 | N91: 1095.35 | O91: 0 | P91: 0 | Q91: 4 | R91: FALSE | S91: FALSE | T91: FALSE | U91: FALSE | V91: FALSE | W91: 0 | X91: 0 | Y91: 0 | AB91: -0.5 | AC91: -0.5 | AD91: -4 | AE91: 0.5 | AF91: 0.5 | AG91: 4 | AQ91: 252053400
A92: 60 | B92: =OFFSET(InputPriceData!B$15,CalculationsAndCharts!$A92+$A$11,0,1,1) -> 2018-12-19 | C92: =OFFSET(InputPriceData!G$15,CalculationsAndCharts!$A92+$A$11,IF($C$7,8,0),1,1) -> 214992800 | D92: =OFFSET(InputPriceData!C$15,CalculationsAndCharts!$A92+$A$11,IF($C$7,8,0),1,1) -> 252.58 | E92: =OFFSET(InputPriceData!D$15,CalculationsAndCharts!$A92+$A$11,IF($C$7,8,0),1,1) -> 256.76 | F92: =OFFSET(InputPriceData!E$15,CalculationsAndCharts!$A92+$A$11,IF($C$7,8,0),1,1) -> 246.82 | G92: =OFFSET(InputPriceData!F$15,CalculationsAndCharts!$A92+$A$11,IF($C$7,8,0),1,1) -> 248.71 | H92: 258.803 | I92: 258.803 | J92: 275.8634 | K92: 5.446654111 | L92: -1.853064247 | M92: 1095.35 | N92: 1095.35 | O92: 0 | P92: 0 | Q92: 4 | R92: FALSE | S92: FALSE | T92: FALSE | U92: FALSE | V92: FALSE | W92: 0 | X92: 0 | Y92: 0 | AB92: -0.5 | AC92: -0.5 | AD92: -4 | AE92: 0.5 | AF92: 0.5 | AG92: 4 | AQ92: 214992800
A93: 61 | B93: =OFFSET(InputPriceData!B$15,CalculationsAndCharts!$A93+$A$11,0,1,1) -> 2018-12-18 | C93: =OFFSET(InputPriceData!G$15,CalculationsAndCharts!$A93+$A$11,IF($C$7,8,0),1,1) -> 134515100 | D93: =OFFSET(InputPriceData!C$15,CalculationsAndCharts!$A93+$A$11,IF($C$7,8,0),1,1) -> 254.59 | E93: =OFFSET(InputPriceData!D$15,CalculationsAndCharts!$A93+$A$11,IF($C$7,8,0),1,1) -> 255.33 | F93: =OFFSET(InputPriceData!E$15,CalculationsAndCharts!$A93+$A$11,IF($C$7,8,0),1,1) -> 250.71 | G93: =OFFSET(InputPriceData!F$15,CalculationsAndCharts!$A93+$A$11,IF($C$7,8,0),1,1) -> 252.49 | H93: 260.682 | I93: 260.682 | J93: 276.1493 | K93: 4.848949989 | L93: -1.689437923 | M93: 1095.35 | N93: 1095.35 | O93: 0 | P93: 0 | Q93: 4 | R93: FALSE | S93: FALSE | T93: FALSE | U93: FALSE | V93: FALSE | W93: 0 | X93: 0 | Y93: 0 | AB93: -0.5 | AC93: -0.5 | AD93: -4 | AE93: 0.5 | AF93: 0.5 | AG93: 4 | AQ93: 134515100
A94: 62 | B94: =OFFSET(InputPriceData!B$15,CalculationsAndCharts!$A94+$A$11,0,1,1) -> 2018-12-17 | C94: =OFFSET(InputPriceData!G$15,CalculationsAndCharts!$A94+$A$11,IF($C$7,8,0),1,1) -> 165492300 | D94: =OFFSET(InputPriceData!C$15,CalculationsAndCharts!$A94+$A$11,IF($C$7,8,0),1,1) -> 256.76 | E94: =OFFSET(InputPriceData!D$15,CalculationsAndCharts!$A94+$A$11,IF($C$7,8,0),1,1) -> 258 | F94: =OFFSET(InputPriceData!E$15,CalculationsAndCharts!$A94+$A$11,IF($C$7,8,0),1,1) -> 250.95 | G94: =OFFSET(InputPriceData!F$15,CalculationsAndCharts!$A94+$A$11,IF($C$7,8,0),1,1) -> 252.76 | H94: 263.079 | I94: 263.079 | J94: 276.4164 | K94: 5.995860989 | L94: -1.721020554 | M94: 1095.35 | N94: 1095.35 | O94: 0 | P94: 0 | Q94: 4 | R94: FALSE | S94: FALSE | T94: FALSE | U94: FALSE | V94: FALSE | W94: 0 | X94: 0 | Y94: 0 | AB94: -0.5 | AC94: -0.5 | AD94: -4 | AE94: 0.5 | AF94: 0.5 | AG94: 4 | AQ94: 165492300
A95: 63 | B95: =OFFSET(InputPriceData!B$15,CalculationsAndCharts!$A95+$A$11,0,1,1) -> 2018-12-14 | C95: =OFFSET(InputPriceData!G$15,CalculationsAndCharts!$A95+$A$11,IF($C$7,8,0),1,1) -> 116961100 | D95: =OFFSET(InputPriceData!C$15,CalculationsAndCharts!$A95+$A$11,IF($C$7,8,0),1,1) -> 260.29 | E95: =OFFSET(InputPriceData!D$15,CalculationsAndCharts!$A95+$A$11,IF($C$7,8,0),1,1) -> 261.35 | F95: =OFFSET(InputPriceData!E$15,CalculationsAndCharts!$A95+$A$11,IF($C$7,8,0),1,1) -> 257.21 | G95: =OFFSET(InputPriceData!F$15,CalculationsAndCharts!$A95+$A$11,IF($C$7,8,0),1,1) -> 257.82 | H95: 265.088 | I95: 265.088 | J95: 276.6874 | K95: 5.55097613 | L95: -1.309319267 | M95: 1095.35 | N95: 1095.35 | O95: 0 | P95: 0 | Q95: 4 | R95: FALSE | S95: FALSE | T95: FALSE | U95: FALSE | V95: FALSE | W95: 0 | X95: 0 | Y95: 0 | AB95: -0.5 | AC95: -0.5 | AD95: -4 | AE95: 0.5 | AF95: 0.5 | AG95: 4 | AQ95: 116961100
A96: 64 | B96: =OFFSET(InputPriceData!B$15,CalculationsAndCharts!$A96+$A$11,0,1,1) -> 2018-12-13 | C96: =OFFSET(InputPriceData!G$15,CalculationsAndCharts!$A96+$A$11,IF($C$7,8,0),1,1) -> 96662700 | D96: =OFFSET(InputPriceData!C$15,CalculationsAndCharts!$A96+$A$11,IF($C$7,8,0),1,1) -> 263.81 | E96: =OFFSET(InputPriceData!D$15,CalculationsAndCharts!$A96+$A$11,IF($C$7,8,0),1,1) -> 264.77 | F96: =OFFSET(InputPriceData!E$15,CalculationsAndCharts!$A96+$A$11,IF($C$7,8,0),1,1) -> 261.44 | G96: =OFFSET(InputPriceData!F$15,CalculationsAndCharts!$A96+$A$11,IF($C$7,8,0),1,1) -> 262.67 | H96: 266.425 | I96: 266.425 | J96: 276.8841 | K96: 5.240880174 | L96: -0.7164827043 | M96: 1095.35 | N96: 1095.35 | O96: 0 | P96: 0 | Q96: 4 | R96: FALSE | S96: FALSE | T96: FALSE | U96: FALSE | V96: FALSE | W96: 0 | X96: 0 | Y96: 0 | AB96: -0.5 | AC96: -0.5 | AD96: -4 | AE96: 0.5 | AF96: 0.5 | AG96: 4 | AQ96: 96662700
A97: 65 | B97: =OFFSET(InputPriceData!B$15,CalculationsAndCharts!$A97+$A$11,0,1,1) -> 2018-12-12 | C97: =OFFSET(InputPriceData!G$15,CalculationsAndCharts!$A97+$A$11,IF($C$7,8,0),1,1) -> 97976700 | D97: =OFFSET(InputPriceData!C$15,CalculationsAndCharts!$A97+$A$11,IF($C$7,8,0),1,1) -> 264.75 | E97: =OFFSET(InputPriceData!D$15,CalculationsAndCharts!$A97+$A$11,IF($C$7,8,0),1,1) -> 266.27 | F97: =OFFSET(InputPriceData!E$15,CalculationsAndCharts!$A97+$A$11,IF($C$7,8,0),1,1) -> 262.67 | G97: =OFFSET(InputPriceData!F$15,CalculationsAndCharts!$A97+$A$11,IF($C$7,8,0),1,1) -> 262.76 | H97: 267.337 | I97: 267.337 | J97: 277.0184 | K97: 5.301264095 | L97: -0.8633789825 | M97: =IF(LogicallyAvailableRows-$A97<$E$18,NA(),IF(LogicallyAvailableRows-$A97=$E$18,$E$16,M98+Y98)) -> 1095.35 | N97: =IF(LogicallyAvailableRows-$A97<$E$18,NA(),M97+P97) -> 1095.35 | O97: =IF(LogicallyAvailableRows-$A97<$E$18,NA(),IF(LogicallyAvailableRows-$A97=$E$18,0,O98+W98)) -> 0 | P97: =IF(LogicallyAvailableRows-$A97<$E$18,NA(),O97*G97) -> 0 | Q97: =IF(LogicallyAvailableRows-$A97<$E$18,NA(),ROUND(IF(N97>0,(N97*$A$20)/G97,0),0)) -> 4 | R97: =IF(LogicallyAvailableRows-$A97<$E$18,NA(),IF(LogicallyAvailableRows-$A97=$E$18,FALSE,OR(AND(L98>$A$22,L97<-$A$22),AND(L98<-$A$22,L97>$A$22),ABS(L97)<$A$22))) -> FALSE | S97: =IF(LogicallyAvailableRows-$A97<$E$18,NA(),AND((L97>$A$23),(O97>($A$19*-1)),(I97<J97))) -> FALSE | T97: =AND(R97,O97<0) -> FALSE | U97: =IF(LogicallyAvailableRows-$A97<$E$18,NA(),AND((L97<-$A$23),(O97<$A$19),(I97>J97))) -> FALSE | V97: =AND(R97,O97>0) -> FALSE | W97: =IF(LogicallyAvailableRows-$A97<$E$18,NA(),IF(R97,-O97,IF(S97,-Q97,IF(U97,Q97,0)))) -> 0 | X97: =IF(LogicallyAvailableRows-$A97<$E$18,NA(),G97*-W97) -> 0 | Y97: =IF(LogicallyAvailableRows-$A97<$E$18,NA(),G97*-W97*IF(W97<0,1-$A$21,1+$A$21)) -> 0 | AB97: -0.5 | AC97: -0.5 | AD97: -4 | AE97: 0.5 | AF97: 0.5 | AG97: 4 | AQ97: 97976700
A98: 66 | B98: =OFFSET(InputPriceData!B$15,CalculationsAndCharts!$A98+$A$11,0,1,1) -> 2018-12-11 | C98: =OFFSET(InputPriceData!G$15,CalculationsAndCharts!$A98+$A$11,IF($C$7,8,0),1,1) -> 121504400 | D98: =OFFSET(InputPriceData!C$15,CalculationsAndCharts!$A98+$A$11,IF($C$7,8,0),1,1) -> 264.94 | E98: =OFFSET(InputPriceData!D$15,CalculationsAndCharts!$A98+$A$11,IF($C$7,8,0),1,1) -> 265.15 | F98: =OFFSET(InputPriceData!E$15,CalculationsAndCharts!$A98+$A$11,IF($C$7,8,0),1,1) -> 259.81 | G98: =OFFSET(InputPriceData!F$15,CalculationsAndCharts!$A98+$A$11,IF($C$7,8,0),1,1) -> 261.44 | H98: =IF(LogicallyAvailableRows-A98<$A$17,NA(),AVERAGE(OFFSET($G98,0,0,$A$17,1))) -> 267.628 | I98: =IF(LogicallyAvailableRows-A98<$A$17,NA(),AVERAGE(OFFSET($G98,0,0,$A$17,1))) -> 267.628 | J98: =IF(LogicallyAvailableRows-A98<$E$18,NA(),AVERAGE(OFFSET($G98,0,0,$E$18,1))) -> 277.1467 | K98: =IF(LogicallyAvailableRows-A98<$A$17,NA(),_xlfn.STDEV.P(OFFSET($G98,0,0,$A$17,1))) -> 5.118761178 | L98: =IF(LogicallyAvailableRows-A98<$A$17,NA(),(G98-H98)/K98) -> -1.208886249 | M98: 1095.35 | N98: 1095.35 | O98: 0 | P98: 0 | Q98: 4 | R98: FALSE | S98: FALSE | T98: FALSE | U98: FALSE | V98: FALSE | W98: 0 | X98: 0 | Y98: 0 | AB98: =-$A$22 -> -0.5 | AC98: =-$A$23-AB98 -> -0.5 | AD98: =-$AC$30-(-$A$23) -> -4 | AE98: =$A$22 -> 0.5 | AF98: =$A$23-AE98 -> 0.5 | AG98: =$AC$30-$A$23 -> 4 | AQ98: 121504400
A99: 67 | B99: =OFFSET(InputPriceData!B$15,CalculationsAndCharts!$A99+$A$11,0,1,1) -> 2018-12-10 | C99: =OFFSET(InputPriceData!G$15,CalculationsAndCharts!$A99+$A$11,IF($C$7,8,0),1,1) -> 151445900 | D99: =OFFSET(InputPriceData!C$15,CalculationsAndCharts!$A99+$A$11,IF($C$7,8,0),1,1) -> 260.69 | E99: =OFFSET(InputPriceData!D$15,CalculationsAndCharts!$A99+$A$11,IF($C$7,8,0),1,1) -> 262.46 | F99: =OFFSET(InputPriceData!E$15,CalculationsAndCharts!$A99+$A$11,IF($C$7,8,0),1,1) -> 255.99 | G99: =OFFSET(InputPriceData!F$15,CalculationsAndCharts!$A99+$A$11,IF($C$7,8,0),1,1) -> 261.39 | H99: 267.962 | I99: 267.962 | J99: 277.2913 | K99: 4.803346334 | L99: -1.368212813 | M99: 1095.35 | N99: 1095.35 | O99: 0 | P99: 0 | Q99: 4 | R99: FALSE | S99: FALSE | T99: FALSE | U99: FALSE | V99: FALSE | W99: 0 | X99: 0 | Y99: 0 | AB99: -0.5 | AC99: -0.5 | AD99: -4 | AE99: 0.5 | AF99: 0.5 | AG99: 4 | AP99: 151445900
A100: 68 | B100: =OFFSET(InputPriceData!B$15,CalculationsAndCharts!$A100+$A$11,0,1,1) -> 2018-12-07 | C100: =OFFSET(InputPriceData!G$15,CalculationsAndCharts!$A100+$A$11,IF($C$7,8,0),1,1) -> 161018900 | D100: =OFFSET(InputPriceData!C$15,CalculationsAndCharts!$A100+$A$11,IF($C$7,8,0),1,1) -> 266.72 | E100: =OFFSET(InputPriceData!D$15,CalculationsAndCharts!$A100+$A$11,IF($C$7,8,0),1,1) -> 268.46 | F100: =OFFSET(InputPriceData!E$15,CalculationsAndCharts!$A100+$A$11,IF($C$7,8,0),1,1) -> 259.96 | G100: =OFFSET(InputPriceData!F$15,CalculationsAndCharts!$A100+$A$11,IF($C$7,8,0),1,1) -> 260.89 | H100: 267.88 | I100: 267.88 | J100: 277.4469 | K100: 4.920412584 | L100: -1.420612577 | M100: 1095.35 | N100: 1095.35 | O100: 0 | P100: 0 | Q100: 4 | R100: FALSE | S100: FALSE | T100: FALSE | U100: FALSE | V100: FALSE | W100: 0 | X100: 0 | Y100: 0 | AB100: -0.5 | AC100: -0.5 | AD100: -4 | AE100: 0.5 | AF100: 0.5 | AG100: 4 | AQ100: 161018900
A101: 69 | B101: =OFFSET(InputPriceData!B$15,CalculationsAndCharts!$A101+$A$11,0,1,1) -> 2018-12-06 | C101: =OFFSET(InputPriceData!G$15,CalculationsAndCharts!$A101+$A$11,IF($C$7,8,0),1,1) -> 204185400 | D101: =OFFSET(InputPriceData!C$15,CalculationsAndCharts!$A101+$A$11,IF($C$7,8,0),1,1) -> 263.22 | E101: =OFFSET(InputPriceData!D$15,CalculationsAndCharts!$A101+$A$11,IF($C$7,8,0),1,1) -> 267.23 | F101: =OFFSET(InputPriceData!E$15,CalculationsAndCharts!$A101+$A$11,IF($C$7,8,0),1,1) -> 259.77 | G101: =OFFSET(InputPriceData!F$15,CalculationsAndCharts!$A101+$A$11,IF($C$7,8,0),1,1) -> 267.1 | H101: 268.024 | I101: 268.024 | J101: 277.6017 | K101: 4.731169411 | L101: -0.1953005525 | M101: 1095.35 | N101: 1095.35 | O101: 0 | P101: 0 | Q101: 4 | R101: TRUE | S101: FALSE | T101: FALSE | U101: FALSE | V101: FALSE | W101: 0 | X101: 0 | Y101: 0 | AB101: -0.5 | AC101: -0.5 | AD101: -4 | AE101: 0.5 | AF101: 0.5 | AG101: 4 | AP101: 204185400
A102: 70 | B102: =OFFSET(InputPriceData!B$15,CalculationsAndCharts!$A102+$A$11,0,1,1) -> 2018-12-04 | C102: =OFFSET(InputPriceData!G$15,CalculationsAndCharts!$A102+$A$11,IF($C$7,8,0),1,1) -> 177986000 | D102: =OFFSET(InputPriceData!C$15,CalculationsAndCharts!$A102+$A$11,IF($C$7,8,0),1,1) -> 275.54 | E102: =OFFSET(InputPriceData!D$15,CalculationsAndCharts!$A102+$A$11,IF($C$7,8,0),1,1) -> 276.02 | F102: =OFFSET(InputPriceData!E$15,CalculationsAndCharts!$A102+$A$11,IF($C$7,8,0),1,1) -> 267.16 | G102: =OFFSET(InputPriceData!F$15,CalculationsAndCharts!$A102+$A$11,IF($C$7,8,0),1,1) -> 267.5 | H102: 267.458 | I102: 267.458 | J102: 277.6832 | K102: 5.129633125 | L102: 0.008187720052 | M102: 2165.35 | N102: 1095.35 | O102: -4 | P102: -1070 | Q102: 4 | R102: TRUE | S102: FALSE | T102: TRUE | U102: FALSE | V102: FALSE | W102: 4 | X102: -1070 | Y102: -1070 | AB102: -0.5 | AC102: -0.5 | AD102: -4 | AE102: 0.5 | AF102: 0.5 | AG102: 4 | AQ102: 177986000
A103: 71 | B103: =OFFSET(InputPriceData!B$15,CalculationsAndCharts!$A103+$A$11,0,1,1) -> 2018-12-03 | C103: =OFFSET(InputPriceData!G$15,CalculationsAndCharts!$A103+$A$11,IF($C$7,8,0),1,1) -> 103176300 | D103: =OFFSET(InputPriceData!C$15,CalculationsAndCharts!$A103+$A$11,IF($C$7,8,0),1,1) -> 277.43 | E103: =OFFSET(InputPriceData!D$15,CalculationsAndCharts!$A103+$A$11,IF($C$7,8,0),1,1) -> 277.55 | F103: =OFFSET(InputPriceData!E$15,CalculationsAndCharts!$A103+$A$11,IF($C$7,8,0),1,1) -> 274.69 | G103: =OFFSET(InputPriceData!F$15,CalculationsAndCharts!$A103+$A$11,IF($C$7,8,0),1,1) -> 276.46 | H103: 267.344 | I103: 267.344 | J103: 277.7632 | K103: 5.140089882 | L103: 1.773509843 | M103: 2165.35 | N103: 1059.51 | O103: -4 | P103: -1105.84 | Q103: 4 | R103: FALSE | S103: FALSE | T103: FALSE | U103: FALSE | V103: FALSE | W103: 0 | X103: 0 | Y103: 0 | AB103: -0.5 | AC103: -0.5 | AD103: -4 | AE103: 0.5 | AF103: 0.5 | AG103: 4 | AQ103: 103176300
A104: 72 | B104: =OFFSET(InputPriceData!B$15,CalculationsAndCharts!$A104+$A$11,0,1,1) -> 2018-11-30 | C104: =OFFSET(InputPriceData!G$15,CalculationsAndCharts!$A104+$A$11,IF($C$7,8,0),1,1) -> 98204200 | D104: =OFFSET(InputPriceData!C$15,CalculationsAndCharts!$A104+$A$11,IF($C$7,8,0),1,1) -> 271.03 | E104: =OFFSET(InputPriceData!D$15,CalculationsAndCharts!$A104+$A$11,IF($C$7,8,0),1,1) -> 273.47 | F104: =OFFSET(InputPriceData!E$15,CalculationsAndCharts!$A104+$A$11,IF($C$7,8,0),1,1) -> 270.67 | G104: =OFFSET(InputPriceData!F$15,CalculationsAndCharts!$A104+$A$11,IF($C$7,8,0),1,1) -> 272.85 | H104: 266.793 | I104: 266.793 | J104: 277.7514 | K104: 4.371167007 | L104: 1.385671147 | M104: 2165.35 | N104: 1073.95 | O104: -4 | P104: -1091.4 | Q104: 4 | R104: FALSE | S104: FALSE | T104: FALSE | U104: FALSE | V104: FALSE | W104: 0 | X104: 0 | Y104: 0 | AB104: -0.5 | AC104: -0.5 | AD104: -4 | AE104: 0.5 | AF104: 0.5 | AG104: 4 | AP104: 98204200
A105: 73 | B105: =OFFSET(InputPriceData!B$15,CalculationsAndCharts!$A105+$A$11,0,1,1) -> 2018-11-29 | C105: =OFFSET(InputPriceData!G$15,CalculationsAndCharts!$A105+$A$11,IF($C$7,8,0),1,1) -> 82346400 | D105: =OFFSET(InputPriceData!C$15,CalculationsAndCharts!$A105+$A$11,IF($C$7,8,0),1,1) -> 270.93 | E105: =OFFSET(InputPriceData!D$15,CalculationsAndCharts!$A105+$A$11,IF($C$7,8,0),1,1) -> 272.75 | F105: =OFFSET(InputPriceData!E$15,CalculationsAndCharts!$A105+$A$11,IF($C$7,8,0),1,1) -> 269.66 | G105: =OFFSET(InputPriceData!F$15,CalculationsAndCharts!$A105+$A$11,IF($C$7,8,0),1,1) -> 271.19 | H105: 266.532 | I105: 266.532 | J105: 277.751 | K105: 4.069205819 | L105: 1.144695109 | M105: 2165.35 | N105: 1080.59 | O105: -4 | P105: -1084.76 | Q105: 4 | R105: FALSE | S105: FALSE | T105: FALSE | U105: FALSE | V105: FALSE | W105: 0 | X105: 0 | Y105: 0 | AB105: -0.5 | AC105: -0.5 | AD105: -4 | AE105: 0.5 | AF105: 0.5 | AG105: 4 | AP105: 82346400
A106: 74 | B106: =OFFSET(InputPriceData!B$15,CalculationsAndCharts!$A106+$A$11,0,1,1) -> 2018-11-28 | C106: =OFFSET(InputPriceData!G$15,CalculationsAndCharts!$A106+$A$11,IF($C$7,8,0),1,1) -> 127629600 | D106: =OFFSET(InputPriceData!C$15,CalculationsAndCharts!$A106+$A$11,IF($C$7,8,0),1,1) -> 266.86 | E106: =OFFSET(InputPriceData!D$15,CalculationsAndCharts!$A106+$A$11,IF($C$7,8,0),1,1) -> 271.79 | F106: =OFFSET(InputPriceData!E$15,CalculationsAndCharts!$A106+$A$11,IF($C$7,8,0),1,1) -> 265.6 | G106: =OFFSET(InputPriceData!F$15,CalculationsAndCharts!$A106+$A$11,IF($C$7,8,0),1,1) -> 271.79 | H106: 266.158 | I106: 266.158 | J106: 277.7873 | K106: 3.785912836 | L106: 1.487620092 | M106: 1078.19 | N106: 1078.19 | O106: 0 | P106: 0 | Q106: 4 | R106: FALSE | S106: TRUE | T106: FALSE | U106: FALSE | V106: FALSE | W106: -4 | X106: 1087.16 | Y106: 1087.16 | AB106: -0.5 | AC106: -0.5 | AD106: -4 | AE106: 0.5 | AF106: 0.5 | AG106: 4 | AP106: 127629600
A107: 75 | B107: =OFFSET(InputPriceData!B$15,CalculationsAndCharts!$A107+$A$11,0,1,1) -> 2018-11-27 | C107: =OFFSET(InputPriceData!G$15,CalculationsAndCharts!$A107+$A$11,IF($C$7,8,0),1,1) -> 75502400 | D107: =OFFSET(InputPriceData!C$15,CalculationsAndCharts!$A107+$A$11,IF($C$7,8,0),1,1) -> 263.63 | E107: =OFFSET(InputPriceData!D$15,CalculationsAndCharts!$A107+$A$11,IF($C$7,8,0),1,1) -> 265.67 | F107: =OFFSET(InputPriceData!E$15,CalculationsAndCharts!$A107+$A$11,IF($C$7,8,0),1,1) -> 262.96 | G107: =OFFSET(InputPriceData!F$15,CalculationsAndCharts!$A107+$A$11,IF($C$7,8,0),1,1) -> 265.67 | H107: 265.908 | I107: 265.908 | J107: 277.8078 | K107: 3.475577074 | L107: -0.06847783689 | M107: 1078.19 | N107: 1078.19 | O107: 0 | P107: 0 | Q107: 4 | R107: TRUE | S107: FALSE | T107: FALSE | U107: FALSE | V107: FALSE | W107: 0 | X107: 0 | Y107: 0 | AB107: -0.5 | AC107: -0.5 | AD107: -4 | AE107: 0.5 | AF107: 0.5 | AG107: 4 | AP107: 75502400
A108: 76 | B108: =OFFSET(InputPriceData!B$15,CalculationsAndCharts!$A108+$A$11,0,1,1) -> 2018-11-26 | C108: =OFFSET(InputPriceData!G$15,CalculationsAndCharts!$A108+$A$11,IF($C$7,8,0),1,1) -> 79981400 | D108: =OFFSET(InputPriceData!C$15,CalculationsAndCharts!$A108+$A$11,IF($C$7,8,0),1,1) -> 263.08 | E108: =OFFSET(InputPriceData!D$15,CalculationsAndCharts!$A108+$A$11,IF($C$7,8,0),1,1) -> 265.03 | F108: =OFFSET(InputPriceData!E$15,CalculationsAndCharts!$A108+$A$11,IF($C$7,8,0),1,1) -> 262.64 | G108: =OFFSET(InputPriceData!F$15,CalculationsAndCharts!$A108+$A$11,IF($C$7,8,0),1,1) -> 264.78 | H108: 266.321 | I108: 266.321 | J108: 277.865 | K108: 3.663081899 | L108: -0.4206840148 | M108: 1078.19 | N108: 1078.19 | O108: 0 | P108: 0 | Q108: 4 | R108: TRUE | S108: FALSE | T108: FALSE | U108: FALSE | V108: FALSE | W108: 0 | X108: 0 | Y108: 0 | AB108: -0.5 | AC108: -0.5 | AD108: -4 | AE108: 0.5 | AF108: 0.5 | AG108: 4 | AP108: 79981400
A109: 77 | B109: =OFFSET(InputPriceData!B$15,CalculationsAndCharts!$A109+$A$11,0,1,1) -> 2018-11-23 | C109: =OFFSET(InputPriceData!G$15,CalculationsAndCharts!$A109+$A$11,IF($C$7,8,0),1,1) -> 42807900 | D109: =OFFSET(InputPriceData!C$15,CalculationsAndCharts!$A109+$A$11,IF($C$7,8,0),1,1) -> 260.5 | E109: =OFFSET(InputPriceData!D$15,CalculationsAndCharts!$A109+$A$11,IF($C$7,8,0),1,1) -> 262.13 | F109: =OFFSET(InputPriceData!E$15,CalculationsAndCharts!$A109+$A$11,IF($C$7,8,0),1,1) -> 260.4 | G109: =OFFSET(InputPriceData!F$15,CalculationsAndCharts!$A109+$A$11,IF($C$7,8,0),1,1) -> 260.57 | H109: 267.337 | I109: 267.337 | J109: 277.9084 | K109: 4.42460857 | L109: -1.529400826 | M109: 1078.19 | N109: 1078.19 | O109: 0 | P109: 0 | Q109: 4 | R109: FALSE | S109: FALSE | T109: FALSE | U109: FALSE | V109: FALSE | W109: 0 | X109: 0 | Y109: 0 | AB109: -0.5 | AC109: -0.5 | AD109: -4 | AE109: 0.5 | AF109: 0.5 | AG109: 4 | AP109: 42807900
A110: 78 | B110: =OFFSET(InputPriceData!B$15,CalculationsAndCharts!$A110+$A$11,0,1,1) -> 2018-11-21 | C110: =OFFSET(InputPriceData!G$15,CalculationsAndCharts!$A110+$A$11,IF($C$7,8,0),1,1) -> 75563700 | D110: =OFFSET(InputPriceData!C$15,CalculationsAndCharts!$A110+$A$11,IF($C$7,8,0),1,1) -> 263.16 | E110: =OFFSET(InputPriceData!D$15,CalculationsAndCharts!$A110+$A$11,IF($C$7,8,0),1,1) -> 264.43 | F110: =OFFSET(InputPriceData!E$15,CalculationsAndCharts!$A110+$A$11,IF($C$7,8,0),1,1) -> 262.32 | G110: =OFFSET(InputPriceData!F$15,CalculationsAndCharts!$A110+$A$11,IF($C$7,8,0),1,1) -> 262.33 | H110: 269.045 | I110: 269.045 | J110: 277.9721 | K110: 4.766179287 | L110: -1.408885314 | M110: 1078.19 | N110: 1078.19 | O110: 0 | P110: 0 | Q110: 4 | R110: FALSE | S110: FALSE | T110: FALSE | U110: FALSE | V110: FALSE | W110: 0 | X110: 0 | Y110: 0 | AB110: -0.5 | AC110: -0.5 | AD110: -4 | AE110: 0.5 | AF110: 0.5 | AG110: 4 | AQ110: 75563700
A111: 79 | B111: =OFFSET(InputPriceData!B$15,CalculationsAndCharts!$A111+$A$11,0,1,1) -> 2018-11-20 | C111: =OFFSET(InputPriceData!G$15,CalculationsAndCharts!$A111+$A$11,IF($C$7,8,0),1,1) -> 136021300 | D111: =OFFSET(InputPriceData!C$15,CalculationsAndCharts!$A111+$A$11,IF($C$7,8,0),1,1) -> 262.66 | E111: =OFFSET(InputPriceData!D$15,CalculationsAndCharts!$A111+$A$11,IF($C$7,8,0),1,1) -> 264.29 | F111: =OFFSET(InputPriceData!E$15,CalculationsAndCharts!$A111+$A$11,IF($C$7,8,0),1,1) -> 260.47 | G111: =OFFSET(InputPriceData!F$15,CalculationsAndCharts!$A111+$A$11,IF($C$7,8,0),1,1) -> 261.44 | H111: 270.627 | I111: 270.627 | J111: 278.0276 | K111: 4.89844067 | L111: -1.875494799 | M111: 1078.19 | N111: 1078.19 | O111: 0 | P111: 0 | Q111: 4 | R111: FALSE | S111: FALSE | T111: FALSE | U111: FALSE | V111: FALSE | W111: 0 | X111: 0 | Y111: 0 | AB111: -0.5 | AC111: -0.5 | AD111: -4 | AE111: 0.5 | AF111: 0.5 | AG111: 4 | AQ111: 136021300
A112: 80 | B112: =OFFSET(InputPriceData!B$15,CalculationsAndCharts!$A112+$A$11,0,1,1) -> 2018-11-19 | C112: =OFFSET(InputPriceData!G$15,CalculationsAndCharts!$A112+$A$11,IF($C$7,8,0),1,1) -> 103061700 | D112: =OFFSET(InputPriceData!C$15,CalculationsAndCharts!$A112+$A$11,IF($C$7,8,0),1,1) -> 270.27 | E112: =OFFSET(InputPriceData!D$15,CalculationsAndCharts!$A112+$A$11,IF($C$7,8,0),1,1) -> 270.6 | F112: =OFFSET(InputPriceData!E$15,CalculationsAndCharts!$A112+$A$11,IF($C$7,8,0),1,1) -> 265.34 | G112: =OFFSET(InputPriceData!F$15,CalculationsAndCharts!$A112+$A$11,IF($C$7,8,0),1,1) -> 266.36 | H112: 271.715 | I112: 271.715 | J112: 278.0863 | K112: 3.828512113 | L112: -1.3987157 | M112: 1078.19 | N112: 1078.19 | O112: 0 | P112: 0 | Q112: 4 | R112: FALSE | S112: FALSE | T112: FALSE | U112: FALSE | V112: FALSE | W112: 0 | X112: 0 | Y112: 0 | AB112: -0.5 | AC112: -0.5 | AD112: -4 | AE112: 0.5 | AF112: 0.5 | AG112: 4 | AQ112: 103061700
A113: 81 | B113: =OFFSET(InputPriceData!B$15,CalculationsAndCharts!$A113+$A$11,0,1,1) -> 2018-11-16 | C113: =OFFSET(InputPriceData!G$15,CalculationsAndCharts!$A113+$A$11,IF($C$7,8,0),1,1) -> 126668000 | D113: =OFFSET(InputPriceData!C$15,CalculationsAndCharts!$A113+$A$11,IF($C$7,8,0),1,1) -> 269.03 | E113: =OFFSET(InputPriceData!D$15,CalculationsAndCharts!$A113+$A$11,IF($C$7,8,0),1,1) -> 271.96 | F113: =OFFSET(InputPriceData!E$15,CalculationsAndCharts!$A113+$A$11,IF($C$7,8,0),1,1) -> 268.45 | G113: =OFFSET(InputPriceData!F$15,CalculationsAndCharts!$A113+$A$11,IF($C$7,8,0),1,1) -> 270.95 | H113: 272.14 | I113: 272.14 | J113: 278.092 | K113: 3.425110217 | L113: -0.347434075 | M113: 1078.19 | N113: 1078.19 | O113: 0 | P113: 0 | Q113: 4 | R113: TRUE | S113: FALSE | T113: FALSE | U113: FALSE | V113: FALSE | W113: 0 | X113: 0 | Y113: 0 | AB113: -0.5 | AC113: -0.5 | AD113: -4 | AE113: 0.5 | AF113: 0.5 | AG113: 4 | AP113: 126668000
A114: 82 | B114: =OFFSET(InputPriceData!B$15,CalculationsAndCharts!$A114+$A$11,0,1,1) -> 2018-11-15 | C114: =OFFSET(InputPriceData!G$15,CalculationsAndCharts!$A114+$A$11,IF($C$7,8,0),1,1) -> 135101400 | D114: =OFFSET(InputPriceData!C$15,CalculationsAndCharts!$A114+$A$11,IF($C$7,8,0),1,1) -> 266.05 | E114: =OFFSET(InputPriceData!D$15,CalculationsAndCharts!$A114+$A$11,IF($C$7,8,0),1,1) -> 270.76 | F114: =OFFSET(InputPriceData!E$15,CalculationsAndCharts!$A114+$A$11,IF($C$7,8,0),1,1) -> 264.3 | G114: =OFFSET(InputPriceData!F$15,CalculationsAndCharts!$A114+$A$11,IF($C$7,8,0),1,1) -> 270.24 | H114: 271.958 | I114: 271.958 | J114: 278.0366 | K114: 3.530248716 | L114: -0.486651264 | M114: 1078.19 | N114: 1078.19 | O114: 0 | P114: 0 | Q114: 4 | R114: TRUE | S114: FALSE | T114: FALSE | U114: FALSE | V114: FALSE | W114: 0 | X114: 0 | Y114: 0 | AB114: -0.5 | AC114: -0.5 | AD114: -4 | AE114: 0.5 | AF114: 0.5 | AG114: 4 | AP114: 135101400
A115: 83 | B115: =OFFSET(InputPriceData!B$15,CalculationsAndCharts!$A115+$A$11,0,1,1) -> 2018-11-14 | C115: =OFFSET(InputPriceData!G$15,CalculationsAndCharts!$A115+$A$11,IF($C$7,8,0),1,1) -> 125335900 | D115: =OFFSET(InputPriceData!C$15,CalculationsAndCharts!$A115+$A$11,IF($C$7,8,0),1,1) -> 271.37 | E115: =OFFSET(InputPriceData!D$15,CalculationsAndCharts!$A115+$A$11,IF($C$7,8,0),1,1) -> 271.82 | F115: =OFFSET(InputPriceData!E$15,CalculationsAndCharts!$A115+$A$11,IF($C$7,8,0),1,1) -> 265.72 | G115: =OFFSET(InputPriceData!F$15,CalculationsAndCharts!$A115+$A$11,IF($C$7,8,0),1,1) -> 267.45 | H115: 272.007 | I115: 272.007 | J115: 278.0105 | K115: 3.509401801 | L115: -1.2985119 | M115: 1078.19 | N115: 1078.19 | O115: 0 | P115: 0 | Q115: 4 | R115: FALSE | S115: FALSE | T115: FALSE | U115: FALSE | V115: FALSE | W115: 0 | X115: 0 | Y115: 0 | AB115: -0.5 | AC115: -0.5 | AD115: -4 | AE115: 0.5 | AF115: 0.5 | AG115: 4 | AQ115: 125335900
A116: 84 | B116: =OFFSET(InputPriceData!B$15,CalculationsAndCharts!$A116+$A$11,0,1,1) -> 2018-11-13 | C116: =OFFSET(InputPriceData!G$15,CalculationsAndCharts!$A116+$A$11,IF($C$7,8,0),1,1) -> 98176600 | D116: =OFFSET(InputPriceData!C$15,CalculationsAndCharts!$A116+$A$11,IF($C$7,8,0),1,1) -> 270.31 | E116: =OFFSET(InputPriceData!D$15,CalculationsAndCharts!$A116+$A$11,IF($C$7,8,0),1,1) -> 272.53 | F116: =OFFSET(InputPriceData!E$15,CalculationsAndCharts!$A116+$A$11,IF($C$7,8,0),1,1) -> 268.49 | G116: =OFFSET(InputPriceData!F$15,CalculationsAndCharts!$A116+$A$11,IF($C$7,8,0),1,1) -> 269.29 | H116: 272.05 | I116: 272.05 | J116: 278.0064 | K116: 3.455523115 | L116: -0.7987213247 | M116: 1078.19 | N116: 1078.19 | O116: 0 | P116: 0 | Q116: 4 | R116: FALSE | S116: FALSE | T116: FALSE | U116: FALSE | V116: FALSE | W116: 0 | X116: 0 | Y116: 0 | AB116: -0.5 | AC116: -0.5 | AD116: -4 | AE116: 0.5 | AF116: 0.5 | AG116: 4 | AQ116: 98176600
A117: 85 | B117: =OFFSET(InputPriceData!B$15,CalculationsAndCharts!$A117+$A$11,0,1,1) -> 2018-11-12 | C117: =OFFSET(InputPriceData!G$15,CalculationsAndCharts!$A117+$A$11,IF($C$7,8,0),1,1) -> 99673600 | D117: =OFFSET(InputPriceData!C$15,CalculationsAndCharts!$A117+$A$11,IF($C$7,8,0),1,1) -> 274.37 | E117: =OFFSET(InputPriceData!D$15,CalculationsAndCharts!$A117+$A$11,IF($C$7,8,0),1,1) -> 274.64 | F117: =OFFSET(InputPriceData!E$15,CalculationsAndCharts!$A117+$A$11,IF($C$7,8,0),1,1) -> 269.23 | G117: =OFFSET(InputPriceData!F$15,CalculationsAndCharts!$A117+$A$11,IF($C$7,8,0),1,1) -> 269.8 | H117: 271.626 | I117: 271.626 | J117: 278.0207 | K117: 3.987368054 | L117: -0.4579461879 | M117: 2157.39 | N117: 1078.19 | O117: -4 | P117: -1079.2 | Q117: 4 | R117: TRUE | S117: FALSE | T117: TRUE | U117: FALSE | V117: FALSE | W117: 4 | X117: -1079.2 | Y117: -1079.2 | AB117: -0.5 | AC117: -0.5 | AD117: -4 | AE117: 0.5 | AF117: 0.5 | AG117: 4 | AQ117: 99673600
A118: 86 | B118: =OFFSET(InputPriceData!B$15,CalculationsAndCharts!$A118+$A$11,0,1,1) -> 2018-11-09 | C118: =OFFSET(InputPriceData!G$15,CalculationsAndCharts!$A118+$A$11,IF($C$7,8,0),1,1) -> 98812600 | D118: =OFFSET(InputPriceData!C$15,CalculationsAndCharts!$A118+$A$11,IF($C$7,8,0),1,1) -> 276.19 | E118: =OFFSET(InputPriceData!D$15,CalculationsAndCharts!$A118+$A$11,IF($C$7,8,0),1,1) -> 276.4 | F118: =OFFSET(InputPriceData!E$15,CalculationsAndCharts!$A118+$A$11,IF($C$7,8,0),1,1) -> 273.37 | G118: =OFFSET(InputPriceData!F$15,CalculationsAndCharts!$A118+$A$11,IF($C$7,8,0),1,1) -> 274.94 | H118: 270.764 | I118: 270.764 | J118: 278.025 | K118: 5.072920658 | L118: 0.8231944242 | M118: 2157.39 | N118: 1057.63 | O118: -4 | P118: -1099.76 | Q118: 4 | R118: FALSE | S118: FALSE | T118: FALSE | U118: FALSE | V118: FALSE | W118: 0 | X118: 0 | Y118: 0 | AB118: -0.5 | AC118: -0.5 | AD118: -4 | AE118: 0.5 | AF118: 0.5 | AG118: 4 | AQ118: 98812600
A119: 87 | B119: =OFFSET(InputPriceData!B$15,CalculationsAndCharts!$A119+$A$11,0,1,1) -> 2018-11-08 | C119: =OFFSET(InputPriceData!G$15,CalculationsAndCharts!$A119+$A$11,IF($C$7,8,0),1,1) -> 65584900 | D119: =OFFSET(InputPriceData!C$15,CalculationsAndCharts!$A119+$A$11,IF($C$7,8,0),1,1) -> 277.26 | E119: =OFFSET(InputPriceData!D$15,CalculationsAndCharts!$A119+$A$11,IF($C$7,8,0),1,1) -> 278.36 | F119: =OFFSET(InputPriceData!E$15,CalculationsAndCharts!$A119+$A$11,IF($C$7,8,0),1,1) -> 276.38 | G119: =OFFSET(InputPriceData!F$15,CalculationsAndCharts!$A119+$A$11,IF($C$7,8,0),1,1) -> 277.65 | H119: 269.533 | I119: 269.533 | J119: 277.9949 | K119: 5.393650063 | L119: 1.504917803 | M119: 2157.39 | N119: 1046.79 | O119: -4 | P119: -1110.6 | Q119: 4 | R119: FALSE | S119: FALSE | T119: FALSE | U119: FALSE | V119: FALSE | W119: 0 | X119: 0 | Y119: 0 | AB119: -0.5 | AC119: -0.5 | AD119: -4 | AE119: 0.5 | AF119: 0.5 | AG119: 4 | AP119: 65584900
A120: 88 | B120: =OFFSET(InputPriceData!B$15,CalculationsAndCharts!$A120+$A$11,0,1,1) -> 2018-11-07 | C120: =OFFSET(InputPriceData!G$15,CalculationsAndCharts!$A120+$A$11,IF($C$7,8,0),1,1) -> 102752100 | D120: =OFFSET(InputPriceData!C$15,CalculationsAndCharts!$A120+$A$11,IF($C$7,8,0),1,1) -> 274.74 | E120: =OFFSET(InputPriceData!D$15,CalculationsAndCharts!$A120+$A$11,IF($C$7,8,0),1,1) -> 278.24 | F120: =OFFSET(InputPriceData!E$15,CalculationsAndCharts!$A120+$A$11,IF($C$7,8,0),1,1) -> 274.26 | G120: =OFFSET(InputPriceData!F$15,CalculationsAndCharts!$A120+$A$11,IF($C$7,8,0),1,1) -> 278.15 | H120: 268.501 | I120: 268.501 | J120: 277.9331 | K120: 4.68222052 | L120: 2.060774361 | M120: 2157.39 | N120: 1044.79 | O120: -4 | P120: -1112.6 | Q120: 4 | R120: FALSE | S120: FALSE | T120: FALSE | U120: FALSE | V120: FALSE | W120: 0 | X120: 0 | Y120: 0 | AB120: -0.5 | AC120: -0.5 | AD120: -4 | AE120: 0.5 | AF120: 0.5 | AG120: 4 | AP120: 102752100
A121: 89 | B121: =OFFSET(InputPriceData!B$15,CalculationsAndCharts!$A121+$A$11,0,1,1) -> 2018-11-06 | C121: =OFFSET(InputPriceData!G$15,CalculationsAndCharts!$A121+$A$11,IF($C$7,8,0),1,1) -> 60085900 | D121: =OFFSET(InputPriceData!C$15,CalculationsAndCharts!$A121+$A$11,IF($C$7,8,0),1,1) -> 270.54 | E121: =OFFSET(InputPriceData!D$15,CalculationsAndCharts!$A121+$A$11,IF($C$7,8,0),1,1) -> 272.5 | F121: =OFFSET(InputPriceData!E$15,CalculationsAndCharts!$A121+$A$11,IF($C$7,8,0),1,1) -> 270.47 | G121: =OFFSET(InputPriceData!F$15,CalculationsAndCharts!$A121+$A$11,IF($C$7,8,0),1,1) -> 272.32 | H121: 266.948 | I121: 266.948 | J121: 277.8767 | K121: 3.69589989 | L121: 1.453502573 | M121: 2157.39 | N121: 1068.11 | O121: -4 | P121: -1089.28 | Q121: 4 | R121: FALSE | S121: FALSE | T121: FALSE | U121: FALSE | V121: FALSE | W121: 0 | X121: 0 | Y121: 0 | AB121: -0.5 | AC121: -0.5 | AD121: -4 | AE121: 0.5 | AF121: 0.5 | AG121: 4 | AP121: 60085900
A122: 90 | B122: =OFFSET(InputPriceData!B$15,CalculationsAndCharts!$A122+$A$11,0,1,1) -> 2018-11-05 | C122: =OFFSET(InputPriceData!G$15,CalculationsAndCharts!$A122+$A$11,IF($C$7,8,0),1,1) -> 65622500 | D122: =OFFSET(InputPriceData!C$15,CalculationsAndCharts!$A122+$A$11,IF($C$7,8,0),1,1) -> 269.67 | E122: =OFFSET(InputPriceData!D$15,CalculationsAndCharts!$A122+$A$11,IF($C$7,8,0),1,1) -> 271.22 | F122: =OFFSET(InputPriceData!E$15,CalculationsAndCharts!$A122+$A$11,IF($C$7,8,0),1,1) -> 268.59 | G122: =OFFSET(InputPriceData!F$15,CalculationsAndCharts!$A122+$A$11,IF($C$7,8,0),1,1) -> 270.61 | H122: 266.799 | I122: 266.799 | J122: 277.8843 | K122: 3.501232497 | L122: 1.088473845 | M122: 1074.95 | N122: 1074.95 | O122: 0 | P122: 0 | Q122: 4 | R122: FALSE | S122: TRUE | T122: FALSE | U122: FALSE | V122: FALSE | W122: -4 | X122: 1082.44 | Y122: 1082.44 | AB122: -0.5 | AC122: -0.5 | AD122: -4 | AE122: 0.5 | AF122: 0.5 | AG122: 4 | AP122: 65622500
A123: 91 | B123: =OFFSET(InputPriceData!B$15,CalculationsAndCharts!$A123+$A$11,0,1,1) -> 2018-11-02 | C123: =OFFSET(InputPriceData!G$15,CalculationsAndCharts!$A123+$A$11,IF($C$7,8,0),1,1) -> 122634100 | D123: =OFFSET(InputPriceData!C$15,CalculationsAndCharts!$A123+$A$11,IF($C$7,8,0),1,1) -> 271.96 | E123: =OFFSET(InputPriceData!D$15,CalculationsAndCharts!$A123+$A$11,IF($C$7,8,0),1,1) -> 272.43 | F123: =OFFSET(InputPriceData!E$15,CalculationsAndCharts!$A123+$A$11,IF($C$7,8,0),1,1) -> 266.85 | G123: =OFFSET(InputPriceData!F$15,CalculationsAndCharts!$A123+$A$11,IF($C$7,8,0),1,1) -> 269.13 | H123: 266.959 | I123: 266.959 | J123: 277.9125 | K123: 3.702505773 | L123: 0.5863596529 | M123: 1074.95 | N123: 1074.95 | O123: 0 | P123: 0 | Q123: 4 | R123: FALSE | S123: FALSE | T123: FALSE | U123: FALSE | V123: FALSE | W123: 0 | X123: 0 | Y123: 0 | AB123: -0.5 | AC123: -0.5 | AD123: -4 | AE123: 0.5 | AF123: 0.5 | AG123: 4 | AQ123: 122634100
A124: 92 | B124: =OFFSET(InputPriceData!B$15,CalculationsAndCharts!$A124+$A$11,0,1,1) -> 2018-11-01 | C124: =OFFSET(InputPriceData!G$15,CalculationsAndCharts!$A124+$A$11,IF($C$7,8,0),1,1) -> 99495000 | D124: =OFFSET(InputPriceData!C$15,CalculationsAndCharts!$A124+$A$11,IF($C$7,8,0),1,1) -> 268.84 | E124: =OFFSET(InputPriceData!D$15,CalculationsAndCharts!$A124+$A$11,IF($C$7,8,0),1,1) -> 270.95 | F124: =OFFSET(InputPriceData!E$15,CalculationsAndCharts!$A124+$A$11,IF($C$7,8,0),1,1) -> 267.63 | G124: =OFFSET(InputPriceData!F$15,CalculationsAndCharts!$A124+$A$11,IF($C$7,8,0),1,1) -> 270.73 | H124: 267.39 | I124: 267.39 | J124: 277.9486 | K124: 4.15352862 | L124: 0.8041355448 | M124: 1074.95 | N124: 1074.95 | O124: 0 | P124: 0 | Q124: 4 | R124: FALSE | S124: FALSE | T124: FALSE | U124: FALSE | V124: FALSE | W124: 0 | X124: 0 | Y124: 0 | AB124: -0.5 | AC124: -0.5 | AD124: -4 | AE124: 0.5 | AF124: 0.5 | AG124: 4 | AP124: 99495000
A125: 93 | B125: =OFFSET(InputPriceData!B$15,CalculationsAndCharts!$A125+$A$11,0,1,1) -> 2018-10-31 | C125: =OFFSET(InputPriceData!G$15,CalculationsAndCharts!$A125+$A$11,IF($C$7,8,0),1,1) -> 128296300 | D125: =OFFSET(InputPriceData!C$15,CalculationsAndCharts!$A125+$A$11,IF($C$7,8,0),1,1) -> 267.9 | E125: =OFFSET(InputPriceData!D$15,CalculationsAndCharts!$A125+$A$11,IF($C$7,8,0),1,1) -> 270.45 | F125: =OFFSET(InputPriceData!E$15,CalculationsAndCharts!$A125+$A$11,IF($C$7,8,0),1,1) -> 267.37 | G125: =OFFSET(InputPriceData!F$15,CalculationsAndCharts!$A125+$A$11,IF($C$7,8,0),1,1) -> 267.88 | H125: 267.676 | I125: 267.676 | J125: 277.9774 | K125: 4.460767199 | L125: 0.0457320436 | M125: 1074.95 | N125: 1074.95 | O125: 0 | P125: 0 | Q125: 4 | R125: TRUE | S125: FALSE | T125: FALSE | U125: FALSE | V125: FALSE | W125: 0 | X125: 0 | Y125: 0 | AB125: -0.5 | AC125: -0.5 | AD125: -4 | AE125: 0.5 | AF125: 0.5 | AG125: 4 | AQ125: 128296300
A126: 94 | B126: =OFFSET(InputPriceData!B$15,CalculationsAndCharts!$A126+$A$11,0,1,1) -> 2018-10-30 | C126: =OFFSET(InputPriceData!G$15,CalculationsAndCharts!$A126+$A$11,IF($C$7,8,0),1,1) -> 157116000 | D126: =OFFSET(InputPriceData!C$15,CalculationsAndCharts!$A126+$A$11,IF($C$7,8,0),1,1) -> 260.99 | E126: =OFFSET(InputPriceData!D$15,CalculationsAndCharts!$A126+$A$11,IF($C$7,8,0),1,1) -> 265.39 | F126: =OFFSET(InputPriceData!E$15,CalculationsAndCharts!$A126+$A$11,IF($C$7,8,0),1,1) -> 260.45 | G126: =OFFSET(InputPriceData!F$15,CalculationsAndCharts!$A126+$A$11,IF($C$7,8,0),1,1) -> 265.05 | H126: 268.648 | I126: 268.648 | J126: 278.0312 | K126: 5.366383885 | L126: -0.6704701112 | M126: 1074.95 | N126: 1074.95 | O126: 0 | P126: 0 | Q126: 4 | R126: FALSE | S126: FALSE | T126: FALSE | U126: FALSE | V126: FALSE | W126: 0 | X126: 0 | Y126: 0 | AB126: -0.5 | AC126: -0.5 | AD126: -4 | AE126: 0.5 | AF126: 0.5 | AG126: 4 | AP126: 157116000
A127: 95 | B127: =OFFSET(InputPriceData!B$15,CalculationsAndCharts!$A127+$A$11,0,1,1) -> 2018-10-29 | C127: =OFFSET(InputPriceData!G$15,CalculationsAndCharts!$A127+$A$11,IF($C$7,8,0),1,1) -> 160749100 | D127: =OFFSET(InputPriceData!C$15,CalculationsAndCharts!$A127+$A$11,IF($C$7,8,0),1,1) -> 266.07 | E127: =OFFSET(InputPriceData!D$15,CalculationsAndCharts!$A127+$A$11,IF($C$7,8,0),1,1) -> 267.5 | F127: =OFFSET(InputPriceData!E$15,CalculationsAndCharts!$A127+$A$11,IF($C$7,8,0),1,1) -> 257.21 | G127: =OFFSET(InputPriceData!F$15,CalculationsAndCharts!$A127+$A$11,IF($C$7,8,0),1,1) -> 261.18 | H127: 269.898 | I127: 269.898 | J127: 278.1097 | K127: 5.819413716 | L127: -1.498089056 | M127: 1074.95 | N127: 1074.95 | O127: 0 | P127: 0 | Q127: 4 | R127: FALSE | S127: FALSE | T127: FALSE | U127: FALSE | V127: FALSE | W127: 0 | X127: 0 | Y127: 0 | AB127: -0.5 | AC127: -0.5 | AD127: -4 | AE127: 0.5 | AF127: 0.5 | AG127: 4 | AQ127: 160749100
A128: 96 | B128: =OFFSET(InputPriceData!B$15,CalculationsAndCharts!$A128+$A$11,0,1,1) -> 2018-10-26 | C128: =OFFSET(InputPriceData!G$15,CalculationsAndCharts!$A128+$A$11,IF($C$7,8,0),1,1) -> 201574600 | D128: =OFFSET(InputPriceData!C$15,CalculationsAndCharts!$A128+$A$11,IF($C$7,8,0),1,1) -> 263.22 | E128: =OFFSET(InputPriceData!D$15,CalculationsAndCharts!$A128+$A$11,IF($C$7,8,0),1,1) -> 268.25 | F128: =OFFSET(InputPriceData!E$15,CalculationsAndCharts!$A128+$A$11,IF($C$7,8,0),1,1) -> 259.62 | G128: =OFFSET(InputPriceData!F$15,CalculationsAndCharts!$A128+$A$11,IF($C$7,8,0),1,1) -> 262.63 | H128: 270.941 | I128: 270.941 | J128: 278.2188 | K128: 5.046827617 | L128: -1.646777071 | M128: 1074.95 | N128: 1074.95 | O128: 0 | P128: 0 | Q128: 4 | R128: FALSE | S128: FALSE | T128: FALSE | U128: FALSE | V128: FALSE | W128: 0 | X128: 0 | Y128: 0 | AB128: -0.5 | AC128: -0.5 | AD128: -4 | AE128: 0.5 | AF128: 0.5 | AG128: 4 | AQ128: 201574600
A129: 97 | B129: =OFFSET(InputPriceData!B$15,CalculationsAndCharts!$A129+$A$11,0,1,1) -> 2018-10-25 | C129: =OFFSET(InputPriceData!G$15,CalculationsAndCharts!$A129+$A$11,IF($C$7,8,0),1,1) -> 138061500 | D129: =OFFSET(InputPriceData!C$15,CalculationsAndCharts!$A129+$A$11,IF($C$7,8,0),1,1) -> 264.66 | E129: =OFFSET(InputPriceData!D$15,CalculationsAndCharts!$A129+$A$11,IF($C$7,8,0),1,1) -> 269.05 | F129: =OFFSET(InputPriceData!E$15,CalculationsAndCharts!$A129+$A$11,IF($C$7,8,0),1,1) -> 263.52 | G129: =OFFSET(InputPriceData!F$15,CalculationsAndCharts!$A129+$A$11,IF($C$7,8,0),1,1) -> 267.33 | H129: 271.992 | I129: 271.992 | J129: 278.3137 | K129: 4.235818221 | L129: -1.100613803 | M129: 1074.95 | N129: 1074.95 | O129: 0 | P129: 0 | Q129: 4 | R129: FALSE | S129: FALSE | T129: FALSE | U129: FALSE | V129: FALSE | W129: 0 | X129: 0 | Y129: 0 | AB129: -0.5 | AC129: -0.5 | AD129: -4 | AE129: 0.5 | AF129: 0.5 | AG129: 4 | AP129: 138061500
A130: 98 | B130: =OFFSET(InputPriceData!B$15,CalculationsAndCharts!$A130+$A$11,0,1,1) -> 2018-10-24 | C130: =OFFSET(InputPriceData!G$15,CalculationsAndCharts!$A130+$A$11,IF($C$7,8,0),1,1) -> 177806700 | D130: =OFFSET(InputPriceData!C$15,CalculationsAndCharts!$A130+$A$11,IF($C$7,8,0),1,1) -> 270.55 | E130: =OFFSET(InputPriceData!D$15,CalculationsAndCharts!$A130+$A$11,IF($C$7,8,0),1,1) -> 270.98 | F130: =OFFSET(InputPriceData!E$15,CalculationsAndCharts!$A130+$A$11,IF($C$7,8,0),1,1) -> 262.01 | G130: =OFFSET(InputPriceData!F$15,CalculationsAndCharts!$A130+$A$11,IF($C$7,8,0),1,1) -> 262.62 | H130: 272.199 | I130: 272.199 | J130: 278.339 | K130: 4.049410945 | L130: -2.365529241 | M130: 1074.95 | N130: 1074.95 | O130: 0 | P130: 0 | Q130: 4 | R130: FALSE | S130: FALSE | T130: FALSE | U130: FALSE | V130: FALSE | W130: 0 | X130: 0 | Y130: 0 | AB130: -0.5 | AC130: -0.5 | AD130: -4 | AE130: 0.5 | AF130: 0.5 | AG130: 4 | AQ130: 177806700
A131: 99 | B131: =OFFSET(InputPriceData!B$15,CalculationsAndCharts!$A131+$A$11,0,1,1) -> 2018-10-23 | C131: =OFFSET(InputPriceData!G$15,CalculationsAndCharts!$A131+$A$11,IF($C$7,8,0),1,1) -> 146352700 | D131: =OFFSET(InputPriceData!C$15,CalculationsAndCharts!$A131+$A$11,IF($C$7,8,0),1,1) -> 268.2 | E131: =OFFSET(InputPriceData!D$15,CalculationsAndCharts!$A131+$A$11,IF($C$7,8,0),1,1) -> 272.08 | F131: =OFFSET(InputPriceData!E$15,CalculationsAndCharts!$A131+$A$11,IF($C$7,8,0),1,1) -> 265.88 | G131: =OFFSET(InputPriceData!F$15,CalculationsAndCharts!$A131+$A$11,IF($C$7,8,0),1,1) -> 270.83 | H131: 273.484 | I131: 273.484 | J131: 278.4095 | K131: 2.576960225 | L131: -1.029895601 | M131: 1074.95 | N131: 1074.95 | O131: 0 | P131: 0 | Q131: 4 | R131: FALSE | S131: FALSE | T131: FALSE | U131: FALSE | V131: FALSE | W131: 0 | X131: 0 | Y131: 0 | AB131: -0.5 | AC131: -0.5 | AD131: -4 | AE131: 0.5 | AF131: 0.5 | AG131: 4 | AP131: 146352700
A132: 100 | B132: =OFFSET(InputPriceData!B$15,CalculationsAndCharts!$A132+$A$11,0,1,1) -> 2018-10-22 | C132: =OFFSET(InputPriceData!G$15,CalculationsAndCharts!$A132+$A$11,IF($C$7,8,0),1,1) -> 82415800 | D132: =OFFSET(InputPriceData!C$15,CalculationsAndCharts!$A132+$A$11,IF($C$7,8,0),1,1) -> 274.18 | E132: =OFFSET(InputPriceData!D$15,CalculationsAndCharts!$A132+$A$11,IF($C$7,8,0),1,1) -> 274.54 | F132: =OFFSET(InputPriceData!E$15,CalculationsAndCharts!$A132+$A$11,IF($C$7,8,0),1,1) -> 271.62 | G132: =OFFSET(InputPriceData!F$15,CalculationsAndCharts!$A132+$A$11,IF($C$7,8,0),1,1) -> 272.21 | H132: 274.849 | I132: 274.849 | J132: 278.3851 | K132: 4.020488652 | L132: -0.6563878743 | M132: 1074.95 | N132: 1074.95 | O132: 0 | P132: 0 | Q132: 4 | R132: FALSE | S132: FALSE | T132: FALSE | U132: FALSE | V132: FALSE | W132: 0 | X132: 0 | Y132: 0 | AB132: -0.5 | AC132: -0.5 | AD132: -4 | AE132: 0.5 | AF132: 0.5 | AG132: 4 | AQ132: 82415800
A133: 101 | B133: =OFFSET(InputPriceData!B$15,CalculationsAndCharts!$A133+$A$11,0,1,1) -> 2018-10-19 | C133: =OFFSET(InputPriceData!G$15,CalculationsAndCharts!$A133+$A$11,IF($C$7,8,0),1,1) -> 139901600 | D133: =OFFSET(InputPriceData!C$15,CalculationsAndCharts!$A133+$A$11,IF($C$7,8,0),1,1) -> 274.31 | E133: =OFFSET(InputPriceData!D$15,CalculationsAndCharts!$A133+$A$11,IF($C$7,8,0),1,1) -> 276.46 | F133: =OFFSET(InputPriceData!E$15,CalculationsAndCharts!$A133+$A$11,IF($C$7,8,0),1,1) -> 272.67 | G133: =OFFSET(InputPriceData!F$15,CalculationsAndCharts!$A133+$A$11,IF($C$7,8,0),1,1) -> 273.44 | H133: 276.117 | I133: 276.117 | J133: 278.3208 | K133: 4.893080931 | L133: -0.5470990645 | M133: 1074.95 | N133: 1074.95 | O133: 0 | P133: 0 | Q133: 4 | R133: FALSE | S133: FALSE | T133: FALSE | U133: FALSE | V133: FALSE | W133: 0 | X133: 0 | Y133: 0 | AB133: -0.5 | AC133: -0.5 | AD133: -4 | AE133: 0.5 | AF133: 0.5 | AG133: 4 | AQ133: 139901600
A134: 102 | B134: =OFFSET(InputPriceData!B$15,CalculationsAndCharts!$A134+$A$11,0,1,1) -> 2018-10-18 | C134: =OFFSET(InputPriceData!G$15,CalculationsAndCharts!$A134+$A$11,IF($C$7,8,0),1,1) -> 134557500 | D134: =OFFSET(InputPriceData!C$15,CalculationsAndCharts!$A134+$A$11,IF($C$7,8,0),1,1) -> 276.56 | E134: =OFFSET(InputPriceData!D$15,CalculationsAndCharts!$A134+$A$11,IF($C$7,8,0),1,1) -> 277.22 | F134: =OFFSET(InputPriceData!E$15,CalculationsAndCharts!$A134+$A$11,IF($C$7,8,0),1,1) -> 272.17 | G134: =OFFSET(InputPriceData!F$15,CalculationsAndCharts!$A134+$A$11,IF($C$7,8,0),1,1) -> 273.59 | H134: 277.262 | I134: 277.262 | J134: 278.2606 | K134: 5.441611526 | L134: -0.6748000996 | M134: 1074.95 | N134: 1074.95 | O134: 0 | P134: 0 | Q134: 4 | R134: FALSE | S134: FALSE | T134: FALSE | U134: FALSE | V134: FALSE | W134: 0 | X134: 0 | Y134: 0 | AB134: -0.5 | AC134: -0.5 | AD134: -4 | AE134: 0.5 | AF134: 0.5 | AG134: 4 | AQ134: 134557500
A135: 103 | B135: =OFFSET(InputPriceData!B$15,CalculationsAndCharts!$A135+$A$11,0,1,1) -> 2018-10-17 | C135: =OFFSET(InputPriceData!G$15,CalculationsAndCharts!$A135+$A$11,IF($C$7,8,0),1,1) -> 110626000 | D135: =OFFSET(InputPriceData!C$15,CalculationsAndCharts!$A135+$A$11,IF($C$7,8,0),1,1) -> 277.59 | E135: =OFFSET(InputPriceData!D$15,CalculationsAndCharts!$A135+$A$11,IF($C$7,8,0),1,1) -> 278.29 | F135: =OFFSET(InputPriceData!E$15,CalculationsAndCharts!$A135+$A$11,IF($C$7,8,0),1,1) -> 274.74 | G135: =OFFSET(InputPriceData!F$15,CalculationsAndCharts!$A135+$A$11,IF($C$7,8,0),1,1) -> 277.6 | H135: 278.553 | I135: 278.553 | J135: 278.1637 | K135: 5.927070187 | L135: -0.1607877029 | M135: 1074.95 | N135: 1074.95 | O135: 0 | P135: 0 | Q135: 4 | R135: TRUE | S135: FALSE | T135: FALSE | U135: FALSE | V135: FALSE | W135: 0 | X135: 0 | Y135: 0 | AB135: -0.5 | AC135: -0.5 | AD135: -4 | AE135: 0.5 | AF135: 0.5 | AG135: 4 | AP135: 110626000
A136: 104 | B136: =OFFSET(InputPriceData!B$15,CalculationsAndCharts!$A136+$A$11,0,1,1) -> 2018-10-16 | C136: =OFFSET(InputPriceData!G$15,CalculationsAndCharts!$A136+$A$11,IF($C$7,8,0),1,1) -> 118255800 | D136: =OFFSET(InputPriceData!C$15,CalculationsAndCharts!$A136+$A$11,IF($C$7,8,0),1,1) -> 273.79 | E136: =OFFSET(InputPriceData!D$15,CalculationsAndCharts!$A136+$A$11,IF($C$7,8,0),1,1) -> 277.97 | F136: =OFFSET(InputPriceData!E$15,CalculationsAndCharts!$A136+$A$11,IF($C$7,8,0),1,1) -> 273.26 | G136: =OFFSET(InputPriceData!F$15,CalculationsAndCharts!$A136+$A$11,IF($C$7,8,0),1,1) -> 277.55 | H136: 279.668 | I136: 279.668 | J136: 278.0574 | K136: 6.647856497 | L136: -0.318598935 | M136: -35.25 | N136: 1074.95 | O136: 4 | P136: 1110.2 | Q136: 4 | R136: TRUE | S136: FALSE | T136: FALSE | U136: FALSE | V136: TRUE | W136: -4 | X136: 1110.2 | Y136: 1110.2 | AB136: -0.5 | AC136: -0.5 | AD136: -4 | AE136: 0.5 | AF136: 0.5 | AG136: 4 | AP136: 118255800
A137: 105 | B137: =OFFSET(InputPriceData!B$15,CalculationsAndCharts!$A137+$A$11,0,1,1) -> 2018-10-15 | C137: =OFFSET(InputPriceData!G$15,CalculationsAndCharts!$A137+$A$11,IF($C$7,8,0),1,1) -> 102263700 | D137: =OFFSET(InputPriceData!C$15,CalculationsAndCharts!$A137+$A$11,IF($C$7,8,0),1,1) -> 272.75 | E137: =OFFSET(InputPriceData!D$15,CalculationsAndCharts!$A137+$A$11,IF($C$7,8,0),1,1) -> 274.22 | F137: =OFFSET(InputPriceData!E$15,CalculationsAndCharts!$A137+$A$11,IF($C$7,8,0),1,1) -> 271.51 | G137: =OFFSET(InputPriceData!F$15,CalculationsAndCharts!$A137+$A$11,IF($C$7,8,0),1,1) -> 271.61 | H137: 280.773 | I137: 280.773 | J137: 277.958 | K137: 7.106506948 | L137: -1.289381699 | M137: -35.25 | N137: 1051.19 | O137: 4 | P137: 1086.44 | Q137: 4 | R137: FALSE | S137: FALSE | T137: FALSE | U137: FALSE | V137: FALSE | W137: 0 | X137: 0 | Y137: 0 | AB137: -0.5 | AC137: -0.5 | AD137: -4 | AE137: 0.5 | AF137: 0.5 | AG137: 4 | AQ137: 102263700
A138: 106 | B138: =OFFSET(InputPriceData!B$15,CalculationsAndCharts!$A138+$A$11,0,1,1) -> 2018-10-12 | C138: =OFFSET(InputPriceData!G$15,CalculationsAndCharts!$A138+$A$11,IF($C$7,8,0),1,1) -> 183186500 | D138: =OFFSET(InputPriceData!C$15,CalculationsAndCharts!$A138+$A$11,IF($C$7,8,0),1,1) -> 273.96 | E138: =OFFSET(InputPriceData!D$15,CalculationsAndCharts!$A138+$A$11,IF($C$7,8,0),1,1) -> 274.27 | F138: =OFFSET(InputPriceData!E$15,CalculationsAndCharts!$A138+$A$11,IF($C$7,8,0),1,1) -> 269.6 | G138: =OFFSET(InputPriceData!F$15,CalculationsAndCharts!$A138+$A$11,IF($C$7,8,0),1,1) -> 273.14 | H138: 282.488 | I138: 282.488 | J138: 277.9235 | K138: 6.748657348 | L138: -1.385164414 | M138: -35.25 | N138: 1057.31 | O138: 4 | P138: 1092.56 | Q138: 4 | R138: FALSE | S138: FALSE | T138: FALSE | U138: FALSE | V138: FALSE | W138: 0 | X138: 0 | Y138: 0 | AB138: -0.5 | AC138: -0.5 | AD138: -4 | AE138: 0.5 | AF138: 0.5 | AG138: 4 | AQ138: 183186500
A139: 107 | B139: =OFFSET(InputPriceData!B$15,CalculationsAndCharts!$A139+$A$11,0,1,1) -> 2018-10-11 | C139: =OFFSET(InputPriceData!G$15,CalculationsAndCharts!$A139+$A$11,IF($C$7,8,0),1,1) -> 274840500 | D139: =OFFSET(InputPriceData!C$15,CalculationsAndCharts!$A139+$A$11,IF($C$7,8,0),1,1) -> 274.26 | E139: =OFFSET(InputPriceData!D$15,CalculationsAndCharts!$A139+$A$11,IF($C$7,8,0),1,1) -> 276.06 | F139: =OFFSET(InputPriceData!E$15,CalculationsAndCharts!$A139+$A$11,IF($C$7,8,0),1,1) -> 267.61 | G139: =OFFSET(InputPriceData!F$15,CalculationsAndCharts!$A139+$A$11,IF($C$7,8,0),1,1) -> 269.4 | H139: 283.95 | I139: 283.95 | J139: 277.8663 | K139: 6.119462395 | L139: -2.377659844 | M139: -35.25 | N139: 1042.35 | O139: 4 | P139: 1077.6 | Q139: 4 | R139: FALSE | S139: FALSE | T139: FALSE | U139: FALSE | V139: FALSE | W139: 0 | X139: 0 | Y139: 0 | AB139: -0.5 | AC139: -0.5 | AD139: -4 | AE139: 0.5 | AF139: 0.5 | AG139: 4 | AQ139: 274840500
A140: 108 | B140: =OFFSET(InputPriceData!B$15,CalculationsAndCharts!$A140+$A$11,0,1,1) -> 2018-10-10 | C140: =OFFSET(InputPriceData!G$15,CalculationsAndCharts!$A140+$A$11,IF($C$7,8,0),1,1) -> 214731000 | D140: =OFFSET(InputPriceData!C$15,CalculationsAndCharts!$A140+$A$11,IF($C$7,8,0),1,1) -> 283.91 | E140: =OFFSET(InputPriceData!D$15,CalculationsAndCharts!$A140+$A$11,IF($C$7,8,0),1,1) -> 283.99 | F140: =OFFSET(InputPriceData!E$15,CalculationsAndCharts!$A140+$A$11,IF($C$7,8,0),1,1) -> 275.06 | G140: =OFFSET(InputPriceData!F$15,CalculationsAndCharts!$A140+$A$11,IF($C$7,8,0),1,1) -> 275.47 | H140: 285.783 | I140: 285.783 | J140: 277.854 | K140: 3.787680161 | L140: -2.722774776 | M140: -35.25 | N140: 1066.63 | O140: 4 | P140: 1101.88 | Q140: 4 | R140: FALSE | S140: FALSE | T140: FALSE | U140: FALSE | V140: FALSE | W140: 0 | X140: 0 | Y140: 0 | AB140: -0.5 | AC140: -0.5 | AD140: -4 | AE140: 0.5 | AF140: 0.5 | AG140: 4 | AQ140: 214731000
A141: 109 | B141: =OFFSET(InputPriceData!B$15,CalculationsAndCharts!$A141+$A$11,0,1,1) -> 2018-10-09 | C141: =OFFSET(InputPriceData!G$15,CalculationsAndCharts!$A141+$A$11,IF($C$7,8,0),1,1) -> 74339000 | D141: =OFFSET(InputPriceData!C$15,CalculationsAndCharts!$A141+$A$11,IF($C$7,8,0),1,1) -> 284.47 | E141: =OFFSET(InputPriceData!D$15,CalculationsAndCharts!$A141+$A$11,IF($C$7,8,0),1,1) -> 285.92 | F141: =OFFSET(InputPriceData!E$15,CalculationsAndCharts!$A141+$A$11,IF($C$7,8,0),1,1) -> 283.85 | G141: =OFFSET(InputPriceData!F$15,CalculationsAndCharts!$A141+$A$11,IF($C$7,8,0),1,1) -> 284.48 | H141: 286.929 | I141: 286.929 | J141: 277.761 | K141: 1.590273247 | L141: -1.53998692 | M141: -35.25 | N141: 1102.67 | O141: 4 | P141: 1137.92 | Q141: 4 | R141: FALSE | S141: FALSE | T141: FALSE | U141: FALSE | V141: FALSE | W141: 0 | X141: 0 | Y141: 0 | AB141: -0.5 | AC141: -0.5 | AD141: -4 | AE141: 0.5 | AF141: 0.5 | AG141: 4 | AP141: 74339000
A142: 110 | B142: =OFFSET(InputPriceData!B$15,CalculationsAndCharts!$A142+$A$11,0,1,1) -> 2018-10-08 | C142: =OFFSET(InputPriceData!G$15,CalculationsAndCharts!$A142+$A$11,IF($C$7,8,0),1,1) -> 87742200 | D142: =OFFSET(InputPriceData!C$15,CalculationsAndCharts!$A142+$A$11,IF($C$7,8,0),1,1) -> 284.13 | E142: =OFFSET(InputPriceData!D$15,CalculationsAndCharts!$A142+$A$11,IF($C$7,8,0),1,1) -> 285.29 | F142: =OFFSET(InputPriceData!E$15,CalculationsAndCharts!$A142+$A$11,IF($C$7,8,0),1,1) -> 282.6 | G142: =OFFSET(InputPriceData!F$15,CalculationsAndCharts!$A142+$A$11,IF($C$7,8,0),1,1) -> 284.89 | H142: 287.26 | I142: 287.26 | J142: 277.5845 | K142: 1.376146794 | L142: -1.722199993 | M142: -35.25 | N142: 1104.31 | O142: 4 | P142: 1139.56 | Q142: 4 | R142: FALSE | S142: FALSE | T142: FALSE | U142: FALSE | V142: FALSE | W142: 0 | X142: 0 | Y142: 0 | AB142: -0.5 | AC142: -0.5 | AD142: -4 | AE142: 0.5 | AF142: 0.5 | AG142: 4 | AP142: 87742200
A143: 111 | B143: =OFFSET(InputPriceData!B$15,CalculationsAndCharts!$A143+$A$11,0,1,1) -> 2018-10-05 | C143: =OFFSET(InputPriceData!G$15,CalculationsAndCharts!$A143+$A$11,IF($C$7,8,0),1,1) -> 105951700 | D143: =OFFSET(InputPriceData!C$15,CalculationsAndCharts!$A143+$A$11,IF($C$7,8,0),1,1) -> 286.75 | E143: =OFFSET(InputPriceData!D$15,CalculationsAndCharts!$A143+$A$11,IF($C$7,8,0),1,1) -> 287.32 | F143: =OFFSET(InputPriceData!E$15,CalculationsAndCharts!$A143+$A$11,IF($C$7,8,0),1,1) -> 283.31 | G143: =OFFSET(InputPriceData!F$15,CalculationsAndCharts!$A143+$A$11,IF($C$7,8,0),1,1) -> 284.89 | H143: 287.577 | I143: 287.577 | J143: 277.4062 | K143: 1.138244701 | L143: -2.360652325 | M143: 1104.31 | N143: 1104.31 | O143: 0 | P143: 0 | Q143: 4 | R143: FALSE | S143: FALSE | T143: FALSE | U143: TRUE | V143: FALSE | W143: 4 | X143: -1139.56 | Y143: -1139.56 | AB143: -0.5 | AC143: -0.5 | AD143: -4 | AE143: 0.5 | AF143: 0.5 | AG143: 4 | AQ143: 105951700
A144: 112 | B144: =OFFSET(InputPriceData!B$15,CalculationsAndCharts!$A144+$A$11,0,1,1) -> 2018-10-04 | C144: =OFFSET(InputPriceData!G$15,CalculationsAndCharts!$A144+$A$11,IF($C$7,8,0),1,1) -> 111545900 | D144: =OFFSET(InputPriceData!C$15,CalculationsAndCharts!$A144+$A$11,IF($C$7,8,0),1,1) -> 288.22 | E144: =OFFSET(InputPriceData!D$15,CalculationsAndCharts!$A144+$A$11,IF($C$7,8,0),1,1) -> 288.28 | F144: =OFFSET(InputPriceData!E$15,CalculationsAndCharts!$A144+$A$11,IF($C$7,8,0),1,1) -> 284.74 | G144: =OFFSET(InputPriceData!F$15,CalculationsAndCharts!$A144+$A$11,IF($C$7,8,0),1,1) -> 286.5 | H144: 287.99 | I144: 287.99 | J144: 277.2167 | K144: 0.7818311838 | L144: -1.905782259 | M144: 1104.31 | N144: 1104.31 | O144: 0 | P144: 0 | Q144: 4 | R144: TRUE | S144: FALSE | T144: FALSE | U144: TRUE | V144: FALSE | W144: 0 | X144: 0 | Y144: 0 | AB144: -0.5 | AC144: -0.5 | AD144: -4 | AE144: 0.5 | AF144: 0.5 | AG144: 4 | AQ144: 111545900
A145: 113 | B145: =OFFSET(InputPriceData!B$15,CalculationsAndCharts!$A145+$A$11,0,1,1) -> 2018-10-03 | C145: =OFFSET(InputPriceData!G$15,CalculationsAndCharts!$A145+$A$11,IF($C$7,8,0),1,1) -> 64694600 | D145: =OFFSET(InputPriceData!C$15,CalculationsAndCharts!$A145+$A$11,IF($C$7,8,0),1,1) -> 289.76 | E145: =OFFSET(InputPriceData!D$15,CalculationsAndCharts!$A145+$A$11,IF($C$7,8,0),1,1) -> 290.23 | F145: =OFFSET(InputPriceData!E$15,CalculationsAndCharts!$A145+$A$11,IF($C$7,8,0),1,1) -> 288.36 | G145: =OFFSET(InputPriceData!F$15,CalculationsAndCharts!$A145+$A$11,IF($C$7,8,0),1,1) -> 288.75 | H145: 288.269 | I145: 288.269 | J145: 277.0295 | K145: 0.6931154305 | L145: 0.6939681023 | M145: 1104.31 | N145: 1104.31 | O145: 0 | P145: 0 | Q145: 4 | R145: FALSE | S145: FALSE | T145: FALSE | U145: FALSE | V145: FALSE | W145: 0 | X145: 0 | Y145: 0 | AB145: -0.5 | AC145: -0.5 | AD145: -4 | AE145: 0.5 | AF145: 0.5 | AG145: 4 | AQ145: 64694600
A146: 114 | B146: =OFFSET(InputPriceData!B$15,CalculationsAndCharts!$A146+$A$11,0,1,1) -> 2018-10-02 | C146: =OFFSET(InputPriceData!G$15,CalculationsAndCharts!$A146+$A$11,IF($C$7,8,0),1,1) -> 47258200 | D146: =OFFSET(InputPriceData!C$15,CalculationsAndCharts!$A146+$A$11,IF($C$7,8,0),1,1) -> 288.6 | E146: =OFFSET(InputPriceData!D$15,CalculationsAndCharts!$A146+$A$11,IF($C$7,8,0),1,1) -> 289.39 | F146: =OFFSET(InputPriceData!E$15,CalculationsAndCharts!$A146+$A$11,IF($C$7,8,0),1,1) -> 288.18 | G146: =OFFSET(InputPriceData!F$15,CalculationsAndCharts!$A146+$A$11,IF($C$7,8,0),1,1) -> 288.6 | H146: 288.09 | I146: 288.09 | J146: 276.8186 | K146: 0.7723859139 | L146: 0.6602916894 | M146: 1104.31 | N146: 1104.31 | O146: 0 | P146: 0 | Q146: 4 | R146: FALSE | S146: FALSE | T146: FALSE | U146: FALSE | V146: FALSE | W146: 0 | X146: 0 | Y146: 0 | AB146: -0.5 | AC146: -0.5 | AD146: -4 | AE146: 0.5 | AF146: 0.5 | AG146: 4 | AP146: =IF(G146>=D146,C146,NA()) -> 47258200 | AQ146: =IF(G146<D146,C146,NA()) -> 
A147: 115 | B147: =OFFSET(InputPriceData!B$15,CalculationsAndCharts!$A147+$A$11,0,1,1) -> 2018-10-01 | C147: =OFFSET(InputPriceData!G$15,CalculationsAndCharts!$A147+$A$11,IF($C$7,8,0),1,1) -> 62078900 | D147: =OFFSET(InputPriceData!C$15,CalculationsAndCharts!$A147+$A$11,IF($C$7,8,0),1,1) -> 289.14 | E147: =OFFSET(InputPriceData!D$15,CalculationsAndCharts!$A147+$A$11,IF($C$7,8,0),1,1) -> 289.95 | F147: =OFFSET(InputPriceData!E$15,CalculationsAndCharts!$A147+$A$11,IF($C$7,8,0),1,1) -> 288.02 | G147: =OFFSET(InputPriceData!F$15,CalculationsAndCharts!$A147+$A$11,IF($C$7,8,0),1,1) -> 288.76 | H147: 287.896 | I147: 287.896 | J147: 276.601 | K147: 0.8587339518 | L147: 1.00613234 | M147: 1104.31 | N147: 1104.31 | O147: 0 | P147: 0 | Q147: 4 | R147: FALSE | S147: FALSE | T147: FALSE | U147: FALSE | V147: FALSE | W147: 0 | X147: 0 | Y147: 0 | AB147: -0.5 | AC147: -0.5 | AD147: -4 | AE147: 0.5 | AF147: 0.5 | AG147: 4 | AQ147: 62078900
A148: 116 | B148: =OFFSET(InputPriceData!B$15,CalculationsAndCharts!$A148+$A$11,0,1,1) -> 2018-09-28 | C148: =OFFSET(InputPriceData!G$15,CalculationsAndCharts!$A148+$A$11,IF($C$7,8,0),1,1) -> 70091400 | D148: =OFFSET(InputPriceData!C$15,CalculationsAndCharts!$A148+$A$11,IF($C$7,8,0),1,1) -> 287.04 | E148: =OFFSET(InputPriceData!D$15,CalculationsAndCharts!$A148+$A$11,IF($C$7,8,0),1,1) -> 288.32 | F148: =OFFSET(InputPriceData!E$15,CalculationsAndCharts!$A148+$A$11,IF($C$7,8,0),1,1) -> 287 | G148: =OFFSET(InputPriceData!F$15,CalculationsAndCharts!$A148+$A$11,IF($C$7,8,0),1,1) -> 287.76 | H148: 287.531 | I148: 287.531 | J148: 276.3571 | K148: 1.142684996 | L148: 0.2004051867 | M148: 1104.31 | N148: 1104.31 | O148: 0 | P148: 0 | Q148: 4 | R148: TRUE | S148: FALSE | T148: FALSE | U148: FALSE | V148: FALSE | W148: 0 | X148: 0 | Y148: 0 | AB148: -0.5 | AC148: -0.5 | AD148: -4 | AE148: 0.5 | AF148: 0.5 | AG148: 4 | AP148: 70091400
A149: 117 | B149: =OFFSET(InputPriceData!B$15,CalculationsAndCharts!$A149+$A$11,0,1,1) -> 2018-09-27 | C149: =OFFSET(InputPriceData!G$15,CalculationsAndCharts!$A149+$A$11,IF($C$7,8,0),1,1) -> 59249500 | D149: =OFFSET(InputPriceData!C$15,CalculationsAndCharts!$A149+$A$11,IF($C$7,8,0),1,1) -> 287.46 | E149: =OFFSET(InputPriceData!D$15,CalculationsAndCharts!$A149+$A$11,IF($C$7,8,0),1,1) -> 288.94 | F149: =OFFSET(InputPriceData!E$15,CalculationsAndCharts!$A149+$A$11,IF($C$7,8,0),1,1) -> 287.15 | G149: =OFFSET(InputPriceData!F$15,CalculationsAndCharts!$A149+$A$11,IF($C$7,8,0),1,1) -> 287.73 | H149: 287.418 | I149: 287.418 | J149: 276.0979 | K149: 1.169998291 | L149: 0.2666670563 | M149: 1104.31 | N149: 1104.31 | O149: 0 | P149: 0 | Q149: 4 | R149: TRUE | S149: FALSE | T149: FALSE | U149: FALSE | V149: FALSE | W149: 0 | X149: 0 | Y149: 0 | AB149: -0.5 | AC149: -0.5 | AD149: -4 | AE149: 0.5 | AF149: 0.5 | AG149: 4 | AP149: 59249500
A150: 118 | B150: =OFFSET(InputPriceData!B$15,CalculationsAndCharts!$A150+$A$11,0,1,1) -> 2018-09-26 | C150: =OFFSET(InputPriceData!G$15,CalculationsAndCharts!$A150+$A$11,IF($C$7,8,0),1,1) -> 79739700 | D150: =OFFSET(InputPriceData!C$15,CalculationsAndCharts!$A150+$A$11,IF($C$7,8,0),1,1) -> 287.95 | E150: =OFFSET(InputPriceData!D$15,CalculationsAndCharts!$A150+$A$11,IF($C$7,8,0),1,1) -> 289.27 | F150: =OFFSET(InputPriceData!E$15,CalculationsAndCharts!$A150+$A$11,IF($C$7,8,0),1,1) -> 286.47 | G150: =OFFSET(InputPriceData!F$15,CalculationsAndCharts!$A150+$A$11,IF($C$7,8,0),1,1) -> 286.93 | H150: 287.303 | I150: 287.303 | J150: 275.839 | K150: 1.19002563 | L150: -0.3134386274 | M150: 1104.31 | N150: 1104.31 | O150: 0 | P150: 0 | Q150: 4 | R150: TRUE | S150: FALSE | T150: FALSE | U150: FALSE | V150: FALSE | W150: 0 | X150: 0 | Y150: 0 | AB150: -0.5 | AC150: -0.5 | AD150: -4 | AE150: 0.5 | AF150: 0.5 | AG150: 4 | AQ150: 79739700
A151: 119 | B151: =OFFSET(InputPriceData!B$15,CalculationsAndCharts!$A151+$A$11,0,1,1) -> 2018-09-25 | C151: =OFFSET(InputPriceData!G$15,CalculationsAndCharts!$A151+$A$11,IF($C$7,8,0),1,1) -> 44370000 | D151: =OFFSET(InputPriceData!C$15,CalculationsAndCharts!$A151+$A$11,IF($C$7,8,0),1,1) -> 288.57 | E151: =OFFSET(InputPriceData!D$15,CalculationsAndCharts!$A151+$A$11,IF($C$7,8,0),1,1) -> 288.69 | F151: =OFFSET(InputPriceData!E$15,CalculationsAndCharts!$A151+$A$11,IF($C$7,8,0),1,1) -> 287.53 | G151: =OFFSET(InputPriceData!F$15,CalculationsAndCharts!$A151+$A$11,IF($C$7,8,0),1,1) -> 287.79 | H151: 287.099 | I151: 287.099 | J151: 275.5793 | K151: 1.393875532 | L151: 0.495740103 | M151: 1104.31 | N151: 1104.31 | O151: 0 | P151: 0 | Q151: 4 | R151: TRUE | S151: FALSE | T151: FALSE | U151: FALSE | V151: FALSE | W151: 0 | X151: 0 | Y151: 0 | AB151: -0.5 | AC151: -0.5 | AD151: -4 | AE151: 0.5 | AF151: 0.5 | AG151: 4 | AQ151: 44370000
A152: 120 | B152: =OFFSET(InputPriceData!B$15,CalculationsAndCharts!$A152+$A$11,0,1,1) -> 2018-09-24 | C152: =OFFSET(InputPriceData!G$15,CalculationsAndCharts!$A152+$A$11,IF($C$7,8,0),1,1) -> 53409600 | D152: =OFFSET(InputPriceData!C$15,CalculationsAndCharts!$A152+$A$11,IF($C$7,8,0),1,1) -> 288.38 | E152: =OFFSET(InputPriceData!D$15,CalculationsAndCharts!$A152+$A$11,IF($C$7,8,0),1,1) -> 288.54 | F152: =OFFSET(InputPriceData!E$15,CalculationsAndCharts!$A152+$A$11,IF($C$7,8,0),1,1) -> 287.42 | G152: =OFFSET(InputPriceData!F$15,CalculationsAndCharts!$A152+$A$11,IF($C$7,8,0),1,1) -> 288.06 | H152: 286.802 | I152: 286.802 | J152: 275.2776 | K152: 1.525226541 | L152: 0.8247955084 | M152: 1104.31 | N152: 1104.31 | O152: 0 | P152: 0 | Q152: 4 | R152: FALSE | S152: FALSE | T152: FALSE | U152: FALSE | V152: FALSE | W152: 0 | X152: 0 | Y152: 0 | AB152: -0.5 | AC152: -0.5 | AD152: -4 | AE152: 0.5 | AF152: 0.5 | AG152: 4 | AQ152: 53409600
A153: 121 | B153: =OFFSET(InputPriceData!B$15,CalculationsAndCharts!$A153+$A$11,0,1,1) -> 2018-09-21 | C153: =OFFSET(InputPriceData!G$15,CalculationsAndCharts!$A153+$A$11,IF($C$7,8,0),1,1) -> 105479700 | D153: =OFFSET(InputPriceData!C$15,CalculationsAndCharts!$A153+$A$11,IF($C$7,8,0),1,1) -> 290.11 | E153: =OFFSET(InputPriceData!D$15,CalculationsAndCharts!$A153+$A$11,IF($C$7,8,0),1,1) -> 290.24 | F153: =OFFSET(InputPriceData!E$15,CalculationsAndCharts!$A153+$A$11,IF($C$7,8,0),1,1) -> 288.84 | G153: =OFFSET(InputPriceData!F$15,CalculationsAndCharts!$A153+$A$11,IF($C$7,8,0),1,1) -> 289.02 | H153: 286.385 | I153: 286.385 | J153: 274.9789 | K153: 1.685866246 | L153: 1.562994695 | M153: 1104.31 | N153: 1104.31 | O153: 0 | P153: 0 | Q153: 4 | R153: FALSE | S153: FALSE | T153: FALSE | U153: FALSE | V153: FALSE | W153: 0 | X153: 0 | Y153: 0 | AB153: -0.5 | AC153: -0.5 | AD153: -4 | AE153: 0.5 | AF153: 0.5 | AG153: 4 | AQ153: 105479700
A154: 122 | B154: =OFFSET(InputPriceData!B$15,CalculationsAndCharts!$A154+$A$11,0,1,1) -> 2018-09-20 | C154: =OFFSET(InputPriceData!G$15,CalculationsAndCharts!$A154+$A$11,IF($C$7,8,0),1,1) -> 100360600 | D154: =OFFSET(InputPriceData!C$15,CalculationsAndCharts!$A154+$A$11,IF($C$7,8,0),1,1) -> 288.36 | E154: =OFFSET(InputPriceData!D$15,CalculationsAndCharts!$A154+$A$11,IF($C$7,8,0),1,1) -> 289.64 | F154: =OFFSET(InputPriceData!E$15,CalculationsAndCharts!$A154+$A$11,IF($C$7,8,0),1,1) -> 286.98 | G154: =OFFSET(InputPriceData!F$15,CalculationsAndCharts!$A154+$A$11,IF($C$7,8,0),1,1) -> 289.29 | H154: 285.822 | I154: 285.822 | J154: 274.6881 | K154: 1.651622233 | L154: 2.099753764 | M154: 1104.31 | N154: 1104.31 | O154: 0 | P154: 0 | Q154: 4 | R154: FALSE | S154: FALSE | T154: FALSE | U154: FALSE | V154: FALSE | W154: 0 | X154: 0 | Y154: 0 | AB154: -0.5 | AC154: -0.5 | AD154: -4 | AE154: 0.5 | AF154: 0.5 | AG154: 4 | AP154: 100360600
A155: 123 | B155: =OFFSET(InputPriceData!B$15,CalculationsAndCharts!$A155+$A$11,0,1,1) -> 2018-09-19 | C155: =OFFSET(InputPriceData!G$15,CalculationsAndCharts!$A155+$A$11,IF($C$7,8,0),1,1) -> 49080600 | D155: =OFFSET(InputPriceData!C$15,CalculationsAndCharts!$A155+$A$11,IF($C$7,8,0),1,1) -> 286.71 | E155: =OFFSET(InputPriceData!D$15,CalculationsAndCharts!$A155+$A$11,IF($C$7,8,0),1,1) -> 287.42 | F155: =OFFSET(InputPriceData!E$15,CalculationsAndCharts!$A155+$A$11,IF($C$7,8,0),1,1) -> 286.58 | G155: =OFFSET(InputPriceData!F$15,CalculationsAndCharts!$A155+$A$11,IF($C$7,8,0),1,1) -> 286.96 | H155: 285.288 | I155: 285.288 | J155: 274.39 | K155: 1.261124895 | L155: 1.325800487 | M155: 1104.31 | N155: 1104.31 | O155: 0 | P155: 0 | Q155: 4 | R155: FALSE | S155: FALSE | T155: FALSE | U155: FALSE | V155: FALSE | W155: 0 | X155: 0 | Y155: 0 | AB155: -0.5 | AC155: -0.5 | AD155: -4 | AE155: 0.5 | AF155: 0.5 | AG155: 4 | AP155: 49080600
A156: 124 | B156: =OFFSET(InputPriceData!B$15,CalculationsAndCharts!$A156+$A$11,0,1,1) -> 2018-09-18 | C156: =OFFSET(InputPriceData!G$15,CalculationsAndCharts!$A156+$A$11,IF($C$7,8,0),1,1) -> 61930400 | D156: =OFFSET(InputPriceData!C$15,CalculationsAndCharts!$A156+$A$11,IF($C$7,8,0),1,1) -> 285.34 | E156: =OFFSET(InputPriceData!D$15,CalculationsAndCharts!$A156+$A$11,IF($C$7,8,0),1,1) -> 287.32 | F156: =OFFSET(InputPriceData!E$15,CalculationsAndCharts!$A156+$A$11,IF($C$7,8,0),1,1) -> 285.31 | G156: =OFFSET(InputPriceData!F$15,CalculationsAndCharts!$A156+$A$11,IF($C$7,8,0),1,1) -> 286.66 | H156: 285.072 | I156: 285.072 | J156: 274.1353 | K156: 1.134916737 | L156: 1.399221589 | M156: 1104.31 | N156: 1104.31 | O156: 0 | P156: 0 | Q156: 4 | R156: FALSE | S156: FALSE | T156: FALSE | U156: FALSE | V156: FALSE | W156: 0 | X156: 0 | Y156: 0 | AB156: -0.5 | AC156: -0.5 | AD156: -4 | AE156: 0.5 | AF156: 0.5 | AG156: 4 | AP156: 61930400
A157: 125 | B157: =OFFSET(InputPriceData!B$15,CalculationsAndCharts!$A157+$A$11,0,1,1) -> 2018-09-17 | C157: =OFFSET(InputPriceData!G$15,CalculationsAndCharts!$A157+$A$11,IF($C$7,8,0),1,1) -> 68244000 | D157: =OFFSET(InputPriceData!C$15,CalculationsAndCharts!$A157+$A$11,IF($C$7,8,0),1,1) -> 286.57 | E157: =OFFSET(InputPriceData!D$15,CalculationsAndCharts!$A157+$A$11,IF($C$7,8,0),1,1) -> 286.61 | F157: =OFFSET(InputPriceData!E$15,CalculationsAndCharts!$A157+$A$11,IF($C$7,8,0),1,1) -> 284.8 | G157: =OFFSET(InputPriceData!F$15,CalculationsAndCharts!$A157+$A$11,IF($C$7,8,0),1,1) -> 285.11 | H157: 284.963 | I157: 284.963 | J157: 273.8811 | K157: 1.024100093 | L157: 0.1435406569 | M157: 1104.31 | N157: 1104.31 | O157: 0 | P157: 0 | Q157: 4 | R157: TRUE | S157: FALSE | T157: FALSE | U157: FALSE | V157: FALSE | W157: 0 | X157: 0 | Y157: 0 | AB157: -0.5 | AC157: -0.5 | AD157: -4 | AE157: 0.5 | AF157: 0.5 | AG157: 4 | AQ157: 68244000
A158: 126 | B158: =OFFSET(InputPriceData!B$15,CalculationsAndCharts!$A158+$A$11,0,1,1) -> 2018-09-14 | C158: =OFFSET(InputPriceData!G$15,CalculationsAndCharts!$A158+$A$11,IF($C$7,8,0),1,1) -> 55079900 | D158: =OFFSET(InputPriceData!C$15,CalculationsAndCharts!$A158+$A$11,IF($C$7,8,0),1,1) -> 286.8 | E158: =OFFSET(InputPriceData!D$15,CalculationsAndCharts!$A158+$A$11,IF($C$7,8,0),1,1) -> 287.01 | F158: =OFFSET(InputPriceData!E$15,CalculationsAndCharts!$A158+$A$11,IF($C$7,8,0),1,1) -> 285.76 | G158: =OFFSET(InputPriceData!F$15,CalculationsAndCharts!$A158+$A$11,IF($C$7,8,0),1,1) -> 286.63 | H158: 285.058 | I158: 285.058 | J158: 273.6161 | K158: 1.076074347 | L158: 1.460865603 | M158: 1104.31 | N158: 1104.31 | O158: 0 | P158: 0 | Q158: 4 | R158: FALSE | S158: FALSE | T158: FALSE | U158: FALSE | V158: FALSE | W158: 0 | X158: 0 | Y158: 0 | AB158: -0.5 | AC158: -0.5 | AD158: -4 | AE158: 0.5 | AF158: 0.5 | AG158: 4 | AQ158: 55079900
A159: 127 | B159: =OFFSET(InputPriceData!B$15,CalculationsAndCharts!$A159+$A$11,0,1,1) -> 2018-09-13 | C159: =OFFSET(InputPriceData!G$15,CalculationsAndCharts!$A159+$A$11,IF($C$7,8,0),1,1) -> 51034200 | D159: =OFFSET(InputPriceData!C$15,CalculationsAndCharts!$A159+$A$11,IF($C$7,8,0),1,1) -> 286.07 | E159: =OFFSET(InputPriceData!D$15,CalculationsAndCharts!$A159+$A$11,IF($C$7,8,0),1,1) -> 286.78 | F159: =OFFSET(InputPriceData!E$15,CalculationsAndCharts!$A159+$A$11,IF($C$7,8,0),1,1) -> 285.76 | G159: =OFFSET(InputPriceData!F$15,CalculationsAndCharts!$A159+$A$11,IF($C$7,8,0),1,1) -> 286.58 | H159: 285 | I159: 285 | J159: 273.3296 | K159: 1.00292572 | L159: 1.575390847 | M159: 1104.31 | N159: 1104.31 | O159: 0 | P159: 0 | Q159: 4 | R159: FALSE | S159: FALSE | T159: FALSE | U159: FALSE | V159: FALSE | W159: 0 | X159: 0 | Y159: 0 | AB159: -0.5 | AC159: -0.5 | AD159: -4 | AE159: 0.5 | AF159: 0.5 | AG159: 4 | AP159: 51034200
A160: 128 | B160: =OFFSET(InputPriceData!B$15,CalculationsAndCharts!$A160+$A$11,0,1,1) -> 2018-09-12 | C160: =OFFSET(InputPriceData!G$15,CalculationsAndCharts!$A160+$A$11,IF($C$7,8,0),1,1) -> 59810800 | D160: =OFFSET(InputPriceData!C$15,CalculationsAndCharts!$A160+$A$11,IF($C$7,8,0),1,1) -> 284.83 | E160: =OFFSET(InputPriceData!D$15,CalculationsAndCharts!$A160+$A$11,IF($C$7,8,0),1,1) -> 285.56 | F160: =OFFSET(InputPriceData!E$15,CalculationsAndCharts!$A160+$A$11,IF($C$7,8,0),1,1) -> 284.01 | G160: =OFFSET(InputPriceData!F$15,CalculationsAndCharts!$A160+$A$11,IF($C$7,8,0),1,1) -> 284.89 | H160: 285.064 | I160: 285.064 | J160: 273.0788 | K160: 1.115779548 | L160: -0.1559447834 | M160: 1104.31 | N160: 1104.31 | O160: 0 | P160: 0 | Q160: 4 | R160: TRUE | S160: FALSE | T160: FALSE | U160: FALSE | V160: FALSE | W160: 0 | X160: 0 | Y160: 0 | AB160: -0.5 | AC160: -0.5 | AD160: -4 | AE160: 0.5 | AF160: 0.5 | AG160: 4 | AP160: 59810800
A161: 129 | B161: =OFFSET(InputPriceData!B$15,CalculationsAndCharts!$A161+$A$11,0,1,1) -> 2018-09-11 | C161: =OFFSET(InputPriceData!G$15,CalculationsAndCharts!$A161+$A$11,IF($C$7,8,0),1,1) -> 50530500 | D161: =OFFSET(InputPriceData!C$15,CalculationsAndCharts!$A161+$A$11,IF($C$7,8,0),1,1) -> 283.17 | E161: =OFFSET(InputPriceData!D$15,CalculationsAndCharts!$A161+$A$11,IF($C$7,8,0),1,1) -> 285.31 | F161: =OFFSET(InputPriceData!E$15,CalculationsAndCharts!$A161+$A$11,IF($C$7,8,0),1,1) -> 282.78 | G161: =OFFSET(InputPriceData!F$15,CalculationsAndCharts!$A161+$A$11,IF($C$7,8,0),1,1) -> 284.82 | H161: 285.143 | I161: 285.143 | J161: 272.8453 | K161: 1.128557043 | L161: -0.2862061798 | M161: =IF(LogicallyAvailableRows-$A161<$E$18,NA(),IF(LogicallyAvailableRows-$A161=$E$18,$E$16,M162+Y162)) -> -34.97 | N161: =IF(LogicallyAvailableRows-$A161<$E$18,NA(),M161+P161) -> 1104.31 | O161: =IF(LogicallyAvailableRows-$A161<$E$18,NA(),IF(LogicallyAvailableRows-$A161=$E$18,0,O162+W162)) -> 4 | P161: =IF(LogicallyAvailableRows-$A161<$E$18,NA(),O161*G161) -> 1139.28 | Q161: =IF(LogicallyAvailableRows-$A161<$E$18,NA(),ROUND(IF(N161>0,(N161*$A$20)/G161,0),0)) -> 4 | R161: =IF(LogicallyAvailableRows-$A161<$E$18,NA(),IF(LogicallyAvailableRows-$A161=$E$18,FALSE,OR(AND(L162>$A$22,L161<-$A$22),AND(L162<-$A$22,L161>$A$22),ABS(L161)<$A$22))) -> TRUE | S161: =IF(LogicallyAvailableRows-$A161<$E$18,NA(),AND((L161>$A$23),(O161>($A$19*-1)),(I161<J161))) -> FALSE | T161: =AND(R161,O161<0) -> FALSE | U161: =IF(LogicallyAvailableRows-$A161<$E$18,NA(),AND((L161<-$A$23),(O161<$A$19),(I161>J161))) -> FALSE | V161: =AND(R161,O161>0) -> TRUE | W161: =IF(LogicallyAvailableRows-$A161<$E$18,NA(),IF(R161,-O161,IF(S161,-Q161,IF(U161,Q161,0)))) -> -4 | X161: =IF(LogicallyAvailableRows-$A161<$E$18,NA(),G161*-W161) -> 1139.28 | Y161: =IF(LogicallyAvailableRows-$A161<$E$18,NA(),G161*-W161*IF(W161<0,1-$A$21,1+$A$21)) -> 1139.28 | AB161: -0.5 | AC161: -0.5 | AD161: -4 | AE161: 0.5 | AF161: 0.5 | AG161: 4 | AP161: 50530500
A162: 130 | B162: =OFFSET(InputPriceData!B$15,CalculationsAndCharts!$A162+$A$11,0,1,1) -> 2018-09-10 | C162: =OFFSET(InputPriceData!G$15,CalculationsAndCharts!$A162+$A$11,IF($C$7,8,0),1,1) -> 50210900 | D162: =OFFSET(InputPriceData!C$15,CalculationsAndCharts!$A162+$A$11,IF($C$7,8,0),1,1) -> 284.52 | E162: =OFFSET(InputPriceData!D$15,CalculationsAndCharts!$A162+$A$11,IF($C$7,8,0),1,1) -> 284.81 | F162: =OFFSET(InputPriceData!E$15,CalculationsAndCharts!$A162+$A$11,IF($C$7,8,0),1,1) -> 283.67 | G162: =OFFSET(InputPriceData!F$15,CalculationsAndCharts!$A162+$A$11,IF($C$7,8,0),1,1) -> 283.89 | H162: =IF(LogicallyAvailableRows-A162<$A$17,NA(),AVERAGE(OFFSET($G162,0,0,$A$17,1))) -> 285.215 | I162: =IF(LogicallyAvailableRows-A162<$A$17,NA(),AVERAGE(OFFSET($G162,0,0,$A$17,1))) -> 285.215 | J162: =IF(LogicallyAvailableRows-A162<$E$18,NA(),AVERAGE(OFFSET($G162,0,0,$E$18,1))) -> 272.6348 | K162: =IF(LogicallyAvailableRows-A162<$A$17,NA(),_xlfn.STDEV.P(OFFSET($G162,0,0,$A$17,1))) -> 1.12862084 | L162: =IF(LogicallyAvailableRows-A162<$A$17,NA(),(G162-H162)/K162) -> -1.173999233 | M162: -34.97 | N162: 1100.59 | O162: 4 | P162: 1135.56 | Q162: 4 | R162: FALSE | S162: FALSE | T162: FALSE | U162: FALSE | V162: FALSE | W162: 0 | X162: 0 | Y162: 0 | AB162: =-$A$22 -> -0.5 | AC162: =-$A$23-AB162 -> -0.5 | AD162: =-$AC$30-(-$A$23) -> -4 | AE162: =$A$22 -> 0.5 | AF162: =$A$23-AE162 -> 0.5 | AG162: =$AC$30-$A$23 -> 4 | AQ162: 50210900
A163: 131 | B163: =OFFSET(InputPriceData!B$15,CalculationsAndCharts!$A163+$A$11,0,1,1) -> 2018-09-07 | C163: =OFFSET(InputPriceData!G$15,CalculationsAndCharts!$A163+$A$11,IF($C$7,8,0),1,1) -> 73524800 | D163: =OFFSET(InputPriceData!C$15,CalculationsAndCharts!$A163+$A$11,IF($C$7,8,0),1,1) -> 282.78 | E163: =OFFSET(InputPriceData!D$15,CalculationsAndCharts!$A163+$A$11,IF($C$7,8,0),1,1) -> 284.48 | F163: =OFFSET(InputPriceData!E$15,CalculationsAndCharts!$A163+$A$11,IF($C$7,8,0),1,1) -> 282.52 | G163: =OFFSET(InputPriceData!F$15,CalculationsAndCharts!$A163+$A$11,IF($C$7,8,0),1,1) -> 283.39 | H163: 285.156 | I163: 285.156 | J163: 272.4483 | K163: 1.208910253 | L163: -1.460819772 | M163: 1098.59 | N163: 1098.59 | O163: 0 | P163: 0 | Q163: 4 | R163: FALSE | S163: FALSE | T163: FALSE | U163: TRUE | V163: FALSE | W163: 4 | X163: -1133.56 | Y163: -1133.56 | AB163: -0.5 | AC163: -0.5 | AD163: -4 | AE163: 0.5 | AF163: 0.5 | AG163: 4 | AP163: 73524800
A164: 132 | B164: =OFFSET(InputPriceData!B$15,CalculationsAndCharts!$A164+$A$11,0,1,1) -> 2018-09-06 | C164: =OFFSET(InputPriceData!G$15,CalculationsAndCharts!$A164+$A$11,IF($C$7,8,0),1,1) -> 65909900 | D164: =OFFSET(InputPriceData!C$15,CalculationsAndCharts!$A164+$A$11,IF($C$7,8,0),1,1) -> 284.92 | E164: =OFFSET(InputPriceData!D$15,CalculationsAndCharts!$A164+$A$11,IF($C$7,8,0),1,1) -> 285.26 | F164: =OFFSET(InputPriceData!E$15,CalculationsAndCharts!$A164+$A$11,IF($C$7,8,0),1,1) -> 282.8 | G164: =OFFSET(InputPriceData!F$15,CalculationsAndCharts!$A164+$A$11,IF($C$7,8,0),1,1) -> 283.95 | H164: 284.978 | I164: 284.978 | J164: 272.2649 | K164: 1.541206021 | L164: -0.6670101114 | M164: 1098.59 | N164: 1098.59 | O164: 0 | P164: 0 | Q164: 4 | R164: FALSE | S164: FALSE | T164: FALSE | U164: FALSE | V164: FALSE | W164: 0 | X164: 0 | Y164: 0 | AB164: -0.5 | AC164: -0.5 | AD164: -4 | AE164: 0.5 | AF164: 0.5 | AG164: 4 | AQ164: 65909900
A165: 133 | B165: =OFFSET(InputPriceData!B$15,CalculationsAndCharts!$A165+$A$11,0,1,1) -> 2018-09-05 | C165: =OFFSET(InputPriceData!G$15,CalculationsAndCharts!$A165+$A$11,IF($C$7,8,0),1,1) -> 72452400 | D165: =OFFSET(InputPriceData!C$15,CalculationsAndCharts!$A165+$A$11,IF($C$7,8,0),1,1) -> 285.18 | E165: =OFFSET(InputPriceData!D$15,CalculationsAndCharts!$A165+$A$11,IF($C$7,8,0),1,1) -> 285.4 | F165: =OFFSET(InputPriceData!E$15,CalculationsAndCharts!$A165+$A$11,IF($C$7,8,0),1,1) -> 283.68 | G165: =OFFSET(InputPriceData!F$15,CalculationsAndCharts!$A165+$A$11,IF($C$7,8,0),1,1) -> 284.8 | H165: 284.781 | I165: 284.781 | J165: 272.0478 | K165: 1.769075747 | L165: 0.01074007149 | M165: 1098.59 | N165: 1098.59 | O165: 0 | P165: 0 | Q165: 4 | R165: TRUE | S165: FALSE | T165: FALSE | U165: FALSE | V165: FALSE | W165: 0 | X165: 0 | Y165: 0 | AB165: -0.5 | AC165: -0.5 | AD165: -4 | AE165: 0.5 | AF165: 0.5 | AG165: 4 | AQ165: 72452400
A166: 134 | B166: =OFFSET(InputPriceData!B$15,CalculationsAndCharts!$A166+$A$11,0,1,1) -> 2018-09-04 | C166: =OFFSET(InputPriceData!G$15,CalculationsAndCharts!$A166+$A$11,IF($C$7,8,0),1,1) -> 57594400 | D166: =OFFSET(InputPriceData!C$15,CalculationsAndCharts!$A166+$A$11,IF($C$7,8,0),1,1) -> 285.6 | E166: =OFFSET(InputPriceData!D$15,CalculationsAndCharts!$A166+$A$11,IF($C$7,8,0),1,1) -> 285.97 | F166: =OFFSET(InputPriceData!E$15,CalculationsAndCharts!$A166+$A$11,IF($C$7,8,0),1,1) -> 284.46 | G166: =OFFSET(InputPriceData!F$15,CalculationsAndCharts!$A166+$A$11,IF($C$7,8,0),1,1) -> 285.57 | H166: 284.516 | I166: 284.516 | J166: 271.8008 | K166: 1.936900617 | L166: 0.5441683434 | M166: 1098.59 | N166: 1098.59 | O166: 0 | P166: 0 | Q166: 4 | R166: FALSE | S166: FALSE | T166: FALSE | U166: FALSE | V166: FALSE | W166: 0 | X166: 0 | Y166: 0 | AB166: -0.5 | AC166: -0.5 | AD166: -4 | AE166: 0.5 | AF166: 0.5 | AG166: 4 | AQ166: 57594400
A167: 135 | B167: =OFFSET(InputPriceData!B$15,CalculationsAndCharts!$A167+$A$11,0,1,1) -> 2018-08-31 | C167: =OFFSET(InputPriceData!G$15,CalculationsAndCharts!$A167+$A$11,IF($C$7,8,0),1,1) -> 66140800 | D167: =OFFSET(InputPriceData!C$15,CalculationsAndCharts!$A167+$A$11,IF($C$7,8,0),1,1) -> 285.6 | E167: =OFFSET(InputPriceData!D$15,CalculationsAndCharts!$A167+$A$11,IF($C$7,8,0),1,1) -> 286.56 | F167: =OFFSET(InputPriceData!E$15,CalculationsAndCharts!$A167+$A$11,IF($C$7,8,0),1,1) -> 285.06 | G167: =OFFSET(InputPriceData!F$15,CalculationsAndCharts!$A167+$A$11,IF($C$7,8,0),1,1) -> 286.06 | H167: 284.108 | I167: 284.108 | J167: 271.5538 | K167: 2.095160137 | L167: 0.9316710286 | M167: 1098.59 | N167: 1098.59 | O167: 0 | P167: 0 | Q167: 4 | R167: FALSE | S167: FALSE | T167: FALSE | U167: FALSE | V167: FALSE | W167: 0 | X167: 0 | Y167: 0 | AB167: -0.5 | AC167: -0.5 | AD167: -4 | AE167: 0.5 | AF167: 0.5 | AG167: 4 | AP167: 66140800
A168: 136 | B168: =OFFSET(InputPriceData!B$15,CalculationsAndCharts!$A168+$A$11,0,1,1) -> 2018-08-30 | C168: =OFFSET(InputPriceData!G$15,CalculationsAndCharts!$A168+$A$11,IF($C$7,8,0),1,1) -> 61229500 | D168: =OFFSET(InputPriceData!C$15,CalculationsAndCharts!$A168+$A$11,IF($C$7,8,0),1,1) -> 286.68 | E168: =OFFSET(InputPriceData!D$15,CalculationsAndCharts!$A168+$A$11,IF($C$7,8,0),1,1) -> 287.1 | F168: =OFFSET(InputPriceData!E$15,CalculationsAndCharts!$A168+$A$11,IF($C$7,8,0),1,1) -> 285.39 | G168: =OFFSET(InputPriceData!F$15,CalculationsAndCharts!$A168+$A$11,IF($C$7,8,0),1,1) -> 286.05 | H168: 283.591 | I168: 283.591 | J168: 271.2806 | K168: 2.185618677 | L168: 1.125081894 | M168: 1098.59 | N168: 1098.59 | O168: 0 | P168: 0 | Q168: 4 | R168: FALSE | S168: FALSE | T168: FALSE | U168: FALSE | V168: FALSE | W168: 0 | X168: 0 | Y168: 0 | AB168: -0.5 | AC168: -0.5 | AD168: -4 | AE168: 0.5 | AF168: 0.5 | AG168: 4 | AQ168: 61229500
A169: 137 | B169: =OFFSET(InputPriceData!B$15,CalculationsAndCharts!$A169+$A$11,0,1,1) -> 2018-08-29 | C169: =OFFSET(InputPriceData!G$15,CalculationsAndCharts!$A169+$A$11,IF($C$7,8,0),1,1) -> 61485500 | D169: =OFFSET(InputPriceData!C$15,CalculationsAndCharts!$A169+$A$11,IF($C$7,8,0),1,1) -> 285.92 | E169: =OFFSET(InputPriceData!D$15,CalculationsAndCharts!$A169+$A$11,IF($C$7,8,0),1,1) -> 287.47 | F169: =OFFSET(InputPriceData!E$15,CalculationsAndCharts!$A169+$A$11,IF($C$7,8,0),1,1) -> 285.65 | G169: =OFFSET(InputPriceData!F$15,CalculationsAndCharts!$A169+$A$11,IF($C$7,8,0),1,1) -> 287.22 | H169: 282.977 | I169: 282.977 | J169: 271.0211 | K169: 2.269414242 | L169: 1.869645445 | M169: 1098.59 | N169: 1098.59 | O169: 0 | P169: 0 | Q169: 4 | R169: FALSE | S169: FALSE | T169: FALSE | U169: FALSE | V169: FALSE | W169: 0 | X169: 0 | Y169: 0 | AB169: -0.5 | AC169: -0.5 | AD169: -4 | AE169: 0.5 | AF169: 0.5 | AG169: 4 | AP169: 61485500
A170: 138 | B170: =OFFSET(InputPriceData!B$15,CalculationsAndCharts!$A170+$A$11,0,1,1) -> 2018-08-28 | C170: =OFFSET(InputPriceData!G$15,CalculationsAndCharts!$A170+$A$11,IF($C$7,8,0),1,1) -> 46943500 | D170: =OFFSET(InputPriceData!C$15,CalculationsAndCharts!$A170+$A$11,IF($C$7,8,0),1,1) -> 286.05 | E170: =OFFSET(InputPriceData!D$15,CalculationsAndCharts!$A170+$A$11,IF($C$7,8,0),1,1) -> 286.17 | F170: =OFFSET(InputPriceData!E$15,CalculationsAndCharts!$A170+$A$11,IF($C$7,8,0),1,1) -> 285.17 | G170: =OFFSET(InputPriceData!F$15,CalculationsAndCharts!$A170+$A$11,IF($C$7,8,0),1,1) -> 285.68 | H170: 282.021 | I170: 282.021 | J170: 270.7092 | K170: 2.294133606 | L170: 1.594937623 | M170: 1098.59 | N170: 1098.59 | O170: 0 | P170: 0 | Q170: 4 | R170: FALSE | S170: FALSE | T170: FALSE | U170: FALSE | V170: FALSE | W170: 0 | X170: 0 | Y170: 0 | AB170: -0.5 | AC170: -0.5 | AD170: -4 | AE170: 0.5 | AF170: 0.5 | AG170: 4 | AQ170: 46943500
A171: 139 | B171: =OFFSET(InputPriceData!B$15,CalculationsAndCharts!$A171+$A$11,0,1,1) -> 2018-08-27 | C171: =OFFSET(InputPriceData!G$15,CalculationsAndCharts!$A171+$A$11,IF($C$7,8,0),1,1) -> 57072400 | D171: =OFFSET(InputPriceData!C$15,CalculationsAndCharts!$A171+$A$11,IF($C$7,8,0),1,1) -> 284.64 | E171: =OFFSET(InputPriceData!D$15,CalculationsAndCharts!$A171+$A$11,IF($C$7,8,0),1,1) -> 285.66 | F171: =OFFSET(InputPriceData!E$15,CalculationsAndCharts!$A171+$A$11,IF($C$7,8,0),1,1) -> 284.46 | G171: =OFFSET(InputPriceData!F$15,CalculationsAndCharts!$A171+$A$11,IF($C$7,8,0),1,1) -> 285.54 | H171: 281.428 | I171: 281.428 | J171: 270.4002 | K171: 2.021958457 | L171: 2.033671852 | M171: 1098.59 | N171: 1098.59 | O171: 0 | P171: 0 | Q171: 4 | R171: FALSE | S171: FALSE | T171: FALSE | U171: FALSE | V171: FALSE | W171: 0 | X171: 0 | Y171: 0 | AB171: -0.5 | AC171: -0.5 | AD171: -4 | AE171: 0.5 | AF171: 0.5 | AG171: 4 | AP171: 57072400
A172: 140 | B172: =OFFSET(InputPriceData!B$15,CalculationsAndCharts!$A172+$A$11,0,1,1) -> 2018-08-24 | C172: =OFFSET(InputPriceData!G$15,CalculationsAndCharts!$A172+$A$11,IF($C$7,8,0),1,1) -> 57487400 | D172: =OFFSET(InputPriceData!C$15,CalculationsAndCharts!$A172+$A$11,IF($C$7,8,0),1,1) -> 282.25 | E172: =OFFSET(InputPriceData!D$15,CalculationsAndCharts!$A172+$A$11,IF($C$7,8,0),1,1) -> 283.46 | F172: =OFFSET(InputPriceData!E$15,CalculationsAndCharts!$A172+$A$11,IF($C$7,8,0),1,1) -> 282.19 | G172: =OFFSET(InputPriceData!F$15,CalculationsAndCharts!$A172+$A$11,IF($C$7,8,0),1,1) -> 283.3 | H172: 280.671 | I172: 280.671 | J172: 270.1506 | K172: 1.737869097 | L172: 1.512772167 | M172: 1098.59 | N172: 1098.59 | O172: 0 | P172: 0 | Q172: 4 | R172: FALSE | S172: FALSE | T172: FALSE | U172: FALSE | V172: FALSE | W172: 0 | X172: 0 | Y172: 0 | AB172: -0.5 | AC172: -0.5 | AD172: -4 | AE172: 0.5 | AF172: 0.5 | AG172: 4 | AP172: 57487400
A173: 141 | B173: =OFFSET(InputPriceData!B$15,CalculationsAndCharts!$A173+$A$11,0,1,1) -> 2018-08-23 | C173: =OFFSET(InputPriceData!G$15,CalculationsAndCharts!$A173+$A$11,IF($C$7,8,0),1,1) -> 49204900 | D173: =OFFSET(InputPriceData!C$15,CalculationsAndCharts!$A173+$A$11,IF($C$7,8,0),1,1) -> 281.79 | E173: =OFFSET(InputPriceData!D$15,CalculationsAndCharts!$A173+$A$11,IF($C$7,8,0),1,1) -> 282.74 | F173: =OFFSET(InputPriceData!E$15,CalculationsAndCharts!$A173+$A$11,IF($C$7,8,0),1,1) -> 281.26 | G173: =OFFSET(InputPriceData!F$15,CalculationsAndCharts!$A173+$A$11,IF($C$7,8,0),1,1) -> 281.61 | H173: 280.243 | I173: 280.243 | J173: 269.903 | K173: 1.555127326 | L173: 0.8790277022 | M173: 1098.59 | N173: 1098.59 | O173: 0 | P173: 0 | Q173: 4 | R173: FALSE | S173: FALSE | T173: FALSE | U173: FALSE | V173: FALSE | W173: 0 | X173: 0 | Y173: 0 | AB173: -0.5 | AC173: -0.5 | AD173: -4 | AE173: 0.5 | AF173: 0.5 | AG173: 4 | AQ173: 49204900
A174: 142 | B174: =OFFSET(InputPriceData!B$15,CalculationsAndCharts!$A174+$A$11,0,1,1) -> 2018-08-22 | C174: =OFFSET(InputPriceData!G$15,CalculationsAndCharts!$A174+$A$11,IF($C$7,8,0),1,1) -> 44993300 | D174: =OFFSET(InputPriceData!C$15,CalculationsAndCharts!$A174+$A$11,IF($C$7,8,0),1,1) -> 281.7 | E174: =OFFSET(InputPriceData!D$15,CalculationsAndCharts!$A174+$A$11,IF($C$7,8,0),1,1) -> 282.57 | F174: =OFFSET(InputPriceData!E$15,CalculationsAndCharts!$A174+$A$11,IF($C$7,8,0),1,1) -> 281.4 | G174: =OFFSET(InputPriceData!F$15,CalculationsAndCharts!$A174+$A$11,IF($C$7,8,0),1,1) -> 281.98 | H174: 280.172 | I174: 280.172 | J174: 269.645 | K174: 1.50654439 | L174: 1.200097396 | M174: 1098.59 | N174: 1098.59 | O174: 0 | P174: 0 | Q174: 4 | R174: FALSE | S174: FALSE | T174: FALSE | U174: FALSE | V174: FALSE | W174: 0 | X174: 0 | Y174: 0 | AB174: -0.5 | AC174: -0.5 | AD174: -4 | AE174: 0.5 | AF174: 0.5 | AG174: 4 | AP174: 44993300
A175: 143 | B175: =OFFSET(InputPriceData!B$15,CalculationsAndCharts!$A175+$A$11,0,1,1) -> 2018-08-21 | C175: =OFFSET(InputPriceData!G$15,CalculationsAndCharts!$A175+$A$11,IF($C$7,8,0),1,1) -> 67272000 | D175: =OFFSET(InputPriceData!C$15,CalculationsAndCharts!$A175+$A$11,IF($C$7,8,0),1,1) -> 282.06 | E175: =OFFSET(InputPriceData!D$15,CalculationsAndCharts!$A175+$A$11,IF($C$7,8,0),1,1) -> 283.11 | F175: =OFFSET(InputPriceData!E$15,CalculationsAndCharts!$A175+$A$11,IF($C$7,8,0),1,1) -> 281.53 | G175: =OFFSET(InputPriceData!F$15,CalculationsAndCharts!$A175+$A$11,IF($C$7,8,0),1,1) -> 282.15 | H175: 280.102 | I175: 280.102 | J175: 269.3509 | K175: 1.43549852 | L175: 1.42668207 | M175: 1098.59 | N175: 1098.59 | O175: 0 | P175: 0 | Q175: 4 | R175: FALSE | S175: FALSE | T175: FALSE | U175: FALSE | V175: FALSE | W175: 0 | X175: 0 | Y175: 0 | AB175: -0.5 | AC175: -0.5 | AD175: -4 | AE175: 0.5 | AF175: 0.5 | AG175: 4 | AP175: 67272000
A176: 144 | B176: =OFFSET(InputPriceData!B$15,CalculationsAndCharts!$A176+$A$11,0,1,1) -> 2018-08-20 | C176: =OFFSET(InputPriceData!G$15,CalculationsAndCharts!$A176+$A$11,IF($C$7,8,0),1,1) -> 39807500 | D176: =OFFSET(InputPriceData!C$15,CalculationsAndCharts!$A176+$A$11,IF($C$7,8,0),1,1) -> 281.39 | E176: =OFFSET(InputPriceData!D$15,CalculationsAndCharts!$A176+$A$11,IF($C$7,8,0),1,1) -> 281.79 | F176: =OFFSET(InputPriceData!E$15,CalculationsAndCharts!$A176+$A$11,IF($C$7,8,0),1,1) -> 280.89 | G176: =OFFSET(InputPriceData!F$15,CalculationsAndCharts!$A176+$A$11,IF($C$7,8,0),1,1) -> 281.49 | H176: 280.027 | I176: 280.027 | J176: 269.1108 | K176: 1.343160824 | L176: 1.089221762 | M176: 1098.59 | N176: 1098.59 | O176: 0 | P176: 0 | Q176: 4 | R176: FALSE | S176: FALSE | T176: FALSE | U176: FALSE | V176: FALSE | W176: 0 | X176: 0 | Y176: 0 | AB176: -0.5 | AC176: -0.5 | AD176: -4 | AE176: 0.5 | AF176: 0.5 | AG176: 4 | AP176: 39807500
A177: 145 | B177: =OFFSET(InputPriceData!B$15,CalculationsAndCharts!$A177+$A$11,0,1,1) -> 2018-08-17 | C177: =OFFSET(InputPriceData!G$15,CalculationsAndCharts!$A177+$A$11,IF($C$7,8,0),1,1) -> 65618500 | D177: =OFFSET(InputPriceData!C$15,CalculationsAndCharts!$A177+$A$11,IF($C$7,8,0),1,1) -> 279.68 | E177: =OFFSET(InputPriceData!D$15,CalculationsAndCharts!$A177+$A$11,IF($C$7,8,0),1,1) -> 281.38 | F177: =OFFSET(InputPriceData!E$15,CalculationsAndCharts!$A177+$A$11,IF($C$7,8,0),1,1) -> 279.23 | G177: =OFFSET(InputPriceData!F$15,CalculationsAndCharts!$A177+$A$11,IF($C$7,8,0),1,1) -> 280.89 | H177: 279.926 | I177: 279.926 | J177: 268.8448 | K177: 1.26505494 | L177: 0.762022241 | M177: 1098.59 | N177: 1098.59 | O177: 0 | P177: 0 | Q177: 4 | R177: FALSE | S177: FALSE | T177: FALSE | U177: FALSE | V177: FALSE | W177: 0 | X177: 0 | Y177: 0 | AB177: -0.5 | AC177: -0.5 | AD177: -4 | AE177: 0.5 | AF177: 0.5 | AG177: 4 | AP177: 65618500
A178: 146 | B178: =OFFSET(InputPriceData!B$15,CalculationsAndCharts!$A178+$A$11,0,1,1) -> 2018-08-16 | C178: =OFFSET(InputPriceData!G$15,CalculationsAndCharts!$A178+$A$11,IF($C$7,8,0),1,1) -> 69967900 | D178: =OFFSET(InputPriceData!C$15,CalculationsAndCharts!$A178+$A$11,IF($C$7,8,0),1,1) -> 279.25 | E178: =OFFSET(InputPriceData!D$15,CalculationsAndCharts!$A178+$A$11,IF($C$7,8,0),1,1) -> 280.87 | F178: =OFFSET(InputPriceData!E$15,CalculationsAndCharts!$A178+$A$11,IF($C$7,8,0),1,1) -> 279.22 | G178: =OFFSET(InputPriceData!F$15,CalculationsAndCharts!$A178+$A$11,IF($C$7,8,0),1,1) -> 279.91 | H178: 279.782 | I178: 279.782 | J178: 268.5923 | K178: 1.228558505 | L178: 0.1041871425 | M178: -21.05 | N178: 1098.59 | O178: 4 | P178: 1119.64 | Q178: 4 | R178: TRUE | S178: FALSE | T178: FALSE | U178: FALSE | V178: TRUE | W178: -4 | X178: 1119.64 | Y178: 1119.64 | AB178: -0.5 | AC178: -0.5 | AD178: -4 | AE178: 0.5 | AF178: 0.5 | AG178: 4 | AP178: 69967900
A179: 147 | B179: =OFFSET(InputPriceData!B$15,CalculationsAndCharts!$A179+$A$11,0,1,1) -> 2018-08-15 | C179: =OFFSET(InputPriceData!G$15,CalculationsAndCharts!$A179+$A$11,IF($C$7,8,0),1,1) -> 102925400 | D179: =OFFSET(InputPriceData!C$15,CalculationsAndCharts!$A179+$A$11,IF($C$7,8,0),1,1) -> 278.25 | E179: =OFFSET(InputPriceData!D$15,CalculationsAndCharts!$A179+$A$11,IF($C$7,8,0),1,1) -> 278.41 | F179: =OFFSET(InputPriceData!E$15,CalculationsAndCharts!$A179+$A$11,IF($C$7,8,0),1,1) -> 276.06 | G179: =OFFSET(InputPriceData!F$15,CalculationsAndCharts!$A179+$A$11,IF($C$7,8,0),1,1) -> 277.66 | H179: 279.617 | I179: 279.617 | J179: 268.3938 | K179: 1.308488059 | L179: -1.495619304 | M179: 1089.59 | N179: 1089.59 | O179: 0 | P179: 0 | Q179: 4 | R179: FALSE | S179: FALSE | T179: FALSE | U179: TRUE | V179: FALSE | W179: 4 | X179: -1110.64 | Y179: -1110.64 | AB179: -0.5 | AC179: -0.5 | AD179: -4 | AE179: 0.5 | AF179: 0.5 | AG179: 4 | AQ179: 102925400
A180: 148 | B180: =OFFSET(InputPriceData!B$15,CalculationsAndCharts!$A180+$A$11,0,1,1) -> 2018-08-14 | C180: =OFFSET(InputPriceData!G$15,CalculationsAndCharts!$A180+$A$11,IF($C$7,8,0),1,1) -> 43842000 | D180: =OFFSET(InputPriceData!C$15,CalculationsAndCharts!$A180+$A$11,IF($C$7,8,0),1,1) -> 278.78 | E180: =OFFSET(InputPriceData!D$15,CalculationsAndCharts!$A180+$A$11,IF($C$7,8,0),1,1) -> 280.01 | F180: =OFFSET(InputPriceData!E$15,CalculationsAndCharts!$A180+$A$11,IF($C$7,8,0),1,1) -> 278.35 | G180: =OFFSET(InputPriceData!F$15,CalculationsAndCharts!$A180+$A$11,IF($C$7,8,0),1,1) -> 279.75 | H180: 279.526 | I180: 279.526 | J180: 268.1486 | K180: 1.46384562 | L180: 0.1530216007 | M180: 1089.59 | N180: 1089.59 | O180: 0 | P180: 0 | Q180: 4 | R180: TRUE | S180: FALSE | T180: FALSE | U180: FALSE | V180: FALSE | W180: 0 | X180: 0 | Y180: 0 | AB180: -0.5 | AC180: -0.5 | AD180: -4 | AE180: 0.5 | AF180: 0.5 | AG180: 4 | AP180: 43842000
A181: 149 | B181: =OFFSET(InputPriceData!B$15,CalculationsAndCharts!$A181+$A$11,0,1,1) -> 2018-08-13 | C181: =OFFSET(InputPriceData!G$15,CalculationsAndCharts!$A181+$A$11,IF($C$7,8,0),1,1) -> 65686900 | D181: =OFFSET(InputPriceData!C$15,CalculationsAndCharts!$A181+$A$11,IF($C$7,8,0),1,1) -> 279.32 | E181: =OFFSET(InputPriceData!D$15,CalculationsAndCharts!$A181+$A$11,IF($C$7,8,0),1,1) -> 280 | F181: =OFFSET(InputPriceData!E$15,CalculationsAndCharts!$A181+$A$11,IF($C$7,8,0),1,1) -> 277.65 | G181: =OFFSET(InputPriceData!F$15,CalculationsAndCharts!$A181+$A$11,IF($C$7,8,0),1,1) -> 277.97 | H181: 279.273 | I181: 279.273 | J181: 267.9376 | K181: 1.614181217 | L181: -0.8072203955 | M181: 1089.59 | N181: 1089.59 | O181: 0 | P181: 0 | Q181: 4 | R181: FALSE | S181: FALSE | T181: FALSE | U181: FALSE | V181: FALSE | W181: 0 | X181: 0 | Y181: 0 | AB181: -0.5 | AC181: -0.5 | AD181: -4 | AE181: 0.5 | AF181: 0.5 | AG181: 4 | AQ181: 65686900
A182: 150 | B182: =OFFSET(InputPriceData!B$15,CalculationsAndCharts!$A182+$A$11,0,1,1) -> 2018-08-10 | C182: =OFFSET(InputPriceData!G$15,CalculationsAndCharts!$A182+$A$11,IF($C$7,8,0),1,1) -> 77076000 | D182: =OFFSET(InputPriceData!C$15,CalculationsAndCharts!$A182+$A$11,IF($C$7,8,0),1,1) -> 279.3 | E182: =OFFSET(InputPriceData!D$15,CalculationsAndCharts!$A182+$A$11,IF($C$7,8,0),1,1) -> 279.91 | F182: =OFFSET(InputPriceData!E$15,CalculationsAndCharts!$A182+$A$11,IF($C$7,8,0),1,1) -> 278.23 | G182: =OFFSET(InputPriceData!F$15,CalculationsAndCharts!$A182+$A$11,IF($C$7,8,0),1,1) -> 279.02 | H182: 279.062 | I182: 279.062 | J182: 267.8107 | K182: 1.88577199 | L182: -0.02227204573 | M182: 1089.59 | N182: 1089.59 | O182: 0 | P182: 0 | Q182: 4 | R182: TRUE | S182: FALSE | T182: FALSE | U182: FALSE | V182: FALSE | W182: 0 | X182: 0 | Y182: 0 | AB182: -0.5 | AC182: -0.5 | AD182: -4 | AE182: 0.5 | AF182: 0.5 | AG182: 4 | AQ182: 77076000
A183: 151 | B183: =OFFSET(InputPriceData!B$15,CalculationsAndCharts!$A183+$A$11,0,1,1) -> 2018-08-09 | C183: =OFFSET(InputPriceData!G$15,CalculationsAndCharts!$A183+$A$11,IF($C$7,8,0),1,1) -> 35652400 | D183: =OFFSET(InputPriceData!C$15,CalculationsAndCharts!$A183+$A$11,IF($C$7,8,0),1,1) -> 281.35 | E183: =OFFSET(InputPriceData!D$15,CalculationsAndCharts!$A183+$A$11,IF($C$7,8,0),1,1) -> 281.79 | F183: =OFFSET(InputPriceData!E$15,CalculationsAndCharts!$A183+$A$11,IF($C$7,8,0),1,1) -> 280.75 | G183: =OFFSET(InputPriceData!F$15,CalculationsAndCharts!$A183+$A$11,IF($C$7,8,0),1,1) -> 280.9 | H183: 278.89 | I183: 278.89 | J183: 267.6784 | K183: 1.958785338 | L183: 1.026146133 | M183: 1089.59 | N183: 1089.59 | O183: 0 | P183: 0 | Q183: 4 | R183: FALSE | S183: FALSE | T183: FALSE | U183: FALSE | V183: FALSE | W183: 0 | X183: 0 | Y183: 0 | AB183: -0.5 | AC183: -0.5 | AD183: -4 | AE183: 0.5 | AF183: 0.5 | AG183: 4 | AQ183: 35652400
A184: 152 | B184: =OFFSET(InputPriceData!B$15,CalculationsAndCharts!$A184+$A$11,0,1,1) -> 2018-08-08 | C184: =OFFSET(InputPriceData!G$15,CalculationsAndCharts!$A184+$A$11,IF($C$7,8,0),1,1) -> 42114600 | D184: =OFFSET(InputPriceData!C$15,CalculationsAndCharts!$A184+$A$11,IF($C$7,8,0),1,1) -> 281.22 | E184: =OFFSET(InputPriceData!D$15,CalculationsAndCharts!$A184+$A$11,IF($C$7,8,0),1,1) -> 281.73 | F184: =OFFSET(InputPriceData!E$15,CalculationsAndCharts!$A184+$A$11,IF($C$7,8,0),1,1) -> 280.77 | G184: =OFFSET(InputPriceData!F$15,CalculationsAndCharts!$A184+$A$11,IF($C$7,8,0),1,1) -> 281.28 | H184: 278.72 | I184: 278.72 | J184: 267.5228 | K184: 1.847576791 | L184: 1.3855987 | M184: 1089.59 | N184: 1089.59 | O184: 0 | P184: 0 | Q184: 4 | R184: FALSE | S184: FALSE | T184: FALSE | U184: FALSE | V184: FALSE | W184: 0 | X184: 0 | Y184: 0 | AB184: -0.5 | AC184: -0.5 | AD184: -4 | AE184: 0.5 | AF184: 0.5 | AG184: 4 | AP184: 42114600
A185: 153 | B185: =OFFSET(InputPriceData!B$15,CalculationsAndCharts!$A185+$A$11,0,1,1) -> 2018-08-07 | C185: =OFFSET(InputPriceData!G$15,CalculationsAndCharts!$A185+$A$11,IF($C$7,8,0),1,1) -> 43196600 | D185: =OFFSET(InputPriceData!C$15,CalculationsAndCharts!$A185+$A$11,IF($C$7,8,0),1,1) -> 281.22 | E185: =OFFSET(InputPriceData!D$15,CalculationsAndCharts!$A185+$A$11,IF($C$7,8,0),1,1) -> 281.83 | F185: =OFFSET(InputPriceData!E$15,CalculationsAndCharts!$A185+$A$11,IF($C$7,8,0),1,1) -> 281.07 | G185: =OFFSET(InputPriceData!F$15,CalculationsAndCharts!$A185+$A$11,IF($C$7,8,0),1,1) -> 281.4 | H185: 278.578 | I185: 278.578 | J185: 267.3998 | K185: 1.693509965 | L185: 1.666361615 | M185: 1089.59 | N185: 1089.59 | O185: 0 | P185: 0 | Q185: 4 | R185: FALSE | S185: FALSE | T185: FALSE | U185: FALSE | V185: FALSE | W185: 0 | X185: 0 | Y185: 0 | AB185: -0.5 | AC185: -0.5 | AD185: -4 | AE185: 0.5 | AF185: 0.5 | AG185: 4 | AP185: 43196600
A186: 154 | B186: =OFFSET(InputPriceData!B$15,CalculationsAndCharts!$A186+$A$11,0,1,1) -> 2018-08-06 | C186: =OFFSET(InputPriceData!G$15,CalculationsAndCharts!$A186+$A$11,IF($C$7,8,0),1,1) -> 39400900 | D186: =OFFSET(InputPriceData!C$15,CalculationsAndCharts!$A186+$A$11,IF($C$7,8,0),1,1) -> 279.49 | E186: =OFFSET(InputPriceData!D$15,CalculationsAndCharts!$A186+$A$11,IF($C$7,8,0),1,1) -> 280.82 | F186: =OFFSET(InputPriceData!E$15,CalculationsAndCharts!$A186+$A$11,IF($C$7,8,0),1,1) -> 279.06 | G186: =OFFSET(InputPriceData!F$15,CalculationsAndCharts!$A186+$A$11,IF($C$7,8,0),1,1) -> 280.48 | H186: 278.187 | I186: 278.187 | J186: 267.2727 | K186: 1.427270472 | L186: 1.606563048 | M186: 1089.59 | N186: 1089.59 | O186: 0 | P186: 0 | Q186: 4 | R186: FALSE | S186: FALSE | T186: FALSE | U186: FALSE | V186: FALSE | W186: 0 | X186: 0 | Y186: 0 | AB186: -0.5 | AC186: -0.5 | AD186: -4 | AE186: 0.5 | AF186: 0.5 | AG186: 4 | AP186: 39400900
A187: 155 | B187: =OFFSET(InputPriceData!B$15,CalculationsAndCharts!$A187+$A$11,0,1,1) -> 2018-08-03 | C187: =OFFSET(InputPriceData!G$15,CalculationsAndCharts!$A187+$A$11,IF($C$7,8,0),1,1) -> 53935400 | D187: =OFFSET(InputPriceData!C$15,CalculationsAndCharts!$A187+$A$11,IF($C$7,8,0),1,1) -> 278.4 | E187: =OFFSET(InputPriceData!D$15,CalculationsAndCharts!$A187+$A$11,IF($C$7,8,0),1,1) -> 279.51 | F187: =OFFSET(InputPriceData!E$15,CalculationsAndCharts!$A187+$A$11,IF($C$7,8,0),1,1) -> 278.2 | G187: =OFFSET(InputPriceData!F$15,CalculationsAndCharts!$A187+$A$11,IF($C$7,8,0),1,1) -> 279.45 | H187: 277.749 | I187: 277.749 | J187: 267.1577 | K187: 1.324775075 | L187: 1.283991548 | M187: 1089.59 | N187: 1089.59 | O187: 0 | P187: 0 | Q187: 4 | R187: FALSE | S187: FALSE | T187: FALSE | U187: FALSE | V187: FALSE | W187: 0 | X187: 0 | Y187: 0 | AB187: -0.5 | AC187: -0.5 | AD187: -4 | AE187: 0.5 | AF187: 0.5 | AG187: 4 | AP187: 53935400
A188: 156 | B188: =OFFSET(InputPriceData!B$15,CalculationsAndCharts!$A188+$A$11,0,1,1) -> 2018-08-02 | C188: =OFFSET(InputPriceData!G$15,CalculationsAndCharts!$A188+$A$11,IF($C$7,8,0),1,1) -> 63426400 | D188: =OFFSET(InputPriceData!C$15,CalculationsAndCharts!$A188+$A$11,IF($C$7,8,0),1,1) -> 275.3 | E188: =OFFSET(InputPriceData!D$15,CalculationsAndCharts!$A188+$A$11,IF($C$7,8,0),1,1) -> 278.45 | F188: =OFFSET(InputPriceData!E$15,CalculationsAndCharts!$A188+$A$11,IF($C$7,8,0),1,1) -> 275.08 | G188: =OFFSET(InputPriceData!F$15,CalculationsAndCharts!$A188+$A$11,IF($C$7,8,0),1,1) -> 278.26 | H188: 277.363 | I188: 277.363 | J188: 267.0669 | K188: 1.335223202 | L188: 0.6717977926 | M188: 1089.59 | N188: 1089.59 | O188: 0 | P188: 0 | Q188: 4 | R188: FALSE | S188: FALSE | T188: FALSE | U188: FALSE | V188: FALSE | W188: 0 | X188: 0 | Y188: 0 | AB188: -0.5 | AC188: -0.5 | AD188: -4 | AE188: 0.5 | AF188: 0.5 | AG188: 4 | AP188: 63426400
A189: 157 | B189: =OFFSET(InputPriceData!B$15,CalculationsAndCharts!$A189+$A$11,0,1,1) -> 2018-08-01 | C189: =OFFSET(InputPriceData!G$15,CalculationsAndCharts!$A189+$A$11,IF($C$7,8,0),1,1) -> 53853300 | D189: =OFFSET(InputPriceData!C$15,CalculationsAndCharts!$A189+$A$11,IF($C$7,8,0),1,1) -> 277.44 | E189: =OFFSET(InputPriceData!D$15,CalculationsAndCharts!$A189+$A$11,IF($C$7,8,0),1,1) -> 278 | F189: =OFFSET(InputPriceData!E$15,CalculationsAndCharts!$A189+$A$11,IF($C$7,8,0),1,1) -> 276.03 | G189: =OFFSET(InputPriceData!F$15,CalculationsAndCharts!$A189+$A$11,IF($C$7,8,0),1,1) -> 276.75 | H189: 277.127 | I189: 277.127 | J189: 267.0056 | K189: 1.364075145 | L189: -0.2763777359 | M189: 1089.59 | N189: 1089.59 | O189: 0 | P189: 0 | Q189: 4 | R189: TRUE | S189: FALSE | T189: FALSE | U189: FALSE | V189: FALSE | W189: 0 | X189: 0 | Y189: 0 | AB189: -0.5 | AC189: -0.5 | AD189: -4 | AE189: 0.5 | AF189: 0.5 | AG189: 4 | AQ189: 53853300
A190: 158 | B190: =OFFSET(InputPriceData!B$15,CalculationsAndCharts!$A190+$A$11,0,1,1) -> 2018-07-31 | C190: =OFFSET(InputPriceData!G$15,CalculationsAndCharts!$A190+$A$11,IF($C$7,8,0),1,1) -> 68570500 | D190: =OFFSET(InputPriceData!C$15,CalculationsAndCharts!$A190+$A$11,IF($C$7,8,0),1,1) -> 276.7 | E190: =OFFSET(InputPriceData!D$15,CalculationsAndCharts!$A190+$A$11,IF($C$7,8,0),1,1) -> 277.9 | F190: =OFFSET(InputPriceData!E$15,CalculationsAndCharts!$A190+$A$11,IF($C$7,8,0),1,1) -> 276.28 | G190: =OFFSET(InputPriceData!F$15,CalculationsAndCharts!$A190+$A$11,IF($C$7,8,0),1,1) -> 277.22 | H190: 277.147 | I190: 277.147 | J190: 266.9628 | K190: 1.359860655 | L190: 0.05368197083 | M190: 1089.59 | N190: 1089.59 | O190: 0 | P190: 0 | Q190: 4 | R190: TRUE | S190: FALSE | T190: FALSE | U190: FALSE | V190: FALSE | W190: 0 | X190: 0 | Y190: 0 | AB190: -0.5 | AC190: -0.5 | AD190: -4 | AE190: 0.5 | AF190: 0.5 | AG190: 4 | AP190: 68570500
A191: 159 | B191: =OFFSET(InputPriceData!B$15,CalculationsAndCharts!$A191+$A$11,0,1,1) -> 2018-07-30 | C191: =OFFSET(InputPriceData!G$15,CalculationsAndCharts!$A191+$A$11,IF($C$7,8,0),1,1) -> 63742500 | D191: =OFFSET(InputPriceData!C$15,CalculationsAndCharts!$A191+$A$11,IF($C$7,8,0),1,1) -> 277.39 | E191: =OFFSET(InputPriceData!D$15,CalculationsAndCharts!$A191+$A$11,IF($C$7,8,0),1,1) -> 277.57 | F191: =OFFSET(InputPriceData!E$15,CalculationsAndCharts!$A191+$A$11,IF($C$7,8,0),1,1) -> 275.27 | G191: =OFFSET(InputPriceData!F$15,CalculationsAndCharts!$A191+$A$11,IF($C$7,8,0),1,1) -> 275.86 | H191: 277.062 | I191: 277.062 | J191: 266.8687 | K191: 1.379070702 | L191: -0.8716014332 | M191: 1089.59 | N191: 1089.59 | O191: 0 | P191: 0 | Q191: 4 | R191: FALSE | S191: FALSE | T191: FALSE | U191: FALSE | V191: FALSE | W191: 0 | X191: 0 | Y191: 0 | AB191: -0.5 | AC191: -0.5 | AD191: -4 | AE191: 0.5 | AF191: 0.5 | AG191: 4 | AQ191: 63742500
A192: 160 | B192: =OFFSET(InputPriceData!B$15,CalculationsAndCharts!$A192+$A$11,0,1,1) -> 2018-07-27 | C192: =OFFSET(InputPriceData!G$15,CalculationsAndCharts!$A192+$A$11,IF($C$7,8,0),1,1) -> 76768700 | D192: =OFFSET(InputPriceData!C$15,CalculationsAndCharts!$A192+$A$11,IF($C$7,8,0),1,1) -> 279.56 | E192: =OFFSET(InputPriceData!D$15,CalculationsAndCharts!$A192+$A$11,IF($C$7,8,0),1,1) -> 279.67 | F192: =OFFSET(InputPriceData!E$15,CalculationsAndCharts!$A192+$A$11,IF($C$7,8,0),1,1) -> 276.28 | G192: =OFFSET(InputPriceData!F$15,CalculationsAndCharts!$A192+$A$11,IF($C$7,8,0),1,1) -> 277.3 | H192: 277.001 | I192: 277.001 | J192: 266.7753 | K192: 1.442902977 | L192: 0.2072211402 | M192: 1089.59 | N192: 1089.59 | O192: 0 | P192: 0 | Q192: 4 | R192: TRUE | S192: FALSE | T192: FALSE | U192: FALSE | V192: FALSE | W192: 0 | X192: 0 | Y192: 0 | AB192: -0.5 | AC192: -0.5 | AD192: -4 | AE192: 0.5 | AF192: 0.5 | AG192: 4 | AQ192: 76768700
A193: 161 | B193: =OFFSET(InputPriceData!B$15,CalculationsAndCharts!$A193+$A$11,0,1,1) -> 2018-07-26 | C193: =OFFSET(InputPriceData!G$15,CalculationsAndCharts!$A193+$A$11,IF($C$7,8,0),1,1) -> 57919500 | D193: =OFFSET(InputPriceData!C$15,CalculationsAndCharts!$A193+$A$11,IF($C$7,8,0),1,1) -> 279.06 | E193: =OFFSET(InputPriceData!D$15,CalculationsAndCharts!$A193+$A$11,IF($C$7,8,0),1,1) -> 279.95 | F193: =OFFSET(InputPriceData!E$15,CalculationsAndCharts!$A193+$A$11,IF($C$7,8,0),1,1) -> 278.95 | G193: =OFFSET(InputPriceData!F$15,CalculationsAndCharts!$A193+$A$11,IF($C$7,8,0),1,1) -> 279.2 | H193: 276.821 | I193: 276.821 | J193: 266.6685 | K193: 1.505300302 | L193: 1.580415547 | M193: 1089.59 | N193: 1089.59 | O193: 0 | P193: 0 | Q193: 4 | R193: FALSE | S193: FALSE | T193: FALSE | U193: FALSE | V193: FALSE | W193: 0 | X193: 0 | Y193: 0 | AB193: -0.5 | AC193: -0.5 | AD193: -4 | AE193: 0.5 | AF193: 0.5 | AG193: 4 | AP193: 57919500
A194: 162 | B194: =OFFSET(InputPriceData!B$15,CalculationsAndCharts!$A194+$A$11,0,1,1) -> 2018-07-25 | C194: =OFFSET(InputPriceData!G$15,CalculationsAndCharts!$A194+$A$11,IF($C$7,8,0),1,1) -> 78882900 | D194: =OFFSET(InputPriceData!C$15,CalculationsAndCharts!$A194+$A$11,IF($C$7,8,0),1,1) -> 277.22 | E194: =OFFSET(InputPriceData!D$15,CalculationsAndCharts!$A194+$A$11,IF($C$7,8,0),1,1) -> 280.21 | F194: =OFFSET(InputPriceData!E$15,CalculationsAndCharts!$A194+$A$11,IF($C$7,8,0),1,1) -> 277.17 | G194: =OFFSET(InputPriceData!F$15,CalculationsAndCharts!$A194+$A$11,IF($C$7,8,0),1,1) -> 279.86 | H194: 276.429 | I194: 276.429 | J194: 266.5359 | K194: 1.335578152 | L194: 2.568924922 | M194: 1089.59 | N194: 1089.59 | O194: 0 | P194: 0 | Q194: 4 | R194: FALSE | S194: FALSE | T194: FALSE | U194: FALSE | V194: FALSE | W194: 0 | X194: 0 | Y194: 0 | AB194: -0.5 | AC194: -0.5 | AD194: -4 | AE194: 0.5 | AF194: 0.5 | AG194: 4 | AP194: 78882900
A195: 163 | B195: =OFFSET(InputPriceData!B$15,CalculationsAndCharts!$A195+$A$11,0,1,1) -> 2018-07-24 | C195: =OFFSET(InputPriceData!G$15,CalculationsAndCharts!$A195+$A$11,IF($C$7,8,0),1,1) -> 68026900 | D195: =OFFSET(InputPriceData!C$15,CalculationsAndCharts!$A195+$A$11,IF($C$7,8,0),1,1) -> 277.67 | E195: =OFFSET(InputPriceData!D$15,CalculationsAndCharts!$A195+$A$11,IF($C$7,8,0),1,1) -> 278.43 | F195: =OFFSET(InputPriceData!E$15,CalculationsAndCharts!$A195+$A$11,IF($C$7,8,0),1,1) -> 276.53 | G195: =OFFSET(InputPriceData!F$15,CalculationsAndCharts!$A195+$A$11,IF($C$7,8,0),1,1) -> 277.49 | H195: 275.724 | I195: 275.724 | J195: 266.3664 | K195: 1.191337064 | L195: 1.48236805 | M195: 1089.59 | N195: 1089.59 | O195: 0 | P195: 0 | Q195: 4 | R195: FALSE | S195: FALSE | T195: FALSE | U195: FALSE | V195: FALSE | W195: 0 | X195: 0 | Y195: 0 | AB195: -0.5 | AC195: -0.5 | AD195: -4 | AE195: 0.5 | AF195: 0.5 | AG195: 4 | AQ195: 68026900
A196: 164 | B196: =OFFSET(InputPriceData!B$15,CalculationsAndCharts!$A196+$A$11,0,1,1) -> 2018-07-23 | C196: =OFFSET(InputPriceData!G$15,CalculationsAndCharts!$A196+$A$11,IF($C$7,8,0),1,1) -> 47047600 | D196: =OFFSET(InputPriceData!C$15,CalculationsAndCharts!$A196+$A$11,IF($C$7,8,0),1,1) -> 275.36 | E196: =OFFSET(InputPriceData!D$15,CalculationsAndCharts!$A196+$A$11,IF($C$7,8,0),1,1) -> 276.33 | F196: =OFFSET(InputPriceData!E$15,CalculationsAndCharts!$A196+$A$11,IF($C$7,8,0),1,1) -> 274.98 | G196: =OFFSET(InputPriceData!F$15,CalculationsAndCharts!$A196+$A$11,IF($C$7,8,0),1,1) -> 276.1 | H196: 275.457 | I196: 275.457 | J196: 266.2071 | K196: 1.057280001 | L196: 0.6081643458 | M196: 1089.59 | N196: 1089.59 | O196: 0 | P196: 0 | Q196: 4 | R196: FALSE | S196: FALSE | T196: FALSE | U196: FALSE | V196: FALSE | W196: 0 | X196: 0 | Y196: 0 | AB196: -0.5 | AC196: -0.5 | AD196: -4 | AE196: 0.5 | AF196: 0.5 | AG196: 4 | AP196: 47047600
A197: 165 | B197: =OFFSET(InputPriceData!B$15,CalculationsAndCharts!$A197+$A$11,0,1,1) -> 2018-07-20 | C197: =OFFSET(InputPriceData!G$15,CalculationsAndCharts!$A197+$A$11,IF($C$7,8,0),1,1) -> 82337700 | D197: =OFFSET(InputPriceData!C$15,CalculationsAndCharts!$A197+$A$11,IF($C$7,8,0),1,1) -> 275.68 | E197: =OFFSET(InputPriceData!D$15,CalculationsAndCharts!$A197+$A$11,IF($C$7,8,0),1,1) -> 276.38 | F197: =OFFSET(InputPriceData!E$15,CalculationsAndCharts!$A197+$A$11,IF($C$7,8,0),1,1) -> 275.41 | G197: =OFFSET(InputPriceData!F$15,CalculationsAndCharts!$A197+$A$11,IF($C$7,8,0),1,1) -> 275.59 | H197: 275.231 | I197: 275.231 | J197: 266.1003 | K197: 1.134411301 | L197: 0.3164637021 | M197: 1089.59 | N197: 1089.59 | O197: 0 | P197: 0 | Q197: 4 | R197: TRUE | S197: FALSE | T197: FALSE | U197: FALSE | V197: FALSE | W197: 0 | X197: 0 | Y197: 0 | AB197: -0.5 | AC197: -0.5 | AD197: -4 | AE197: 0.5 | AF197: 0.5 | AG197: 4 | AQ197: 82337700
A198: 166 | B198: =OFFSET(InputPriceData!B$15,CalculationsAndCharts!$A198+$A$11,0,1,1) -> 2018-07-19 | C198: =OFFSET(InputPriceData!G$15,CalculationsAndCharts!$A198+$A$11,IF($C$7,8,0),1,1) -> 61412100 | D198: =OFFSET(InputPriceData!C$15,CalculationsAndCharts!$A198+$A$11,IF($C$7,8,0),1,1) -> 276.21 | E198: =OFFSET(InputPriceData!D$15,CalculationsAndCharts!$A198+$A$11,IF($C$7,8,0),1,1) -> 276.63 | F198: =OFFSET(InputPriceData!E$15,CalculationsAndCharts!$A198+$A$11,IF($C$7,8,0),1,1) -> 275.37 | G198: =OFFSET(InputPriceData!F$15,CalculationsAndCharts!$A198+$A$11,IF($C$7,8,0),1,1) -> 275.9 | H198: 274.811 | I198: 274.811 | J198: 266.0257 | K198: 1.604035224 | L198: 0.6789127718 | M198: 1089.59 | N198: 1089.59 | O198: 0 | P198: 0 | Q198: 4 | R198: FALSE | S198: FALSE | T198: FALSE | U198: FALSE | V198: FALSE | W198: 0 | X198: 0 | Y198: 0 | AB198: -0.5 | AC198: -0.5 | AD198: -4 | AE198: 0.5 | AF198: 0.5 | AG198: 4 | AQ198: 61412100
A199: 167 | B199: =OFFSET(InputPriceData!B$15,CalculationsAndCharts!$A199+$A$11,0,1,1) -> 2018-07-18 | C199: =OFFSET(InputPriceData!G$15,CalculationsAndCharts!$A199+$A$11,IF($C$7,8,0),1,1) -> 44593500 | D199: =OFFSET(InputPriceData!C$15,CalculationsAndCharts!$A199+$A$11,IF($C$7,8,0),1,1) -> 276.46 | E199: =OFFSET(InputPriceData!D$15,CalculationsAndCharts!$A199+$A$11,IF($C$7,8,0),1,1) -> 277.07 | F199: =OFFSET(InputPriceData!E$15,CalculationsAndCharts!$A199+$A$11,IF($C$7,8,0),1,1) -> 275.96 | G199: =OFFSET(InputPriceData!F$15,CalculationsAndCharts!$A199+$A$11,IF($C$7,8,0),1,1) -> 276.95 | H199: 274.133 | I199: 274.133 | J199: 265.9819 | K199: 2.287662781 | L199: 1.231387783 | M199: 1089.59 | N199: 1089.59 | O199: 0 | P199: 0 | Q199: 4 | R199: FALSE | S199: FALSE | T199: FALSE | U199: FALSE | V199: FALSE | W199: 0 | X199: 0 | Y199: 0 | AB199: -0.5 | AC199: -0.5 | AD199: -4 | AE199: 0.5 | AF199: 0.5 | AG199: 4 | AP199: 44593500
A200: 168 | B200: =OFFSET(InputPriceData!B$15,CalculationsAndCharts!$A200+$A$11,0,1,1) -> 2018-07-17 | C200: =OFFSET(InputPriceData!G$15,CalculationsAndCharts!$A200+$A$11,IF($C$7,8,0),1,1) -> 52315500 | D200: =OFFSET(InputPriceData!C$15,CalculationsAndCharts!$A200+$A$11,IF($C$7,8,0),1,1) -> 274.4 | E200: =OFFSET(InputPriceData!D$15,CalculationsAndCharts!$A200+$A$11,IF($C$7,8,0),1,1) -> 276.8 | F200: =OFFSET(InputPriceData!E$15,CalculationsAndCharts!$A200+$A$11,IF($C$7,8,0),1,1) -> 274.34 | G200: =OFFSET(InputPriceData!F$15,CalculationsAndCharts!$A200+$A$11,IF($C$7,8,0),1,1) -> 276.37 | H200: 273.132 | I200: 273.132 | J200: 265.8965 | K200: 2.934582764 | L200: 1.103393654 | M200: 1089.59 | N200: 1089.59 | O200: 0 | P200: 0 | Q200: 4 | R200: FALSE | S200: FALSE | T200: FALSE | U200: FALSE | V200: FALSE | W200: 0 | X200: 0 | Y200: 0 | AB200: -0.5 | AC200: -0.5 | AD200: -4 | AE200: 0.5 | AF200: 0.5 | AG200: 4 | AP200: 52315500
A201: 169 | B201: =OFFSET(InputPriceData!B$15,CalculationsAndCharts!$A201+$A$11,0,1,1) -> 2018-07-16 | C201: =OFFSET(InputPriceData!G$15,CalculationsAndCharts!$A201+$A$11,IF($C$7,8,0),1,1) -> 48201000 | D201: =OFFSET(InputPriceData!C$15,CalculationsAndCharts!$A201+$A$11,IF($C$7,8,0),1,1) -> 275.55 | E201: =OFFSET(InputPriceData!D$15,CalculationsAndCharts!$A201+$A$11,IF($C$7,8,0),1,1) -> 275.71 | F201: =OFFSET(InputPriceData!E$15,CalculationsAndCharts!$A201+$A$11,IF($C$7,8,0),1,1) -> 274.76 | G201: =OFFSET(InputPriceData!F$15,CalculationsAndCharts!$A201+$A$11,IF($C$7,8,0),1,1) -> 275.25 | H201: 272.283 | I201: 272.283 | J201: 265.7748 | K201: 3.098525617 | L201: 0.9575521931 | M201: 1089.59 | N201: 1089.59 | O201: 0 | P201: 0 | Q201: 4 | R201: FALSE | S201: FALSE | T201: FALSE | U201: FALSE | V201: FALSE | W201: 0 | X201: 0 | Y201: 0 | AB201: -0.5 | AC201: -0.5 | AD201: -4 | AE201: 0.5 | AF201: 0.5 | AG201: 4 | AQ201: 48201000
A202: 170 | B202: =OFFSET(InputPriceData!B$15,CalculationsAndCharts!$A202+$A$11,0,1,1) -> 2018-07-13 | C202: =OFFSET(InputPriceData!G$15,CalculationsAndCharts!$A202+$A$11,IF($C$7,8,0),1,1) -> 48216000 | D202: =OFFSET(InputPriceData!C$15,CalculationsAndCharts!$A202+$A$11,IF($C$7,8,0),1,1) -> 275.09 | E202: =OFFSET(InputPriceData!D$15,CalculationsAndCharts!$A202+$A$11,IF($C$7,8,0),1,1) -> 275.84 | F202: =OFFSET(InputPriceData!E$15,CalculationsAndCharts!$A202+$A$11,IF($C$7,8,0),1,1) -> 274.58 | G202: =OFFSET(InputPriceData!F$15,CalculationsAndCharts!$A202+$A$11,IF($C$7,8,0),1,1) -> 275.5 | H202: 271.489 | I202: 271.489 | J202: 265.6608 | K202: 3.250105998 | L202: 1.234113596 | M202: 1089.59 | N202: 1089.59 | O202: 0 | P202: 0 | Q202: 4 | R202: FALSE | S202: FALSE | T202: FALSE | U202: FALSE | V202: FALSE | W202: 0 | X202: 0 | Y202: 0 | AB202: -0.5 | AC202: -0.5 | AD202: -4 | AE202: 0.5 | AF202: 0.5 | AG202: 4 | AP202: 48216000
... 830 more rows

Sheet Follow
A1: Stocks and Indexes I wish to follow
A3: To ease following a stock, enter a Yahoo Finance acceptable symbol in column "A" anywhere below cell "A9".
A4: Thereafter you may doubleclick the cell containing a symbol of interest to initiate data retrieval and charting for that symbol.
A7: Symbol
A8: To | B8: Description | C8: Last Trade as of most recent check
A9: Follow | C9: Date | D9: Time | E9: Open | F9: High | G9: Low | H9: Close | I9: Volume | J9: Change
A10: A | B10: Agilent Technolog (A) -NYSE (Daily) | C10: 2015-02-02 | D10: 16:03:00 | E10: 37.9 | F10: 38.76 | G10: 37.71 | H10: 38.69 | I10: 2508493 | J10: 0.92
A11: AA | B11: Alcoa Corporation (AA) -NYSE (Weekly) | C11: 2018-06-19 | D11: 16:04:00 | E11: 44.630001 | F11: 44.630001 | G11: 43.349998 | H11: 44.470001 | I11: 3190085 | J11: -1.309998
A12: AAL | B12: American Airlines Group Inc. (AAL) -NasdaqGS (Daily) | C12: 2017-12-07 | D12: 16:00:00 | E12: 49.529999 | F12: 50.920502 | G12: 49.299999 | H12: 50.880001 | I12: 3046954 | J12: 1.27
A13: ADM | B13: Archer-Daniels-Midland Company (ADM) -NYSE (Weekly) | C13: 2018-07-13 | D13: 16:00:00 | E13: 47.5 | F13: 47.84 | G13: 47.169998 | H13: 47.57 | I13: 2402809 | J13: 0
A14: AMC | B14: AMC Entertainment Holdings, Inc. (AMC) -NYSE (Weekly) | C14: 2018-07-13 | D14: 16:02:00 | E14: 17.049999 | F14: 17.15 | G14: 16.525 | H14: 17.049999 | I14: 1442776 | J14: 0
A15: BSX | B15: Boston Scientific Corporation C (BSX) -NYQ (Daily) | C15: 2015-03-13 | D15: 16:01:00 | E15: 16.84 | F15: 16.91 | G15: 16.44 | H15: 16.61 | I15: 7262460 | J15: -0.28
A16: CASY | B16: Casey's General Stores, Inc. (CASY) -NasdaqGS (Daily) | C16: 2018-07-13 | D16: 16:00:00 | E16: 108.260002 | F16: 109.959999 | G16: 108.260002 | H16: 109.169998 | I16: 300900 | J16: 0.239998
A17: CAT | B17: Caterpillar Inc. (CAT) -NYSE (Daily) | C17: 2018-04-16 | D17: 13:16:00 | E17: 151.740005 | F17: 153.401596 | G17: 150.279999 | H17: 153.050003 | I17: 1789751 | J17: 2.820007
A18: CSCO | B18: Cisco Systems, In (CSCO) -NasdaqNM (Daily) | C18: 2015-02-19 | D18: 16:00:00 | E18: 29.32 | F18: 29.39 | G18: 29.13 | H18: 29.31 | I18: 21469012 | J18: -0.18
A19: CVS | B19: CVS Health Corpor (CVS) -NYSE (Daily) | C19: 2015-02-02 | D19: 16:01:00 | E19: 98.34 | F19: 99.22 | G19: 97.06 | H19: 99.11 | I19: 4416094 | J19: 0.95
A20: DIS | B20: Walt Disney Compa (DIS) -NYSE (Daily) | C20: 2015-02-26 | D20: 16:00:00 | E20: 105.5 | F20: 105.71 | G20: 104.14 | H20: 104.56 | I20: 5044969 | J20: -1.01
A21: F | B21: Ford Motor Company (F) -NYSE (Daily) | C21: 2018-04-16 | D21: 13:20:00 | E21: 11.36 | F21: 11.4375 | G21: 11.27 | H21: 11.425 | I21: 13144677 | J21: 0.145
A22: FAS | B22: Direxion Daily Financial Bull 3X ETF (FAS) -NYSEArca (Daily) | C22: 2017-10-13 | D22: 16:00:00 | E22: 58.099998 | F22: 58.939999 | G22: 57.43 | H22: 58.450001 | I22: 1709300 | J22: 0.07
A23: FB | B23: Facebook, Inc. (FB) -NasdaqGS (Daily) | C23: 2018-07-13 | D23: 16:00:00 | E23: 207.809998 | F23: 208.429993 | G23: 206.449997 | H23: 207.320007 | I23: 11486800 | J23: 0.400009
A24: GSK | B24: GlaxoSmithKline P (GSK) -NYSE (Daily) | C24: 2015-02-02 | D24: 16:01:00 | E24: 44.11 | F24: 44.12 | G24: 43.71 | H24: 43.96 | I24: 3654466 | J24: -0.04
A25: GDX | B25: VanEck Vectors Gold Miners ETF (GDX) -PCX (Daily) | C25: 2017-02-10 | D25: 20:00:00 | E25: 24.67 | F25: 25.36 | G25: 24.6 | H25: 25.29 | I25: 65396107 | J25: 0.38
A26: HSY | B26: The Hershey Compa (HSY) -NYSE (Daily) | C26: 2015-02-19 | D26: 16:02:00 | E26: 106.97 | F26: 107.31 | G26: 105.42 | H26: 105.95 | I26: 1448321 | J26: -1
A27: HTLD | B27: Heartland Express, Inc. (HTLD) -NasdaqGS (Daily) | C27: 2018-04-16 | D27: 13:57:00 | E27: 18.17 | F27: 18.620001 | G27: 18.129999 | H27: 18.540001 | I27: 202134 | J27: 0.540001
A28: IBM | B28: International Business Machines Corporation (IBM) -NYSE (Weekly) | C28: 2018-07-13 | D28: 16:01:00 | E28: 146.449997 | F28: 146.979904 | G28: 145.800003 | H28: 145.899994 | I28: 3067638 | J28: 0
A29: INTC | B29: Intel Corporation (INTC) -NasdaqGS (Weekly) | C29: 2018-06-19 | D29: 16:00:00 | E29: 52.139999 | F29: 52.950001 | G29: 51.880001 | H29: 52.93 | I29: 24852220 | J29: -0.290001
A30: JAH | B30: Jarden Corporation Common Stock (JAH) -NYQ (Daily) | C30: 2016-01-08 | D30: 16:02:00 | E30: 53.82 | F30: 53.88 | G30: 52.65 | H30: 52.73 | I30: 4519480 | J30: -0.81
A31: JNJ | B31: Johnson & Johnson Common Stock (JNJ) -NYQ (Daily) | C31: 2016-01-08 | D31: 11:37:00 | E31: 99.88 | F31: 99.94 | G31: 98.87 | H31: 98.88 | I31: 2448879 | J31: -0.34
A32: KO | B32: The Coca-Cola Company (KO) -NYSE (Daily) | C32: 2018-04-16 | D32: 11:45:00 | E32: 44.650002 | F32: 44.790001 | G32: 44.400002 | H32: 44.605 | I32: 3134784 | J32: 0.095002
A33: LHO | B33: LaSalle Hotel Properties (LHO) -NYSE (Daily) | C33: 2018-07-13 | E33: 35.009998 | F33: 35.07 | G33: 34.82 | H33: 34.880001 | I33: 168400 | J33: -0.09
A34: LINE | B34: Linn Energy, LLC (LINE) -NasdaqNM (Daily) | C34: 2015-02-02 | D34: 16:00:00 | E34: 10.4 | F34: 10.78 | G34: 10.25 | H34: 10.77 | I34: 3766537 | J34: 0.51
A35: LO | B35: Lorillard, Inc Co (LO) -NYSE (Daily) | C35: 2015-02-02 | D35: 16:03:00 | E35: 65.71 | F35: 66.29 | G35: 65.43 | H35: 66.29 | I35: 1563618 | J35: 0.68
A36: MCD | B36: McDonald's Corporation (MCD) -NYSE (Daily) | C36: 2018-04-16 | D36: 14:57:00 | E36: 161.300003 | F36: 162.429993 | G36: 160.860001 | H36: 161.699997 | I36: 2261078 | J36: -0.029999
A37: MDT | B37: Medtronic plc. Or (MDT) -NYSE (Daily) | C37: 2015-02-19 | D37: 16:01:00 | E37: 78.59 | F37: 78.59 | G37: 77.85 | H37: 78.13 | I37: 6900528 | J37: -0.37
A38: MGM | B38: MGM Resorts Inter (MGM) -NYSE (Daily) | C38: 2015-02-02 | D38: 16:00:00 | E38: 19.44 | F38: 19.75 | G38: 19.12 | H38: 19.74 | I38: 7570281 | J38: 0.26
A39: MO | B39: Altria Group, Inc (MO) -NYSE (Daily) | C39: 2015-02-02 | D39: 16:01:00 | E39: 53.25 | F39: 53.84 | G39: 52.98 | H39: 53.8 | I39: 9183582 | J39: 0.7
A40: MSFT | B40: Microsoft Corporation (MSFT) -NasdaqGS (Daily) | C40: 2018-04-13 | D40: 16:00:00 | E40: 94.050003 | F40: 94.18 | G40: 92.440002 | H40: 93.080002 | I40: 23318600 | J40: -0.5
A41: NFLX | B41: Netflix, Inc. (NFLX) -NasdaqGS (Weekly) | C41: 2018-06-19 | D41: 14:59:00 | E41: 389.5 | F41: 404.390015 | G41: 388.5 | H41: 404.100006 | I41: 13053145 | J41: 13.700012
A42: NUGT | B42: Direxion Daily Gold Miners Inde (NUGT) -PCX (Daily) | C42: 2016-04-13 | D42: 14:18:00 | E42: 81.48 | F42: 84.97 | G42: 79.59 | H42: 80.5352 | I42: 4380827 | J42: -5.6148
A43: NVS | B43: Novartis AG (NVS) -NYSE (Daily) | C43: 2018-04-13 | D43: 16:02:00 | E43: 81.150002 | F43: 81.269997 | G43: 80.699997 | H43: 81.040001 | I43: 1037000 | J43: -0.400001
A44: NVDA | B44: NVIDIA Corporation (NVDA) -NasdaqGS (Daily) | C44: 2019-03-15 | D44: 16:00:00 | E44: 167.300003 | F44: 171.529999 | G44: 167.160004 | H44: 169.809998 | I44: 16521200 | J44: 4.25
A45: PRU | B45: Prudential Financ (PRU) -NYSE (Daily) | C45: 2015-02-23 | D45: 12:22:00 | E45: 80.25 | F45: 80.4499 | G45: 79.8 | H45: 80.12 | I45: 1604052 | J45: -0.69
A46: PSEC | B46: Prospect Capital Corporation (PSEC) -NasdaqGS (Daily) | C46: 2018-04-13 | D46: 16:00:00 | E46: 6.48 | F46: 6.5 | G46: 6.42 | H46: 6.45 | I46: 1289100 | J46: -0.03
A47: RAI | B47: Reynolds American (RAI) -NYSE (Daily) | C47: 2015-02-02 | D47: 16:03:00 | E47: 68.12 | F47: 69.06 | G47: 67.4346 | H47: 69.05 | I47: 1822013 | J47: 1.1
A48: RPM | B48: RPM International Inc. (RPM) -NYSE (Daily) | C48: 2018-04-13 | D48: 16:02:00 | E48: 49.52 | F48: 49.52 | G48: 48.970001 | H48: 49.240002 | I48: 908200 | J48: 0.010002 | K48: Owns the Rust-Oleum brand
A49: RSP | B49: Guggenheim S&P 500 Equal Weight (RSP) -PCX (Daily) | C49: 2016-01-08 | D49: 11:33:00 | E49: 73.24 | F49: 73.47 | G49: 72.41 | H49: 72.41 | I49: 754279 | J49: -0.48
A50: SONC | B50: Sonic Corp. (SONC) -NasdaqGS (Daily) | C50: 2018-04-13 | D50: 16:00:00 | E50: 26.440001 | F50: 26.709999 | G50: 26.040001 | H50: 26.23 | I50: 701900 | J50: -0.03
A51: SPR | B51: Spirit Aerosystems Holdings, In (SPR) -NYQ (Daily) | C51: 2017-02-08 | D51: 16:02:00 | E51: 56.31 | F51: 56.53 | G51: 55.13 | H51: 56.41 | I51: 849196 | J51: 0.06
A52: SWKS | B52: Skyworks Solution (SWKS) -NasdaqNM (Daily) | C52: 2015-02-02 | D52: 16:00:00 | E52: 83.07 | F52: 83.73 | G52: 80.15 | H52: 82.02 | I52: 4119001 | J52: -1.03
A53: TOL | B53: Toll Brothers, Inc. (TOL) -NYSE (Daily) | C53: 2018-04-13 | D53: 16:03:00 | E53: 42.560001 | F53: 42.799999 | G53: 42.040001 | H53: 42.349998 | I53: 1490800 | J53: 0.09
A54: UNP | B54: Union Pacific Cor (UNP) -NYSE (Daily) | C54: 2015-02-02 | D54: 16:10:00 | E54: 118.13 | F54: 119.06 | G54: 116.7 | H54: 119.01 | I54: 3259594 | J54: 1.8
A55: VZ | B55: Verizon Communica (VZ) -NYSE (Daily) | C55: 2015-02-23 | D55: 12:22:00 | E55: 48.94 | F55: 49 | G55: 48.54 | H55: 48.825 | I55: 4204644 | J55: -0.145
A56: WBA | B56: (WBA) -NasdaqNM (Daily) | C56: 2015-02-02 | D56: 16:00:00 | E56: 73.06 | F56: 74.98 | G56: 73 | H56: 74.89 | I56: 4247395 | J56: 1.14
A57: WMT | B57: Walmart Inc. (WMT) -NYSE (Daily) | C57: 2018-07-13 | D57: 16:00:00 | E57: 86.519997 | F57: 87.989998 | G57: 86.5 | H57: 87.699997 | I57: 6388600 | J57: 1.18
A59: ^NDX | B59: NASDAQ-100 (^NDX) -NIM (Daily) | C59: 2015-08-10 | D59: 17:15:00 | E59: 4558.68 | F59: 4583.63 | G59: 4554.63 | H59: 4573.11 | I59: 0 | J59: 53.03
A60: ^FTSE | B60: FTSE 100 (^FTSE) -FTSE (Daily) | C60: 2018-02-14 | D60: 15:51:00 | E60: 7168.009766 | F60: 7243.149902 | G60: 7145.72998 | H60: 7222.319824 | I60: 0 | J60: 54.319824
A61: ^DJI | B61: Dow Jones Industrial Average (^DJI) -DJI (Daily) | C61: 2018-02-14 | D61: 13:58:00 | E61: 24535.82031 | F61: 24835.44922 | G61: 24490.35938 | H61: 24816.16016 | I61: 254641020 | J61: 175.710937
A62: SPY | B62: SPDR S&P 500 ETF (SPY) -NYSEArca (Daily) | C62: 2019-03-18 | D62: 11:43:00 | E62: 280.540009 | F62: 282.660004 | G62: 281.299988 | H62: 281.575012 | I62: 21051589 | J62: 0.265014
A63: ^GSPC | B63: S&P 500 (^GSPC) -SNP (Daily) | C63: 2018-07-13 | D63: 16:51:00 | E63: 2796.929932 | F63: 2804.530029 | G63: 2791.689941 | H63: 2801.310059 | I63: 2614000000 | J63: 3.02002
A64: IWM | B64: iShares Russell 2000 ETF (IWM) -NYSEArca (Daily) | C64: 2018-04-13 | D64: 16:00:00 | E64: 155.289993 | F64: 155.330002 | G64: 153.509995 | H64: 153.949997 | I64: 19710100 | J64: -0.809998
A65: QQQ | B65: PowerShares QQQ ETF (QQQ) -NasdaqGM (Daily) | C65: 2018-04-13 | D65: 16:00:00 | E65: 163.020004 | F65: 163.259995 | G65: 160.669998 | H65: 161.369995 | I65: 44450700 | J65: -0.840012
A66: ^RUT | B66: Russell 2000 (^RUT) -Chicago Options (Daily) | C66: 2019-02-14 | D66: 16:30:00 | E66: 1540.987793 | F66: 1551.385864 | G66: 1534.590088 | H66: 1545.105225 | I66: 0 | J66: 2.165284
A67: ^VIX | B67: VOLATILITY S&P 500 (^VIX) -WCB (Daily) | C67: 2015-12-04 | D67: 16:14:00 | E67: 17.43 | F67: 17.65 | G67: 14.69 | H67: 14.81 | I67: 0 | J67: -3.3
A68: ^NYA | B68: NYSE COMPOSITE (DJ) (^NYA) -NYSE (Daily) | C68: 2018-07-13 | D68: 16:15:00 | E68: 12744.79981 | F68: 12783.24023 | G68: 12727.75977 | H68: 12769.5 | I68: 2614000000 | J68: 8.040039
A70: ACAD | B70: ACADIA Pharmaceut (ACAD) -NasdaqNM (Daily) | C70: 2014-07-21 | D70: 16:00:00 | E70: 20.13 | F70: 20.55 | G70: 19.8101 | H70: 20.31 | I70: 691016
A71: CLDX | B71: Celldex Therapeut (CLDX) -NasdaqNM (Daily) | C71: 2015-02-02 | D71: 16:00:00 | E71: 21.47 | F71: 21.69 | G71: 20.11 | H71: 21.02 | I71: 1570418 | J71: -0.4
A72: ICPT | B72: Intercept Pharmac (ICPT) -NasdaqNM (Daily) | C72: 2014-07-21 | D72: 16:00:00 | E72: 215.97 | F72: 218.43 | G72: 213.05 | H72: 218.14 | I72: 191276
A73: INO | B73: Inovio Pharmaceut (INO) -AMEX (Daily) | C73: 2014-07-21 | D73: 16:00:00 | E73: 10.3 | F73: 11.08 | G73: 10.1 | H73: 11.01 | I73: 1800796
A74: JCP | B74: J. C. Penney Company, Inc. (JCP) -NYSE (Daily) | C74: 2017-12-07 | D74: 16:01:00 | E74: 3.34 | F74: 3.4 | G74: 3.25 | H74: 3.27 | I74: 14485464 | J74: -0.07
A75: LCI | B75: Lannett Co Inc Co (LCI) -NYSE (Daily) | C75: 2014-07-21 | D75: 16:02:00 | E75: 38.09 | F75: 38.803 | G75: 36.5101 | H75: 37.76 | I75: 611367
A76: NPSP | B76: NPS Pharmaceutica (NPSP) -NasdaqNM (Daily) | C76: 2014-07-21 | D76: 15:59:00 | E76: 28.75 | F76: 29.43 | G76: 28.31 | H76: 29.29 | I76: 1126758
A77: PBYI | B77: Puma Biotechnolog (PBYI) -NYSE (Daily) | C77: 2014-07-21 | D77: 16:02:00 | E77: 58.27 | F77: 59.46 | G77: 57.39 | H77: 58.98 | I77: 348030

Sheet Equity Chart
A1: Equity
